Workbook

Sheet Zbiorczo.
A6: WYKONANIE WYDATKÓW BIEŻĄCYCH MIASTA STOŁECZNEGO WARSZAWY W UKŁADZIE ZADAŃ ZA I PÓŁROCZE 2023 ROKU
A7: WYDATKI ZBIORCZO
A9: Wyszczególnienie | B9: Plan | E9: W tym Urząd
B10: Plan | C10: Wykonanie | D10: Wskaźnik % (kol. 3/2) | E10: Plan | F10: Wykonanie | G10: Wskaźnik % (kol. 6/5)
A11: 1 | B11: 2 | C11: 3 | D11: 4 | E11: 5 | F11: 6 | G11: 7
A12: OGÓŁEM | B12: 21142161866 | C12: =9667387998.43+39355.79-232.4 -> 9667427122 | D12: =C12/B12*100 -> 45.72582115 | E12: 8350092005 | F12: =3711734727.05+39355.79-232.4 -> 3711773850 | G12: =F12/E12*100 -> 44.45189165
A13: TRANSPORT I KOMUNIKACJA | B13: 4661121329 | C13: 1842531460 | D13: 39.52978972 | E13: 110496816 | F13: 18470820.71 | G13: 16.71615652
A14: Komunikacja zbiorowa | B14: 3982576729 | C14: 1623876962 | D14: 40.77453048 | E14: 7362720 | F14: 2363250 | G14: 32.09751288
A15: Zakup usług komunikacji miejskiej | B15: 3775554852 | C15: 1542514487 | D15: 40.85530597
A16: Metro Warszawskie | B16: 740749418 | C16: 316237549.4 | D16: 42.69156907
A17: Miejskie Zakłady Autobusowe | B17: 1102229662 | C17: 457172638.4 | D17: 41.47707634
A18: Pozostali przewoźnicy autobusowi | B18: 343639872 | C18: 146205371.6 | D18: 42.54610233
A19: Szybka Kolej Miejska | B19: 289130973 | C19: 110879995 | D19: 38.34940055
A20: Tramwaje Warszawskie | B20: 1063803342 | C20: 424960878.9 | D20: 39.94731565
A21: Pozostali przewoźnicy kolejowi | B21: 236001585 | C21: 87058053.63 | D21: 36.88875803
A22: Zarządzanie komunikacją miejską | B22: 187651135 | C22: 77023415.83 | D22: 41.04606979 | E22: 519000 | F22: 10000 | G22: 1.926782274
A23: Utrzymanie Zarządu Transportu Miejskiego, w tym obsługa inwestycji | B23: 137935795 | C23: 61328548.15 | D23: 44.46166287
A24: Utrzymanie i obsługa systemu biletowego | B24: 20193087 | C24: 9343322.26 | D24: 46.26990544
A25: Organizacja komunikacji, marketing, nadzór i kontrola ruchu | B25: 29522253 | C25: 6351545.42 | D25: 21.51443327 | E25: 519000 | F25: 10000 | G25: 1.926782274
A26: Utrzymanie infrastruktury przystankowej | B26: 12527022 | C26: 1985809.38 | D26: 15.85220637
A27: Opracowania i analizy związane z komunikacją miejską | B27: 6843720 | C27: 2353250 | D27: 34.38553886 | E27: 6843720 | F27: 2353250 | G27: 34.38553886
A28: Drogi i mosty | B28: 678544600 | C28: 218654497.8 | D28: 32.22404213 | E28: 103134096 | F28: 16107570.71 | G28: 15.61808494
A29: Utrzymanie i remonty dróg | B29: 247093391 | C29: 48835922.66 | D29: 19.76415576 | E29: 95616714 | F29: 14856930.91 | G29: 15.53800616
A30: Utrzymanie i remonty dróg gminnych | B30: 105770687 | C30: 15370998.63 | D30: 14.53238044 | E30: 93152455 | F30: 14062109.09 | G30: 15.09580085
A31: Utrzymanie i remonty dróg w miastach na prawach powiatu | B31: 138732445 | C31: 32715795.2 | D31: 23.58193514 | E31: 4000 | F31: 145692.99 | G31: 3642.32475
A32: Utrzymanie i remonty dróg wewnętrznych | B32: 2590259 | C32: 749128.83 | D32: 28.92100095 | E32: 2460259 | F32: 649128.83 | G32: 26.38457293
A33: Utrzymanie i remonty obiektów mostowych | B33: 69956922 | C33: 9450150.66 | D33: 13.50852838
A34: Utrzymanie sygnalizacji świetlnej | B34: 53533804 | C34: 22981674.33 | D34: 42.92927573
A35: Utrzymanie sygnalizacji na drogach w miastach na prawach powiatu | B35: 53533804 | C35: 22981674.33 | D35: 42.92927573
A36: Oświetlenie ulic | B36: 115924931 | C36: 59416262.79 | D36: 51.2540851 | E36: 4452126 | F36: 923642 | G36: 20.7460885
A37: Iluminacje obiektów architektonicznych | B37: 3040748 | C37: 939289.14 | D37: 30.8900685 | E37: 427279 | F37: 93168.81 | G37: 21.80514605
A38: Utrzymanie i remonty oświetlenia ulic, placów i dróg | B38: 112884183 | C38: 58476973.65 | D38: 51.80262823 | E38: 4024847 | F38: 830473.19 | G38: 20.63365862
A39: Opracowania i analizy związane z drogami | B39: 2863425 | C39: 190062.27 | D39: 6.63758506 | E39: 2775425 | F39: 182903.67 | G39: 6.590113947
A40: Zarządzanie drogami i obsługa inwestycji drogowych | B40: 131904243 | C40: 56548304.69 | D40: 42.87072455
A41: Gospodarowanie parkingami i węzłami komunikacyjnymi | B41: 57267884 | C41: 21232120.4 | D41: 37.07509151 | E41: 289831 | F41: 144094.13 | G41: 49.71660381
A42: ŁAD PRZESTRZENNY I GOSPODARKA NIERUCHOMOŚCIAMI | B42: 1335057872 | C42: 613321533.5 | D42: 45.93969642 | E42: 134506149 | F42: 36750470.14 | G42: 27.3225205
A43: Rewitalizacja | B43: 990756 | C43: 33210 | D43: 3.351985756 | E43: 990756 | F43: 33210 | G43: 3.351985756
A44: Rewitalizacja obszarów miejskich | B44: 990756 | C44: 33210 | D44: 3.351985756 | E44: 990756 | F44: 33210 | G44: 3.351985756
A45: Gospodarka przestrzenna | B45: 21412323 | C45: 9482777.15 | D45: 44.28654075 | E45: 12345980 | F45: 4321143.76 | G45: 35.00041115
A46: Prowadzenie polityki rozwoju przestrzennego | B46: 714000 | C46: 290558 | D46: 40.69439776 | E46: 714000 | F46: 290558 | G46: 40.69439776
A47: Plany zagospodarowania przestrzennego | B47: 8720701 | C47: 3557814.21 | D47: 40.79734198 | E47: 8720701 | F47: 3557814.21 | G47: 40.79734198
A48: Architektura, Urbanistyka i Zagospodarowanie Przestrzeni Publicznej | B48: 2911279 | C48: 472771.55 | D48: 16.23930753 | E48: 2911279 | F48: 472771.55 | G48: 16.23930753
A49: Nadzór nad przestrzeganiem prawa budowlanego | B49: 9066343 | C49: 5161633.39 | D49: 56.93181242
A50: Mieszkaniowy zasób komunalny oraz pozostałe zadania związane z zapewnieniem lokali mieszkalnych | B50: 1050129892 | C50: 503705614.6 | D50: 47.96602957 | E50: 35406910 | F50: 11568197.54 | G50: 32.6721466
A51: Koszty eksploatacji mieszkaniowego zasobu komunalnego | B51: 213903344 | C51: 95275577.73 | D51: 44.54141574 | E51: 21365173 | F51: 8281898.19 | G51: 38.76354378
A52: Remonty mieszkaniowego zasobu komunalnego | B52: 115287775 | C52: 29488283.86 | D52: 25.57797985 | E52: 5465082 | F52: 766244.6 | G52: 14.02073381
A53: Utrzymanie jednostek gospodarujących zasobem komunalnym | B53: 296323670 | C53: 138084747.5 | D53: 46.59929715 | F53: 0 | G53: -
A54: Rozliczenia ze wspólnotami mieszkaniowymi | B54: 417780092 | C54: 239413782.4 | D54: 57.30617303 | E54: 3911628 | F54: 1959148.8 | G54: 50.08525351
A55: Opracowania i analizy związane z zarządzaniem zasobem komunalnym | B55: 1497362 | C55: 65853 | D55: 4.397934501 | E55: 1297362 | F55: 65853 | G55: 5.075915589
A56: Rozliczenia za lokale z właścicielami innymi niż m.st. Warszawa | B56: 5337649 | C56: 1377370.06 | D56: 25.8048077 | E56: 3367665 | F56: 495052.95 | G56: 14.70018395
A57: Zadania związane z nabywaniem i sprzedażą nieruchomości | B57: 62473148 | C57: 12342069 | D57: 19.75579812 | E57: 62371148 | F57: 12300611.06 | G57: 19.72163645
A58: Przygotowanie nieruchomości komunalnych przeznaczonych m.in. do zbycia i zamiany | B58: 12636357 | C58: 1502663.52 | D58: 11.89158806 | E58: 12636357 | F58: 1502663.52 | G58: 11.89158806
A59: Regulacja stanów prawnych nieruchomości, w tym odszkodowania | B59: 49836791 | C59: 10839405.48 | D59: 21.74980624 | E59: 49734791 | F59: 10797947.54 | G59: 21.71105442
A60: Pozostały zasób komunalny | B60: 167301083 | C60: 70351877.47 | D60: 42.05105921 | E60: 23391355 | F60: 8527307.78 | G60: 36.45495432
A61: Zarządzanie lokalami użytkowymi i ich eksploatacja | B61: 41020254 | C61: 18774664.5 | D61: 45.76925462 | E61: 5418247 | F61: 2031270.12 | G61: 37.48943376
A62: Remonty lokali użytkowych | B62: 17913096 | C62: 2036124.47 | D62: 11.36668095 | E62: 733500 | F62: 182764.12 | G62: 24.91671711
A63: Prowadzenie zasobu geodezyjnego i kartograficznego | B63: 5165341 | C63: 2278200.63 | D63: 44.10552236 | E63: 5165341 | F63: 2278200.63 | G63: 44.10552236
A64: Utrzymanie i rozwój aplikacji i baz danych przestrzennych | B64: 2678261 | C64: 406370.11 | D64: 15.17290921 | E64: 2678261 | F64: 406370.11 | G64: 15.17290921
A65: Zarządzanie pozostałymi nieruchomościami | B65: 100524131 | C65: 46856517.76 | D65: 46.61220872 | E65: 9396006 | F65: 3628702.8 | G65: 38.61963051
A66: Zarządzanie mieniem Skarbu Państwa | B66: 32750670 | C66: 17405985.3 | D66: 53.14695944
A67: Eksploatacja zasobu Skarbu Państwa | B67: 9067003 | C67: 4976772.87 | D67: 54.88884111
A68: Remonty zasobu Skarbu Państwa | B68: 1679600 | C68: 562226.65 | D68: 33.47384199
A69: Gospodarowanie nieruchomościami Skarbu Państwa | B69: 17664079 | C69: 8955496.5 | D69: 50.69891558
A70: Rozliczenia ze wspólnotami mieszkaniowymi w nieruchomościach Skarbu Państwa, w tym zaliczka "A" i "B" | B70: 4339988 | C70: 2911489.28 | D70: 67.08519194
A71: GOSPODARKA KOMUNALNA I OCHRONA ŚRODOWISKA | B71: 1778949968 | C71: 699413178.5 | D71: 39.31606796 | E71: 1358142260 | F71: 540226068.9 | G71: 39.77683964
A72: Utrzymanie porządku i czystości | B72: 1430476605 | C72: 598405005.9 | D72: 41.83256153 | E72: 1214768537 | F72: 504234514.9 | G72: 41.50869071
A73: Oczyszczanie miasta | B73: 146724675 | C73: 59277723.86 | D73: 40.40065099 | E73: 33045358 | F73: 12230471.91 | G73: 37.01116481
A74: Zimowe oczyszczanie ulic | B74: 78831429 | C74: 45370938.24 | D74: 57.55437751 | E74: 18707777 | F74: 9871424.15 | G74: 52.76641982
A75: Letnie oczyszczanie ulic | B75: 63738119 | C75: 12792250.6 | D75: 20.07001587 | E75: 11544998 | F75: 1781076.28 | G75: 15.42725499
A76: Oczyszczanie pozostałych terenów | B76: 4155127 | C76: 1114535.02 | D76: 26.82312767 | E76: 2792583 | F76: 577971.48 | G76: 20.69666255
A77: Interwencyjne pogotowie oczyszczania | B77: 4917791 | C77: 1405910.53 | D77: 28.58825294 | E77: 149993 | F77: 19861.5 | G77: 13.24161794
A78: Opróżnianie i zakup koszy ulicznych | B78: 22628668 | C78: 8320470.3 | D78: 36.76959819 | E78: 5932773 | F78: 2136411.19 | G78: 36.01033092
A79: Szalety miejskie i kabiny sanitarne | B79: 4484916 | C79: 1244596.23 | D79: 27.75071439 | E79: 1112579 | F79: 284136.88 | G79: 25.53858018
A80: Likwidacja dzikich wysypisk | B80: 1574776 | C80: 701101.11 | D80: 44.52068802 | E80: 1542236 | F80: 699920.67 | G80: 45.38349967
A81: Akcje związane z utrzymaniem czystości i porządku | B81: 150398 | C81: 44945.85 | D81: 29.88460618 | E81: 150398 | F81: 44945.85 | G81: 29.88460618
A82: Dzień Ziemi i inne | B82: 150398 | C82: 44945.85 | D82: 29.88460618 | E82: 150398 | F82: 44945.85 | G82: 29.88460618
A83: Zarządzanie oczyszczaniem miasta | B83: 30230249 | C83: 14393396.79 | D83: 47.61256445
A84: Gospodarka odpadami | B84: 1160299238 | C84: 485391642 | D84: 41.83331559 | E84: 1160299238 | F84: 485391642 | G84: 41.83331559
A85: Opracowania i analizy związane z ochroną środowiska i monitorowanie środowiska | B85: 5263386 | C85: 660786.11 | D85: 12.55439198 | E85: 5263386 | F85: 660786.11 | G85: 12.55439198
A86: Opracowanie mapy akustycznej | B86: 50000 | E86: 50000
A87: Zadania z zakresu bezdomności zwierząt w mieście | B87: 22721576 | C87: 10951740.25 | D87: 48.19973865 | E87: 7222576 | F87: 2766338.79 | G87: 38.3012763
A88: Miejski Ogród Zoologiczny | B88: 31430932 | C88: 16012692.87 | D88: 50.94565083
A89: Gospodarka ściekowa i ochrona wód | B89: 45105309 | C89: 17505355.47 | D89: 38.80996685 | E89: 39317632 | F89: 16179983.79 | G89: 41.15197932
A90: Utrzymanie i remonty sieci wodno-kanalizacyjnej | B90: 36480458 | C90: 15862877.63 | D90: 43.48321951 | E90: 35574165 | F90: 15563653.86 | G90: 43.74987821
A91: Opracowania związane z gospodarką wodno-ściekową | B91: 663000 | C91: 21583.2 | D91: 3.255384615 | E91: 663000 | F91: 21583.2 | G91: 3.255384615
A92: Utrzymanie i konserwacja urządzeń wodnych i innych zbiorników wodnych | B92: 7961851 | C92: 1620894.64 | D92: 20.35826393 | E92: 3080467 | F92: 594746.73 | G92: 19.30703137
A93: Tereny zielone | B93: 225921855 | C93: 62670851.27 | D93: 27.74005696 | E93: 57804869 | F93: 13202333.37 | G93: 22.83948325
A94: Utrzymanie i konserwacja zieleni | B94: 91307887 | C94: 29500499.28 | D94: 32.30881827 | E94: 17284428 | F94: 3669501.47 | G94: 21.2301007
A95: Utrzymanie i konserwacja zieleni przyulicznej | B95: 68183707 | C95: 13633676.98 | D95: 19.99550564 | E95: 20478616 | F95: 3874429.21 | G95: 18.91938991
A96: Utrzymanie parków | B96: 47785184 | C96: 11799844.99 | D96: 24.69352214 | E96: 18746803 | F96: 5616645.69 | G96: 29.96055215
A97: Utrzymanie lasów | B97: 17295455 | C97: 7699241.02 | D97: 44.51597845 | E97: 15400 | F97: 4168 | G97: 27.06493507
A98: Opracowania związane z zielenią | B98: 1349622 | C98: 37589 | D98: 2.785150212 | E98: 1279622 | F98: 37589 | G98: 2.937508108
A99: Pozostałe zadania z zakresu gospodarki komunalnej | B99: 77446199 | C99: 20831965.8 | D99: 26.89862907 | E99: 46251222 | F99: 6609236.78 | G99: 14.28986412
A100: Place zabaw, ścieżki zdrowia i inne formy aktywności plenerowej | B100: 11867723 | C100: 2361471.24 | D100: 19.89826726 | E100: 8968087 | F100: 1848065.68 | G100: 20.60713372
A101: Wykonywanie zadań związanych z rolnictwem w mieście | B101: 22339 | C101: 22098 | D101: 98.92116926 | E101: 22339 | F101: 22098 | G101: 98.92116926
A102: Składki na rzecz izb rolniczych | B102: 23000 | C102: 17144.7 | D102: 74.54217391 | E102: 23000 | F102: 17144.7 | G102: 74.54217391
A103: Utrzymanie i rozwój infrastruktury komunalnej | B103: 45888253 | C103: 12266204.55 | D103: 26.73059824 | E103: 26300131 | F103: 2323673.47 | G103: 8.835216334
A104: Planowanie rozwoju i monitorowanie funkcjonowania systemu zaopatrzenia w ciepło, paliwa gazowe i energię elektryczną | B104: 26300131 | C104: 2323673.47 | D104: 8.835216334 | E104: 26300131 | F104: 2323673.47 | G104: 8.835216334
A105: Utrzymanie jednostek budżetowych realizujących zadania z zakresu infrastruktury w dzielnicach | B105: 19588122 | C105: 9942531.08 | D105: 50.75795975
A106: Zadania z zakresu cmentarnictwa | B106: 4455000 | C106: 1460307.01 | D106: 32.77905746 | E106: 4455000 | F106: 1460307.01 | G106: 32.77905746
A107: Zarząd Cmentarzy Komunalnych | B107: 1850000 | C107: 198309.01 | D107: 10.71940595 | E107: 1850000 | F107: 198309.01 | G107: 10.71940595
A108: Pozostałe zadania z zakresu cmentarnictwa | B108: 2605000 | C108: 1261998 | D108: 48.44522073 | E108: 2605000 | F108: 1261998 | G108: 48.44522073
A109: Gospodarowanie targowiskami i nadzór nad handlem obwoźnym | B109: 8668789 | C109: 3741959.9 | D109: 43.16588972
A110: Przedsięwzięcia ekologiczne | B110: 6521095 | C110: 962780.4 | D110: 14.764091 | E110: 6482665 | F110: 937947.92 | G110: 14.46855452
A111: BEZPIECZEŃSTWO I PORZĄDEK PUBLICZNY | B111: 399469182 | C111: 199555670 | D111: 49.95521031 | E111: 9053082 | F111: 1818538.19 | G111: 20.08750379
A112: Obrona narodowa i cywilna | B112: 1147610 | C112: 385011.78 | D112: 33.54900881 | E112: 1137110 | F112: 374511.78 | G112: 32.93540467
A113: Kwalifikacja wojskowa | B113: 1054610 | C113: 385011.78 | D113: 36.50750325 | E113: 1044110 | F113: 374511.78 | G113: 35.86899656
A114: Obrona cywilna | B114: 40000 | E114: 40000
A115: Rekompensaty dla żołnierzy rezerwy oraz pozostałe świadczenia | B115: 53000 | E115: 53000
A116: Ochrona przeciwpożarowa | B116: 129366037 | C116: 72506453.12 | D116: 56.04751819 | E116: 1800000 | F116: 429902.52 | G116: 23.88347333
A117: Ochotnicze Straże Pożarne | B117: 1800000 | C117: 429902.52 | D117: 23.88347333 | E117: 1800000 | F117: 429902.52 | G117: 23.88347333
A118: Komenda Miejska Państwowej Straży Pożarnej | B118: 127566037 | C118: 72076550.6 | D118: 56.50136376
A119: Poprawa bezpieczeństwa | B119: 268955535 | C119: 126664205.1 | D119: 47.09484975 | E119: 6115972 | F119: 1014123.89 | G119: 16.58156528
A120: Zapewnienie porządku i bezpieczeństwa | B120: 221306202 | C120: 105535086.8 | D120: 47.68736068
A121: Zapewnienie sprawności systemu monitoringu | B121: 21502297 | C121: 10867531.26 | D121: 50.54125734
A122: Realizacja programów prewencyjnych | B122: 402400 | C122: 110075.01 | D122: 27.35462475 | E122: 402400 | F122: 110075.01 | G122: 27.35462475
A123: Dofinansowanie działań realizowanych przez Policję | B123: 2394000 | C123: 768000 | D123: 32.0802005 | E123: 2394000 | F123: 768000 | G123: 32.0802005
A124: Patrole ponadnormatywne | B124: 2304000 | C124: 768000 | D124: 33.33333333 | E124: 2304000 | F124: 768000 | G124: 33.33333333
A125: Nagrody dla funkcjonariuszy | B125: 90000 | E125: 90000
A126: Zarządzanie kryzysowe | B126: 322038 | C126: 10481.7 | D126: 3.254802228 | E126: 322038 | F126: 10481.7 | G126: 3.254802228
A127: Pobyt osób w Stołecznym Ośrodku dla Osób Nietrzeźwych | B127: 11271064 | C127: 5401800.63 | D127: 47.92627058
A128: Holowanie i usuwanie pojazdów | B128: 9357534 | C128: 3971229.74 | D128: 42.43884917 | E128: 597534 | F128: 125567.18 | G128: 21.01423183
A129: Dofinansowanie działań realizowanych przez Komendę Miejską Państwowej Straży Pożarnej | B129: 2400000 | E129: 2400000
A130: EDUKACJA | B130: 6166224090 | C130: 3244669962 | D130: 52.62004615 | E130: 1327625484 | F130: 704044585.5 | G130: 53.0303609
A131: Oświata i edukacyjna opieka wychowawcza | B131: 5839075353 | C131: 3106169345 | D131: 53.19625382 | E131: 1265609984 | F131: 689896977.3 | G131: 54.5110252
A132: Prowadzenie przedszkoli i innych form wychowania przedszkolnego | B132: 1310282669 | C132: 700650642.7 | D132: 53.47324354 | E132: 470132990 | F132: 263081168.7 | G132: 55.95888276
A133: Prowadzenie publicznych przedszkoli i innych form wychowania przedszkolnego | B133: 849678127 | C133: 440397302.7 | D133: 51.83107446 | E133: 9528448 | F133: 2827828.65 | G133: 29.67774658
A134: Dotacje dla niepublicznych przedszkoli i innych form wychowania przedszkolnego | B134: 460604542 | C134: 260253340 | D134: 56.50255616 | E134: 460604542 | F134: 260253340 | G134: 56.50255616
A135: Prowadzenie przedszkoli specjalnych | B135: 37849769 | C135: 20779563.25 | D135: 54.90010586 | E135: 5841690 | F135: 2909153.48 | G135: 49.79986066
A136: Prowadzenie publicznych przedszkoli specjalnych | B136: 32013347 | C136: 17870409.77 | D136: 55.82174763 | E136: 5268 | F136: 0 | G136: 0
A137: Dotacje dla niepublicznych przedszkoli specjalnych | B137: 5836422 | C137: 2909153.48 | D137: 49.8448104 | E137: 5836422 | F137: 2909153.48 | G137: 49.8448104
A138: Prowadzenie oddziałów "0" w szkołach podstawowych | B138: 77784757 | C138: 40204287.84 | D138: 51.68658924 | E138: 6599597 | F138: 3041962.52 | G138: 46.09315569
A139: Prowadzenie publicznych oddziałów "0" w szkołach podstawowych | B139: 71235160 | C139: 37162325.32 | D139: 52.16851527 | E139: 50000
A140: Dotacje dla niepublicznych oddziałów "0" w szkołach podstawowych | B140: 6549597 | C140: 3041962.52 | D140: 46.44503349 | E140: 6549597 | F140: 3041962.52 | G140: 46.44503349
A141: Prowadzenie szkół podstawowych | B141: 1630888259 | C141: 893439221.3 | D141: 54.78236883 | E141: 165112587 | F141: 93777681.97 | G141: 56.79620414
A142: Prowadzenie publicznych szkół podstawowych | B142: 1466603699 | C142: 799760089.5 | D142: 54.53143818 | E142: 828027 | F142: 98550.11 | G142: 11.9017991
A143: Dotacje dla niepublicznych szkół podstawowych | B143: 164284560 | C143: 93679131.86 | D143: 57.02248091 | E143: 164284560 | F143: 93679131.86 | G143: 57.02248091
A144: Prowadzenie szkół podstawowych specjalnych | B144: 177721760 | C144: 93546171.33 | D144: 52.63630707 | E144: 25461263 | F144: 15131732.64 | G144: 59.43040862
A145: Prowadzenie publicznych szkół podstawowych specjalnych | B145: 152260497 | C145: 78414438.69 | D145: 51.50018569
A146: Dotacje dla niepublicznych szkół podstawowych specjalnych | B146: 25461263 | C146: 15131732.64 | D146: 59.43040862 | E146: 25461263 | F146: 15131732.64 | G146: 59.43040862
A147: Prowadzenie liceów ogólnokształcących | B147: 711162823 | C147: 396971940.1 | D147: 55.82011985 | E147: 100852117 | F147: 54154992.52 | G147: 53.69742761
A148: Prowadzenie publicznych liceów ogólnokształcących | B148: 610420868 | C148: 342821773 | D148: 56.16154214 | E148: 110162 | F148: 4825.37 | G148: 4.380249088
A149: Dotacje dla niepublicznych liceów ogólnokształcących | B149: 100741955 | C149: 54150167.15 | D149: 53.75135627 | E149: 100741955 | F149: 54150167.15 | G149: 53.75135627
A150: Prowadzenie liceów ogólnokształcących specjalnych | B150: 14479058 | C150: 8623865.09 | D150: 59.5609541 | E150: 940000 | F150: 474671.52 | G150: 50.49697021
A151: Prowadzenie publicznych liceów ogólnokształcących specjalnych | B151: 13539058 | C151: 8149193.57 | D151: 60.19025526
A152: Dotacje dla niepublicznych liceów ogólnokształcących specjalnych | B152: 940000 | C152: 474671.52 | D152: 50.49697021 | E152: 940000 | F152: 474671.52 | G152: 50.49697021
A153: Prowadzenie szkół zawodowych specjalnych | B153: 52861149 | C153: 27251934.11 | D153: 51.55380582 | E153: 5430000 | F153: 3417952.91 | G153: 62.94572578
A154: Prowadzenie publicznych szkół zawodowych specjalnych | B154: 47431149 | C154: 23833981.2 | D154: 50.24963911
A155: Dotacje dla niepublicznych szkół zawodowych specjalnych | B155: 5430000 | C155: 3417952.91 | D155: 62.94572578 | E155: 5430000 | F155: 3417952.91 | G155: 62.94572578
A156: Prowadzenie publicznych szkół artystycznych | B156: 2853853 | C156: 1461420.28 | D156: 51.20867403
A157: Prowadzenie publicznych placówek kształcenia ustawicznego icentrów kształcenia zawodowego | B157: 23619095 | C157: 11887524.64 | D157: 50.33014449
A158: Prowadzenie specjalnych ośrodków wychowawczych | B158: 10097934 | C158: 5564192.23 | D158: 55.1022836 | E158: 7470000 | F158: 4281576.5 | G158: 57.31695448
A159: Prowadzenie publicznych specjalnych ośrodków wychowawczych | B159: 2627934 | C159: 1282615.73 | D159: 48.80699934
A160: Dotacje dla niepublicznych specjalnych ośrodków wychowawczych | B160: 7470000 | C160: 4281576.5 | D160: 57.31695448 | E160: 7470000 | F160: 4281576.5 | G160: 57.31695448
A161: Prowadzenie specjalnych ośrodków szkolno-wychowawczych | B161: 24316751 | C161: 11567665.14 | D161: 47.57076774
A162: Prowadzenie publicznych specjalnych ośrodków szkolno-wychowawczych | B162: 24316751 | C162: 11567665.14 | D162: 47.57076774
A163: Prowadzenie publicznych poradni psychologiczno-pedagogicznych | B163: 116643831 | C163: 62423229.8 | D163: 53.51610048 | E163: 61100 | F163: 0 | G163: 0
A164: Prowadzenie internatów i burs szkolnych | B164: 21785788 | C164: 10069564.54 | D164: 46.22079559 | E164: 5823215 | F164: 2812442.66 | G164: 48.29707747
A165: Prowadzenie publicznych internatów i burs szkolnych | B165: 15962573 | C165: 7257121.88 | D165: 45.46335907
A166: Dotacje dla niepublicznych internatów i burs szkolnych | B166: 5823215 | C166: 2812442.66 | D166: 48.29707747 | E166: 5823215 | F166: 2812442.66 | G166: 48.29707747
A167: Prowadzenie świetlic szkolnych | B167: 208793108 | C167: 112280151.8 | D167: 53.7757941
A168: Prowadzenie placówek wychowania pozaszkolnego | B168: 99885188 | C168: 50096875.71 | D168: 50.15445905 | E168: 9229611 | F168: 5148655.86 | G168: 55.78410466
A169: Prowadzenie publicznych placówek wychowania pozaszkolnego | B169: 77289630 | C169: 39208605.16 | D169: 50.72945123 | E169: 15000 | F169: 161.6 | G169: 1.077333333
A170: Dotacje dla niepublicznych placówek wychowania pozaszkolnego | B170: 9214611 | C170: 5148494.26 | D170: 55.87315905 | E170: 9214611 | F170: 5148494.26 | G170: 55.87315905
A171: Pozaszkolna Placówka Specjalistyczna - Młodzieżowy Ośrodek Wypoczynkowy w Gawrych Rudzie | B171: 1643377 | C171: 777179.63 | D171: 47.29162146
A172: Pozaszkolna Placówka Specjalistyczna - Szkolny Ośrodek Wypoczynkowy "Orle Gniazdo" w Sromowcach Wyżnych | B172: 2107798 | C172: 1135554.79 | D172: 53.87398555
A173: Pozaszkolna Placówka Specjalistyczna - Szkolny Ośrodek Wypoczynkowy "Syrenka" w Marózie | B173: 2459100 | C173: 1228088.58 | D173: 49.94057094
A174: Pozaszkolna Placówka Specjalistyczna - Ośrodek Rehabilitacyjno - Wypoczynkowy "Syrena" w Mielnie | B174: 5489719 | C174: 1787580.57 | D174: 32.56233279
A175: Pozaszkolna Placówka Specjalistyczna - Ośrodek Oświatowo - Szkoleniowy "Arkadia" w Kazimierzu Dolnym | B175: 1680953 | C175: 811372.72 | D175: 48.26861429
A176: Prowadzenie ośrodków rewalidacyjno-wychowawczych | B176: 8714236 | C176: 5003226.4 | D176: 57.41440099 | E176: 6310464 | F176: 3427058 | G176: 54.30754379
A177: Prowadzenie publicznych ośrodków rewalidacyjno-wychowawczych | B177: 2403772 | C177: 1576168.4 | D177: 65.57062816
A178: Dotacje dla niepublicznych ośrodków rewalidacyjno-wychowawczych | B178: 6310464 | C178: 3427058 | D178: 54.30754379 | E178: 6310464 | F178: 3427058 | G178: 54.30754379
A179: Prowadzenie młodzieżowych ośrodków wychowawczych | B179: 15108617 | C179: 7297223.76 | D179: 48.29842308 | E179: 4580000 | F179: 2109342.01 | G179: 46.0555024
A180: Prowadzenie publicznych młodzieżowych ośrodków wychowawczych | B180: 10528617 | C180: 5187881.75 | D180: 49.27410457
A181: Dotacje dla niepublicznych młodzieżowych ośrodków wychowawczych | B181: 4580000 | C181: 2109342.01 | D181: 46.0555024 | E181: 4580000 | F181: 2109342.01 | G181: 46.0555024
A182: Prowadzenie młodzieżowych ośrodków socjoterapii | B182: 25436703 | C182: 13651931.5 | D182: 53.67020836
A183: Prowadzenie publicznych młodzieżowych ośrodków socjoterapii | B183: 25436703 | C183: 13651931.5 | D183: 53.67020836
A184: Remonty w przedszkolach, szkołach i placówkach oświatowych | B184: 129405356 | C184: 14200264.04 | D184: 10.97347473 | E184: 53388027 | F184: 3509179.94 | G184: 6.572971764
A185: Zajęcia dla uczniów na basenach i w halach sportowych | B185: 12950561 | C185: 5700487.9 | D185: 44.01730473
A186: Dowożenie uczniów do szkół | B186: 31446530 | C186: 11453309.84 | D186: 36.42153789 | E186: 31421530 | F186: 11441310.11 | G186: 36.41232655
A187: Prowadzenie stołówek szkolnych i przedszkolnych | B187: 53885563 | C187: 26523190.19 | D187: 49.22132889
A188: Wczesne wspomaganie rozwoju dziecka | B188: 24320412 | C188: 12919707.75 | D188: 53.12289837 | E188: 17929158 | F188: 10014961.3 | G188: 55.85851438
A189: Prowadzenie ośrodków szkolenia, dokształcania i doskonalenia kadr | B189: 9071530 | C189: 4068524.16 | D189: 44.84937117
A190: Warszawskie Centrum Innowacji Edukacyjno - Społecznych i Szkoleń | B190: 9071530 | C190: 4068524.16 | D190: 44.84937117
A191: Realizacja zadań wymagających stosowania specjalnej organizacji nauki i metod pracy | B191: 614403108 | C191: 343973380.2 | D191: 55.98496748 | E191: 281888164 | F191: 167370830.6 | G191: 59.37490535
A192: Realizacja zadań wymagających stosowania specjalnej organizacji nauki i metod pracy przez placówki publiczne | B192: 332514944 | C192: 176602549.7 | D192: 53.11116172
A193: Dotacje dla podmiotów niepublicznych realizujących zadania wymagające stosowania specjalnej nauki organizacji i metod pracy | B193: 281888164 | C193: 167370830.6 | D193: 59.37490535 | E193: 281888164 | F193: 167370830.6 | G193: 59.37490535
A194: Kwalifikacyjne kursy zawodowe | B194: 4079134 | C194: 1712133.02 | D194: 41.97295357 | E194: 2646760 | F194: 1035782.46 | G194: 39.13397739
A195: Prowadzenie kwalifikacyjnych kursów zawodowych w placówkach publicznych | B195: 1432374 | C195: 676350.56 | D195: 47.21885206
A196: Dotacje dla placówek niepublicznych na prowadzenie kwalifikacyjnych kursów zawodowych | B196: 2646760 | C196: 1035782.46 | D196: 39.13397739 | E196: 2646760 | F196: 1035782.46 | G196: 39.13397739
A197: Prowadzenie techników | B197: 295165954 | C197: 162818552.8 | D197: 55.16169822 | E197: 9308150 | F197: 4943273.01 | G197: 53.10693328
A198: Prowadzenie publicznych techników | B198: 285975704 | C198: 157875441.4 | D198: 55.20589308 | E198: 117900 | F198: 161.6 | G198: 0.13706531
A199: Dotacje dla niepublicznych techników | B199: 9190250 | C199: 4943111.41 | D199: 53.78647382 | E199: 9190250 | F199: 4943111.41 | G199: 53.78647382
A200: Prowadzenie szkół policealnych | B200: 49323288 | C200: 33052972.61 | D200: 67.01291408 | E200: 49320529 | F200: 33050216.62 | G200: 67.01107488
A201: Prowadzenie publicznych szkół policealnych | B201: 2759 | C201: 2755.99 | D201: 99.8909025
A202: Dotacje dla niepublicznych szkół policealnych | B202: 49320529 | C202: 33050216.62 | D202: 67.01107488 | E202: 49320529 | F202: 33050216.62 | G202: 67.01107488
A203: Prowadzenie branżowych szkół I i II stopnia | B203: 25752272 | C203: 12211815.25 | D203: 47.4203412 | E203: 1100000 | F203: 0 | G203: 0
A204: Prowadzenie publicznych branżowych szkół I i II stopnia | B204: 24652272 | C204: 12211815.25 | D204: 49.53626688 | E204: 0
A205: Dotacje dla niepublicznych branżowych szkół I i II stopnia | B205: 1100000 | C205: 0 | D205: 0 | E205: 1100000 | F205: 0 | G205: 0
A206: Wyposażenie szkół w podręczniki, materiały edukacyjne lub materiały ćwiczeniowe | B206: 18986297 | C206: 4764375.96 | D206: 25.09376083 | E206: 4763032 | F206: 4763032 | G206: 100
... 250 more rows

Sheet Miasto.
A6: WYKONANIE WYDATKÓW BIEŻĄCYCH MIASTA STOŁECZNEGO WARSZAWY W UKŁADZIE ZADAŃ ZA I PÓŁROCZE 2023 ROKU
A7: WYDATKI MIASTO
A9: Wyszczególnienie | B9: Plan | E9: W tym Urząd
B10: Plan | C10: Wykonanie | D10: Wskaźnik % (kol. 3/2) | E10: Plan | F10: Wykonanie | G10: Wskaźnik % (kol. 6/5)
A11: 1 | B11: 2 | C11: 3 | D11: 4 | E11: 5 | F11: 6 | G11: 7
A12: OGÓŁEM | B12: 10177096166 | C12: =4120025317.71+39355.79-232.4 -> 4120064441 | D12: =C12/B12*100 -> 40.48369372 | E12: 4401043329 | F12: =1750234516.04+39355.79-232.4 -> 1750273639 | G12: =F12/E12*100 -> 39.76951619 | L12: =C12-C13-C40-C60-C93-C106-C159-C193-C237-C247-C260-C289 -> 0 | M12: =F12-F13-F40-F60-F93-F106-F159-F193-F237-F247-F260-F289 -> 0
A13: TRANSPORT I KOMUNIKACJA | B13: 4540354516 | C13: 1823204875 | D13: 40.15556206 | E13: 7578042 | F13: 2480386.48 | G13: 32.73123163
A14: Komunikacja zbiorowa | B14: 3982057729 | C14: 1623866962 | D14: 40.77959368 | E14: 6843720 | F14: 2353250 | G14: 34.38553886
A15: Zakup usług komunikacji miejskiej | B15: 3775554852 | C15: 1542514487 | D15: 40.85530597
A16: Metro Warszawskie | B16: 740749418 | C16: 316237549.4 | D16: 42.69156907
A17: Miejskie Zakłady Autobusowe | B17: 1102229662 | C17: 457172638.4 | D17: 41.47707634
A18: Pozostali przewoźnicy autobusowi | B18: 343639872 | C18: 146205371.6 | D18: 42.54610233
A19: Szybka Kolej Miejska | B19: 289130973 | C19: 110879995 | D19: 38.34940055
A20: Tramwaje Warszawskie | B20: 1063803342 | C20: 424960878.9 | D20: 39.94731565
A21: Pozostali przewoźnicy kolejowi | B21: 236001585 | C21: 87058053.63 | D21: 36.88875803
A22: Zarządzanie komunikacją miejską | B22: 187132135 | C22: 77013415.83 | D22: 41.15456484
A23: Utrzymanie Zarządu Transportu Miejskiego, w tym obsługa inwestycji | B23: 137935795 | C23: 61328548.15 | D23: 44.46166287
A24: Utrzymanie i obsługa systemu biletowego | B24: 20193087 | C24: 9343322.26 | D24: 46.26990544
A25: Organizacja komunikacji, marketing, nadzór i kontrola ruchu | B25: 29003253 | C25: 6341545.42 | D25: 21.86494536
A26: Utrzymanie infrastruktury przystankowej | B26: 12527022 | C26: 1985809.38 | D26: 15.85220637
A27: Opracowania i analizy związane z komunikacją miejską | B27: 6843720 | C27: 2353250 | D27: 34.38553886 | E27: 6843720 | F27: 2353250 | G27: 34.38553886
A28: Drogi i mosty | B28: 558296787 | C28: 199337913.2 | D28: 35.7046499 | E28: 734322 | F28: 127136.48 | G28: 17.31345105
A29: Utrzymanie i remonty dróg | B29: 138728445 | C29: 32570102.21 | D29: 23.47759481 | E29: 0
A30: Utrzymanie i remonty dróg w miastach na prawach powiatu | B30: 138728445 | C30: 32570102.21 | D30: 23.47759481 | E30: 0
A31: Utrzymanie i remonty obiektów mostowych | B31: 69956922 | C31: 9450150.66 | D31: 13.50852838
A32: Utrzymanie sygnalizacji świetlnej | B32: 53533804 | C32: 22981674.33 | D32: 42.92927573
A33: Utrzymanie sygnalizacji na drogach w miastach na prawach powiatu | B33: 53533804 | C33: 22981674.33 | D33: 42.92927573
A34: Oświetlenie ulic | B34: 109399794 | C34: 57873983.42 | D34: 52.90136416
A35: Iluminacje obiektów architektonicznych | B35: 1778000 | C35: 579820.19 | D35: 32.61080934
A36: Utrzymanie i remonty oświetlenia ulic, placów i dróg | B36: 107621794 | C36: 57294163.23 | D36: 53.23658072
A37: Opracowania i analizy związane z drogami | B37: 734322 | C37: 127136.48 | D37: 17.31345105 | E37: 734322 | F37: 127136.48 | G37: 17.31345105
A38: Zarządzanie drogami i obsługa inwestycji drogowych | B38: 131904243 | C38: 56548304.69 | D38: 42.87072455
A39: Gospodarowanie parkingami i węzłami komunikacyjnymi | B39: 54039257 | C39: 19786561.43 | D39: 36.61516188
A40: ŁAD PRZESTRZENNY I GOSPODARKA NIERUCHOMOŚCIAMI | B40: 176669177 | C40: 64460897.86 | D40: 36.48678222 | E40: 58847655 | F40: 6253790.82 | G40: 10.62708585
A41: Rewitalizacja | B41: 890756 | C41: 33210 | D41: 3.728293719 | E41: 890756 | F41: 33210 | G41: 3.728293719
A42: Rewitalizacja obszarów miejskich | B42: 890756 | C42: 33210 | D42: 3.728293719 | E42: 890756 | F42: 33210 | G42: 3.728293719
A43: Gospodarka przestrzenna | B43: 6161090 | C43: 978003.84 | D43: 15.87387686 | E43: 6161090 | F43: 978003.84 | G43: 15.87387686
A44: Prowadzenie polityki rozwoju przestrzennego | B44: 714000 | C44: 290558 | D44: 40.69439776 | E44: 714000 | F44: 290558 | G44: 40.69439776
A45: Plany zagospodarowania przestrzennego | B45: 3171260 | C45: 391249.21 | D45: 12.33734257 | E45: 3171260 | F45: 391249.21 | G45: 12.33734257
A46: Architektura, Urbanistyka i Zagospodarowanie Przestrzeni Publicznej | B46: 2275830 | C46: 296196.63 | D46: 13.0148838 | E46: 2275830 | F46: 296196.63 | G46: 13.0148838
A47: Mieszkaniowy zasób komunalny oraz pozostałe zadania związane z zapewnieniem lokali mieszkalnych | B47: 1239700 | C47: 17500 | D47: 1.411631846 | E47: 1239700 | F47: 17500 | G47: 1.411631846
A48: Opracowania i analizy związane z zarządzaniem zasobem komunalnym | B48: 1239700 | C48: 17500 | D48: 1.411631846 | E48: 1239700 | F48: 17500 | G48: 1.411631846
A49: Zadania związane z nabywaniem i sprzedażą nieruchomości | B49: 47877848 | C49: 4818706.87 | D49: 10.06458534 | E49: 47877848 | F49: 4818706.87 | G49: 10.06458534
A50: Przygotowanie nieruchomości komunalnych przeznaczonych m.in. do zbycia i zamiany | B50: 11437900 | C50: 1336440.7 | D50: 11.6843188 | E50: 11437900 | F50: 1336440.7 | G50: 11.6843188
A51: Regulacja stanów prawnych nieruchomości, w tym odszkodowania | B51: 36439948 | C51: 3482266.17 | D51: 9.55617766 | E51: 36439948 | F51: 3482266.17 | G51: 9.55617766
A52: Pozostały zasób komunalny | B52: 87749113 | C52: 41207491.85 | D52: 46.96057936 | E52: 2678261 | F52: 406370.11 | G52: 15.17290921
A53: Utrzymanie i rozwój aplikacji i baz danych przestrzennych | B53: 2678261 | C53: 406370.11 | D53: 15.17290921 | E53: 2678261 | F53: 406370.11 | G53: 15.17290921
A54: Zarządzanie pozostałymi nieruchomościami | B54: 85070852 | C54: 40801121.74 | D54: 47.96134138
A55: Zarządzanie mieniem Skarbu Państwa | B55: 32750670 | C55: 17405985.3 | D55: 53.14695944
A56: Eksploatacja zasobu Skarbu Państwa | B56: 9067003 | C56: 4976772.87 | D56: 54.88884111
A57: Remonty zasobu Skarbu Państwa | B57: 1679600 | C57: 562226.65 | D57: 33.47384199
A58: Gospodarowanie nieruchomościami Skarbu Państwa | B58: 17664079 | C58: 8955496.5 | D58: 50.69891558
A59: Rozliczenia ze wspólnotami mieszkaniowymi w nieruchomościach Skarbu Państwa, w tym zaliczka "A" i "B" | B59: 4339988 | C59: 2911489.28 | D59: 67.08519194
A60: GOSPODARKA KOMUNALNA I OCHRONA ŚRODOWISKA | B60: 1605940208 | C60: 645237367.8 | D60: 40.17816881 | E60: 1235398893 | F60: 506332969.4 | G60: 40.98538312
A61: Utrzymanie porządku i czystości | B61: 1375148290 | C61: 578719267.2 | D61: 42.08413532 | E61: 1168806380 | F61: 488063152.7 | G61: 41.75739977
A62: Oczyszczanie miasta | B62: 105679667 | C62: 44106651.06 | D62: 41.73617529
A63: Zimowe oczyszczanie ulic | B63: 56961352 | C63: 33891442.17 | D63: 59.49901289
A64: Letnie oczyszczanie ulic | B64: 48715000 | C64: 10215208.89 | D64: 20.96932955
A65: Oczyszczanie pozostałych terenów | B65: 3315 | C65: 0 | D65: 0
A66: Interwencyjne pogotowie oczyszczania | B66: 4759798 | C66: 1385849.03 | D66: 29.115711
A67: Opróżnianie i zakup koszy ulicznych | B67: 15994895 | C67: 5881343.58 | D67: 36.77012934
A68: Szalety miejskie i kabiny sanitarne | B68: 2750369 | C68: 690779.77 | D68: 25.11589427
A69: Zarządzanie oczyszczaniem miasta | B69: 30230249 | C69: 14393396.79 | D69: 47.61256445
A70: Gospodarka odpadami | B70: 1159416588 | C70: 485362775.7 | D70: 41.86267307 | E70: 1159416588 | F70: 485362775.7 | G70: 41.86267307
A71: Opracowania i analizy związane z ochroną środowiska i monitorowanie środowiska | B71: 4643792 | C71: 600329.14 | D71: 12.92756308 | E71: 4643792 | F71: 600329.14 | G71: 12.92756308
A72: Opracowanie mapy akustycznej | B72: 50000 | E72: 50000
A73: Zadania z zakresu bezdomności zwierząt w mieście | B73: 20192000 | C73: 10285449.29 | D73: 50.93823935 | E73: 4696000 | F73: 2100047.83 | G73: 44.71992824
A74: Miejski Ogród Zoologiczny | B74: 31430932 | C74: 16012692.87 | D74: 50.94565083
A75: Gospodarka ściekowa i ochrona wód | B75: 35486401 | C75: 14918938.47 | D75: 42.04128356 | E75: 30790000 | F75: 13948322.6 | G75: 45.30146996
A76: Utrzymanie i remonty sieci wodno-kanalizacyjnej | B76: 30190000 | C76: 13948322.6 | D76: 46.20179728 | E76: 30190000 | F76: 13948322.6 | G76: 46.20179728
A77: Opracowania związane z gospodarką wodno-ściekową | B77: 600000 | E77: 600000
A78: Utrzymanie i konserwacja urządzeń wodnych i innych zbiorników wodnych | B78: 4696401 | C78: 970615.87 | D78: 20.66722731
A79: Tereny zielone | B79: 161063709 | C79: 47355042.45 | D79: 29.40143546 | E79: 1593135 | F79: 96653 | G79: 6.066843048
A80: Utrzymanie i konserwacja zieleni | B80: 71878566 | C80: 24957195.72 | D80: 34.72133225 | E80: 989400 | F80: 76653 | G80: 7.74742268
A81: Utrzymanie i konserwacja zieleni przyulicznej | B81: 42262972 | C81: 8499574.41 | D81: 20.11116116
A82: Utrzymanie parków | B82: 29038381 | C82: 6183199.3 | D82: 21.29319572
A83: Utrzymanie lasów | B83: 17287055 | C83: 7695073.02 | D83: 44.5134988 | E83: 7000
A84: Opracowania związane z zielenią | B84: 596735 | C84: 20000 | D84: 3.351571468 | E84: 596735 | F84: 20000 | G84: 3.351571468
A85: Pozostałe zadania z zakresu gospodarki komunalnej | B85: 34241808 | C85: 4244119.66 | D85: 12.39455481 | E85: 34209378 | F85: 4224841.09 | G85: 12.34995003
A86: Składki na rzecz izb rolniczych | B86: 23000 | C86: 17144.7 | D86: 74.54217391 | E86: 23000 | F86: 17144.7 | G86: 74.54217391
A87: Utrzymanie i rozwój infrastruktury komunalnej | B87: 26300131 | C87: 2323673.47 | D87: 8.835216334 | E87: 26300131 | F87: 2323673.47 | G87: 8.835216334
A88: Planowanie rozwoju i monitorowanie funkcjonowania systemu zaopatrzenia w ciepło, paliwa gazowe i energię elektryczną | B88: 26300131 | C88: 2323673.47 | D88: 8.835216334 | E88: 26300131 | F88: 2323673.47 | G88: 8.835216334
A89: Zadania z zakresu cmentarnictwa | B89: 4455000 | C89: 1460307.01 | D89: 32.77905746 | E89: 4455000 | F89: 1460307.01 | G89: 32.77905746
A90: Zarząd Cmentarzy Komunalnych | B90: 1850000 | C90: 198309.01 | D90: 10.71940595 | E90: 1850000 | F90: 198309.01 | G90: 10.71940595
A91: Pozostałe zadania z zakresu cmentarnictwa | B91: 2605000 | C91: 1261998 | D91: 48.44522073 | E91: 2605000 | F91: 1261998 | G91: 48.44522073
A92: Przedsięwzięcia ekologiczne | B92: 3463677 | C92: 442994.48 | D92: 12.78971682 | E92: 3431247 | F92: 423715.91 | G92: 12.34874406
A93: BEZPIECZEŃSTWO I PORZĄDEK PUBLICZNY | B93: 258366563 | C93: 123002321.2 | D93: 47.60767792 | E93: 4287000 | F93: 1197902.52 | G93: 27.942676
A94: Obrona narodowa i cywilna | B94: 93000 | E94: 93000
A95: Obrona cywilna | B95: 40000 | E95: 40000
A96: Rekompensaty dla żołnierzy rezerwy oraz pozostałe świadczenia | B96: 53000 | E96: 53000
A97: Ochrona przeciwpożarowa | B97: 1800000 | C97: 429902.52 | D97: 23.88347333 | E97: 1800000 | F97: 429902.52 | G97: 23.88347333
A98: Ochotnicze Straże Pożarne | B98: 1800000 | C98: 429902.52 | D98: 23.88347333 | E98: 1800000 | F98: 429902.52 | G98: 23.88347333
A99: Poprawa bezpieczeństwa | B99: 256473563 | C99: 122572418.7 | D99: 47.79144377 | E99: 2394000 | F99: 768000 | G99: 32.0802005
A100: Zapewnienie porządku i bezpieczeństwa | B100: 221306202 | C100: 105535086.8 | D100: 47.68736068
A101: Zapewnienie sprawności systemu monitoringu | B101: 21502297 | C101: 10867531.26 | D101: 50.54125734
A102: Dofinansowanie działań realizowanych przez Policję | B102: 2394000 | C102: 768000 | D102: 32.0802005 | E102: 2394000 | F102: 768000 | G102: 32.0802005
A103: Patrole ponadnormatywne | B103: 2304000 | C103: 768000 | D103: 33.33333333 | E103: 2304000 | F103: 768000 | G103: 33.33333333
A104: Nagrody dla funkcjonariuszy | B104: 90000 | E104: 90000
A105: Pobyt osób w Stołecznym Ośrodku dla Osób Nietrzeźwych | B105: 11271064 | C105: 5401800.63 | D105: 47.92627058
A106: EDUKACJA | B106: 144558254 | C106: 57065588.17 | D106: 39.47584215 | E106: 139151708 | F106: 54426933.44 | G106: 39.11337793
A107: Oświata i edukacyjna opieka wychowawcza | B107: 96274293 | C107: 44135862.12 | D107: 45.84387041 | E107: 93050126 | F107: 42545214.27 | G107: 45.72289808
A108: Prowadzenie przedszkoli i innych form wychowania przedszkolnego | B108: 8901530 | C108: 2487707.89 | D108: 27.94696968 | E108: 8901530 | F108: 2487707.89 | G108: 27.94696968
A109: Prowadzenie publicznych przedszkoli i innych form wychowania przedszkolnego | B109: 8870530 | C109: 2487707.89 | D109: 28.04463645 | E109: 8870530 | F109: 2487707.89 | G109: 28.04463645
A110: Dotacje dla niepublicznych przedszkoli i innych form wychowania przedszkolnego | B110: 31000 | E110: 31000
A111: Prowadzenie oddziałów "0" w szkołach podstawowych | B111: 50000 | E111: 50000
A112: Prowadzenie publicznych oddziałów "0" w szkołach podstawowych | B112: 50000 | E112: 50000
A113: Prowadzenie szkół podstawowych | B113: 850000 | E113: 850000
A114: Dotacje dla niepublicznych szkół podstawowych | B114: 850000 | E114: 850000
A115: Prowadzenie szkół podstawowych specjalnych | B115: 25318380 | C115: 15102023.46 | D115: 59.64845879 | E115: 25254062 | F115: 15053632.45 | G115: 59.608757
A116: Prowadzenie publicznych szkół podstawowych specjalnych | B116: 64318 | C116: 48391.01 | D116: 75.23711869
A117: Dotacje dla niepublicznych szkół podstawowych specjalnych | B117: 25254062 | C117: 15053632.45 | D117: 59.608757 | E117: 25254062 | F117: 15053632.45 | G117: 59.608757
A118: Prowadzenie liceów ogólnokształcących | B118: 4213500 | E118: 4213500
A119: Dotacje dla niepublicznych liceów ogólnokształcących | B119: 4213500 | E119: 4213500
A120: Prowadzenie liceów ogólnokształcących specjalnych | B120: 940000 | C120: 474671.52 | D120: 50.49697021 | E120: 940000 | F120: 474671.52 | G120: 50.49697021
A121: Dotacje dla niepublicznych liceów ogólnokształcących specjalnych | B121: 940000 | C121: 474671.52 | D121: 50.49697021 | E121: 940000 | F121: 474671.52 | G121: 50.49697021
A122: Prowadzenie szkół zawodowych specjalnych | B122: 5430000 | C122: 3417952.91 | D122: 62.94572578 | E122: 5430000 | F122: 3417952.91 | G122: 62.94572578
A123: Dotacje dla niepublicznych szkół zawodowych specjalnych | B123: 5430000 | C123: 3417952.91 | D123: 62.94572578 | E123: 5430000 | F123: 3417952.91 | G123: 62.94572578
A124: Prowadzenie specjalnych ośrodków wychowawczych | B124: 7470000 | C124: 4281576.5 | D124: 57.31695448 | E124: 7470000 | F124: 4281576.5 | G124: 57.31695448
A125: Dotacje dla niepublicznych specjalnych ośrodków wychowawczych | B125: 7470000 | C125: 4281576.5 | D125: 57.31695448 | E125: 7470000 | F125: 4281576.5 | G125: 57.31695448
A126: Prowadzenie publicznych poradni psychologiczno-pedagogicznych | B126: 2038602 | C126: 934639.34 | D126: 45.84707265 | E126: 0
A127: Prowadzenie internatów i burs szkolnych | B127: 20000 | E127: 20000
A128: Dotacje dla niepublicznych internatów i burs szkolnych | B128: 20000 | E128: 20000
A129: Prowadzenie placówek wychowania pozaszkolnego | B129: 9495298 | C129: 5423178.03 | D129: 57.11435313 | E129: 9100000 | F129: 5092357.53 | G129: 55.95997286
A130: Prowadzenie publicznych placówek wychowania pozaszkolnego | B130: 395298 | C130: 330820.5 | D130: 83.68888788
A131: Dotacje dla niepublicznych placówek wychowania pozaszkolnego | B131: 9100000 | C131: 5092357.53 | D131: 55.95997286 | E131: 9100000 | F131: 5092357.53 | G131: 55.95997286
A132: Prowadzenie ośrodków rewalidacyjno-wychowawczych | B132: 6260000 | C132: 3399821.03 | D132: 54.3102401 | E132: 6260000 | F132: 3399821.03 | G132: 54.3102401
A133: Dotacje dla niepublicznych ośrodków rewalidacyjno-wychowawczych | B133: 6260000 | C133: 3399821.03 | D133: 54.3102401 | E133: 6260000 | F133: 3399821.03 | G133: 54.3102401
A134: Prowadzenie młodzieżowych ośrodków wychowawczych | B134: 4580000 | C134: 2109342.01 | D134: 46.0555024 | E134: 4580000 | F134: 2109342.01 | G134: 46.0555024
A135: Dotacje dla niepublicznych młodzieżowych ośrodków wychowawczych | B135: 4580000 | C135: 2109342.01 | D135: 46.0555024 | E135: 4580000 | F135: 2109342.01 | G135: 46.0555024
A136: Remonty w przedszkolach, szkołach i placówkach oświatowych | B136: 18949 | C136: 4797 | D136: 25.31532007
A137: Wczesne wspomaganie rozwoju dziecka | B137: 9105334 | C137: 5252054.91 | D137: 57.68107913 | E137: 9105334 | F137: 5252054.91 | G137: 57.68107913
A138: Prowadzenie ośrodków szkolenia, dokształcania i doskonalenia kadr | B138: 707000 | C138: 272000 | D138: 38.47241867
A139: Warszawskie Centrum Innowacji Edukacyjno - Społecznych i Szkoleń | B139: 707000 | C139: 272000 | D139: 38.47241867
A140: Realizacja zadań wymagających stosowania specjalnej organizacji nauki i metod pracy | B140: 10675700 | C140: 976097.52 | D140: 9.143171127 | E140: 10675700 | F140: 976097.52 | G140: 9.143171127
A141: Dotacje dla podmiotów niepublicznych realizujących zadania wymagające stosowania specjalnej nauki organizacji i metod pracy | B141: 10675700 | C141: 976097.52 | D141: 9.143171127 | E141: 10675700 | F141: 976097.52 | G141: 9.143171127
A142: Kwalifikacyjne kursy zawodowe | B142: 200000 | E142: 200000
A143: Dotacje dla placówek niepublicznych na prowadzenie kwalifikacyjnych kursów zawodowych | B143: 200000 | E143: 200000
A144: Pozostałe zadania z zakresu oświaty i wychowania | B144: 48283961 | C144: 12929726.05 | D144: 26.7785115 | E144: 46101582 | F144: 11881719.17 | G144: 25.77290985
A145: Postępowania związane z awansem zawodowym nauczycieli | B145: 29200 | E145: 29200
A146: Dokształcanie i doskonalenie nauczycieli | B146: 1095319 | C146: 0 | D146: 0 | E146: 1095319
A147: Nagrody dla nauczycieli | B147: 1576519 | E147: 1576519
A148: Organizacja olimpiad, konkursów i uroczystości szkolnych oraz realizacja programów o charakterze innowacyjnym | B148: 529760 | C148: 40492 | D148: 7.64346119 | E148: 411747 | F148: 23444 | G148: 5.69378769
A149: Wypoczynek dzieci i młodzieży szkolnej | B149: 2369424 | C149: 19138 | D149: 0.807706852 | E149: 2352000 | F149: 1714 | G149: 0.07287415
A150: Pomoc materialna dla uczniów, studentów i doktorantów | B150: 2868999 | C150: 1482663 | D150: 51.67875625 | E150: 2832000 | F150: 1445664 | G150: 51.04745763
A151: Dożywianie uczniów | B151: 36999 | C151: 36999 | D151: 100 | E151: 0
A152: Stypendia JPII | B152: 2200000 | C152: 1376164 | D152: 62.55290909 | E152: 2200000 | F152: 1376164 | G152: 62.55290909
A153: Stypendia edukacyjne Prezydenta m.st. Warszawy | B153: 437000 | E153: 437000
A154: Stypendia doktoranckie | B154: 195000 | C154: 69500 | D154: 35.64102564 | E154: 195000 | F154: 69500 | G154: 35.64102564
A155: Realizacja programów edukacyjno-oświatowych (w tym UE) | B155: 12831920 | C155: 5131754.4 | D155: 39.99210095 | E155: 10821977 | F155: 4155218.52 | G155: 38.39611302
A156: Programy edukacyjno - oświatowe | B156: 10430255 | C156: 4547812.83 | D156: 43.60212507 | E156: 9712554 | F156: 4018218.52 | G156: 41.37138924
A157: Projekty edukacyjno - oświatowe realizowane w ramach programów Unii Europejskiej | B157: 2401665 | C157: 583941.57 | D157: 24.31403089 | E157: 1109423 | F157: 137000 | G157: 12.34876147
A158: Inne zadania (utrzymanie związków zawodowych, wypłata zasądzonych rent za zlikwidowanie jednostki) | B158: 26982820 | C158: 6255678.65 | D158: 23.18393204 | E158: 26982820 | F158: 6255678.65 | G158: 23.18393204
A159: OCHRONA ZDROWIA I POLITYKA SPOŁECZNA | B159: 690009416 | C159: 325869165.3 | D159: 47.22677079 | E159: 303181511 | F159: 143995385.2 | G159: 47.49477787
A160: Programy zdrowotne | B160: 94119551 | C160: 39408502.79 | D160: 41.8706872 | E160: 82978775 | F160: 37089856.7 | G160: 44.69800464
A161: Programy promocji zdrowia i profilaktyki | B161: 36275760 | C161: 11388768.5 | D161: 31.39498249 | E161: 36275760 | F161: 11388768.5 | G161: 31.39498249
A162: Programy opieki paliatywnej | B162: 2500000 | C162: 1666481 | D162: 66.65924 | E162: 2500000 | F162: 1666481 | G162: 66.65924
A163: Edukacja zdrowotna społeczeństwa | B163: 1380240 | C163: 195403.61 | D163: 14.15721976 | E163: 1380240 | F163: 195403.61 | G163: 14.15721976
A164: Programy zapobiegania i zwalczania AIDS | B164: 1365500 | C164: 1010300 | D164: 73.98755035 | E164: 1365500 | F164: 1010300 | G164: 73.98755035
A165: Programy w zakresie przeciwdziałania narkomanii | B165: 1508470 | C165: 1508470 | D165: 100 | E165: 1508470 | F165: 1508470 | G165: 100
A166: Miejski Program Profilaktyki i Rozwiązywania Problemów Alkoholowych | B166: 51089581 | C166: 23639079.68 | D166: 46.26986407 | E166: 39948805 | F166: 21320433.59 | G166: 53.36939012
A167: Miejski Program Profilaktyki i Rozwiązywania Problemów Alkoholowych | B167: 51089581 | C167: 23639079.68 | D167: 46.26986407 | E167: 39948805 | F167: 21320433.59 | G167: 53.36939012
A168: Podmioty lecznicze | B168: 12373867 | C168: 333803.31 | D168: 2.697647469 | E168: 12373867 | F168: 333803.31 | G168: 2.697647469
A169: Remonty podmiotów leczniczych | B169: 2160000 | C169: 152151 | D169: 7.044027778 | E169: 2160000 | F169: 152151 | G169: 7.044027778
A170: Rozliczenia z podmiotami leczniczymi | B170: 10213867 | C170: 181652.31 | D170: 1.778487129 | E170: 10213867 | F170: 181652.31 | G170: 1.778487129
A171: Rozliczenia związane z likwidacją podmiotów leczniczych | B171: 5000 | C171: 2402.31 | D171: 48.0462 | E171: 5000 | F171: 2402.31 | G171: 48.0462
A172: Rozliczenia związane z przekształcaniem podmiotów leczniczych | B172: 8500 | E172: 8500
A173: Pokrycie straty netto | B173: 9747367 | E173: 9747367
A174: Pozostałe zadania realizowane przez podmioty lecznicze | B174: 453000 | C174: 179250 | D174: 39.56953642 | E174: 453000 | F174: 179250 | G174: 39.56953642
A175: Polityka społeczna | B175: 575211297 | C175: 282653834.2 | D175: 49.13913125 | E175: 199524168 | F175: 103098700.2 | G175: 51.67228673
A176: Poradnictwo, mieszkania chronione i ośrodki interwencji kryzysowej oraz usługi specjalistyczne | B176: 76982381 | C176: 35224508.57 | D176: 45.75658497 | E176: 5312511 | F176: 3331114.16 | G176: 62.70319553
A177: Pomoc osobom niepełnosprawnym | B177: 23022001 | C177: 12859305.8 | D177: 55.85659474 | E177: 15308855 | F177: 10401844.39 | G177: 67.9465864
A178: Opieka nad dziećmi w wieku do lat 3 | B178: 367416864 | C178: 175143815 | D178: 47.66896465 | E178: 126050000 | F178: 57958559 | G178: 45.98061008
A179: Zespół Żłobków | B179: 241366864 | C179: 117185256 | D179: 48.55068094
A180: Zadania z zakresu opieki nad dziećmi | B180: 126050000 | C180: 57958559 | D180: 45.98061008 | E180: 126050000 | F180: 57958559 | G180: 45.98061008
A181: Pomoc dla repatriantów oraz dla uchodźców, w tym pomoc dla obywateli Ukrainy | B181: 36395861 | C181: 22984807.44 | D181: 63.15225635 | E181: 13377820 | F181: 8933446.18 | G181: 66.77804142
A182: Zapewnienie opieki osobom przebywającym i dochodzącym w jednostkach pomocy społecznej | B182: 2585851 | C182: 969339.4 | D182: 37.48628208
A183: Zapewnienie pomocy, opieki i wychowania dzieciom i młodzieży pozbawionym opieki rodziców | B183: 2825789 | C183: 1751579.5 | D183: 61.9855021 | E183: 1565789 | F183: 1426079.9 | G183: 91.07739932
A184: Wspieranie inicjatyw społecznych na rzecz zaspokajania potrzeb życiowych osób i rodzin | B184: 55660035 | C184: 30599920.77 | D184: 54.97646699 | E184: 35525769 | F184: 21047656.55 | G184: 59.24616734
A185: Dożywianie | B185: 7939091 | C185: 3120557.69 | D185: 39.30623405
A186: Realizacja programu "Posiłek w szkole i w domu" | B186: 2333611 | C186: 702183.18 | D186: 30.08998415
A187: Pozostałe zadania z zakresu dożywiania | B187: 5605480 | C187: 2418374.51 | D187: 43.14304056
A188: Wspomaganie i rozwój usług społecznych | B188: 2383424 | E188: 2383424
A189: Wypłata świadczeń i zasiłków oraz pomoc w naturze | B189: 8304701 | C189: 3473025 | D189: 41.81998846 | E189: 8304701 | F189: 3473025 | G189: 41.81998846
A190: Zasiłki i pomoc w naturze | B190: 6502049 | C190: 3473025 | D190: 53.41431601 | E190: 6502049 | F190: 3473025 | G190: 53.41431601
A191: Świadczenia rodzinne, wychowawcze i z funduszu alimentacyjnego | B191: 10000 | E191: 10000
A192: Dodatki mieszkaniowe i energetyczne | B192: 1792652 | E192: 1792652
A193: KULTURA I OCHRONA DZIEDZICTWA KULTUROWEGO | B193: 347879483 | C193: 172947364 | D193: 49.71473526 | E193: 347879483 | F193: 172947364 | G193: 49.71473526
A194: Upowszechnianie kultury i tradycji | B194: 49640572 | C194: 28533512.3 | D194: 57.48022464 | E194: 49640572 | F194: 28533512.3 | G194: 57.48022464
A195: Przedsięwzięcia artystyczne i kulturalne | B195: 49640572 | C195: 28533512.3 | D195: 57.48022464 | E195: 49640572 | F195: 28533512.3 | G195: 57.48022464
A196: Ochrona i konserwacja obiektów zabytkowych | B196: 16331618 | C196: 879755.68 | D196: 5.386824992 | E196: 16331618 | F196: 879755.68 | G196: 5.386824992
A197: Prace konserwatorskie | B197: 14739083 | C197: 258863 | D197: 1.756303292 | E197: 14739083 | F197: 258863 | G197: 1.756303292
A198: Ochrona zabytków i opieka nad zabytkami | B198: 1592535 | C198: 620892.68 | D198: 38.98769446 | E198: 1592535 | F198: 620892.68 | G198: 38.98769446
A199: Działalność kulturalna | B199: 281507293 | C199: 143534096 | D199: 50.9877007 | E199: 281507293 | F199: 143534096 | G199: 50.9877007
A200: Prowadzenie działalności kulturalnej przez teatry | B200: 134736162 | C200: 68792521 | D200: 51.0572069 | E200: 134736162 | F200: 68792521 | G200: 51.0572069
A201: Teatr Studio im. Stanisława Ignacego Witkiewicza | B201: 11578061 | C201: 6160000 | D201: 53.20407277 | E201: 11578061 | F201: 6160000 | G201: 53.20407277
A202: Teatr Ateneum im. Stefana Jaracza | B202: 10535000 | C202: 5100000 | D202: 48.4100617 | E202: 10535000 | F202: 5100000 | G202: 48.4100617
A203: Teatr Baj | B203: 5170000 | C203: 2695000 | D203: 52.12765957 | E203: 5170000 | F203: 2695000 | G203: 52.12765957
A204: Teatr Dramatyczny im. Gustawa Holoubka | B204: 17689290 | C204: 9789290 | D204: 55.34020868 | E204: 17689290 | F204: 9789290 | G204: 55.34020868
A205: Teatr Lalek Guliwer | B205: 4825000 | C205: 2525000 | D205: 52.33160622 | E205: 4825000 | F205: 2525000 | G205: 52.33160622
A206: Północne Centrum Sztuki Teatr Komedia | B206: 2820000 | C206: 1240000 | D206: 43.97163121 | E206: 2820000 | F206: 1240000 | G206: 43.97163121
... 113 more rows

Sheet Powiat.
A6: WYKONANIE WYDATKÓW BIEŻĄCYCH MIASTA STOŁECZNEGO WARSZAWY W UKŁADZIE ZADAŃ ZA I PÓŁROCZE 2023 ROKU
A7: WYDATKI POWIAT
A9: Wyszczególnienie | B9: Plan | E9: W tym Urząd
B10: Plan | C10: Wykonanie | D10: Wskaźnik % (kol. 3/2) | E10: Plan | F10: Wykonanie | G10: Wskaźnik % (kol. 6/5)
A11: 1 | B11: 2 | C11: 3 | D11: 4 | E11: 5 | F11: 6 | G11: 7
A12: OGÓŁEM | B12: 1913823059 | C12: 956526782.1 | D12: 49.97989639 | E12: 947532642 | F12: 466251785.9 | G12: 49.20693655
A13: ŁAD PRZESTRZENNY I GOSPODARKA NIERUCHOMOŚCIAMI | B13: 20496604 | C13: 11058371.85 | D13: 53.95221496 | E13: 11430261 | F13: 5896738.46 | G13: 51.58883476
A14: Gospodarka przestrzenna | B14: 9066343 | C14: 5161633.39 | D14: 56.93181242
A15: Nadzór nad przestrzeganiem prawa budowlanego | B15: 9066343 | C15: 5161633.39 | D15: 56.93181242
A16: Zadania związane z nabywaniem i sprzedażą nieruchomości | B16: 6264920 | C16: 3618537.83 | D16: 57.75872365 | E16: 6264920 | F16: 3618537.83 | G16: 57.75872365
A17: Regulacja stanów prawnych nieruchomości, w tym odszkodowania | B17: 6264920 | C17: 3618537.83 | D17: 57.75872365 | E17: 6264920 | F17: 3618537.83 | G17: 57.75872365
A18: Pozostały zasób komunalny | B18: 5165341 | C18: 2278200.63 | D18: 44.10552236 | E18: 5165341 | F18: 2278200.63 | G18: 44.10552236
A19: Prowadzenie zasobu geodezyjnego i kartograficznego | B19: 5165341 | C19: 2278200.63 | D19: 44.10552236 | E19: 5165341 | F19: 2278200.63 | G19: 44.10552236
A20: BEZPIECZEŃSTWO I PORZĄDEK PUBLICZNY | B20: 141092119 | C20: 76542848.83 | D20: 54.25026527 | E20: 4766082 | F20: 620635.67 | G20: 13.02192598
A21: Obrona narodowa i cywilna | B21: 1044110 | C21: 374511.78 | D21: 35.86899656 | E21: 1044110 | F21: 374511.78 | G21: 35.86899656
A22: Kwalifikacja wojskowa | B22: 1044110 | C22: 374511.78 | D22: 35.86899656 | E22: 1044110 | F22: 374511.78 | G22: 35.86899656
A23: Ochrona przeciwpożarowa | B23: 127566037 | C23: 72076550.6 | D23: 56.50136376
A24: Komenda Miejska Państwowej Straży Pożarnej | B24: 127566037 | C24: 72076550.6 | D24: 56.50136376
A25: Poprawa bezpieczeństwa | B25: 12481972 | C25: 4091786.45 | D25: 32.78157049 | E25: 3721972 | F25: 246123.89 | G25: 6.612728145
A26: Realizacja programów prewencyjnych | B26: 402400 | C26: 110075.01 | D26: 27.35462475 | E26: 402400 | F26: 110075.01 | G26: 27.35462475
A27: Zarządzanie kryzysowe | B27: 322038 | C27: 10481.7 | D27: 3.254802228 | E27: 322038 | F27: 10481.7 | G27: 3.254802228
A28: Holowanie i usuwanie pojazdów | B28: 9357534 | C28: 3971229.74 | D28: 42.43884917 | E28: 597534 | F28: 125567.18 | G28: 21.01423183
A29: Dofinansowanie działań realizowanych przez Komendę Miejską Państwowej Straży Pożarnej | B29: 2400000 | E29: 2400000
A30: EDUKACJA | B30: 407452681 | C30: 203328737.2 | D30: 49.9024173 | E30: 603690 | F30: 322095.57 | G30: 53.35446504
A31: Oświata i edukacyjna opieka wychowawcza | B31: 383530126 | C31: 192428539.3 | D31: 50.17299196 | E31: 596069 | F31: 322095.57 | G31: 54.03662495
A32: Prowadzenie przedszkoli specjalnych | B32: 11074323 | C32: 6713995.84 | D32: 60.6266933
A33: Prowadzenie publicznych przedszkoli specjalnych | B33: 11074323 | C33: 6713995.84 | D33: 60.6266933
A34: Prowadzenie szkół podstawowych specjalnych | B34: 152403380 | C34: 78444147.87 | D34: 51.47139642 | E34: 207201 | F34: 78100.19 | G34: 37.69295998
A35: Prowadzenie publicznych szkół podstawowych specjalnych | B35: 152196179 | C35: 78366047.68 | D35: 51.49015448
A36: Dotacje dla niepublicznych szkół podstawowych specjalnych | B36: 207201 | C36: 78100.19 | D36: 37.69295998 | E36: 207201 | F36: 78100.19 | G36: 37.69295998
A37: Prowadzenie liceów ogólnokształcących specjalnych | B37: 13539058 | C37: 8149193.57 | D37: 60.19025526
A38: Prowadzenie publicznych liceów ogólnokształcących specjalnych | B38: 13539058 | C38: 8149193.57 | D38: 60.19025526
A39: Prowadzenie szkół zawodowych specjalnych | B39: 47431149 | C39: 23833981.2 | D39: 50.24963911
A40: Prowadzenie publicznych szkół zawodowych specjalnych | B40: 47431149 | C40: 23833981.2 | D40: 50.24963911
A41: Prowadzenie specjalnych ośrodków wychowawczych | B41: 2627934 | C41: 1282615.73 | D41: 48.80699934
A42: Prowadzenie publicznych specjalnych ośrodków wychowawczych | B42: 2627934 | C42: 1282615.73 | D42: 48.80699934
A43: Prowadzenie specjalnych ośrodków szkolno-wychowawczych | B43: 24316751 | C43: 11567665.14 | D43: 47.57076774
A44: Prowadzenie publicznych specjalnych ośrodków szkolno-wychowawczych | B44: 24316751 | C44: 11567665.14 | D44: 47.57076774
A45: Prowadzenie publicznych poradni psychologiczno-pedagogicznych | B45: 11332664 | C45: 5876738.46 | D45: 51.85663724
A46: Prowadzenie internatów i burs szkolnych | B46: 11385110 | C46: 4886560.67 | D46: 42.92062764
A47: Prowadzenie publicznych internatów i burs szkolnych | B47: 11385110 | C47: 4886560.67 | D47: 42.92062764
A48: Prowadzenie świetlic szkolnych | B48: 8798190 | C48: 4915232.54 | D48: 55.86640593
A49: Prowadzenie placówek wychowania pozaszkolnego | B49: 41524303 | C49: 19732561.39 | D49: 47.520512 | E49: 114611 | F49: 56136.73 | G49: 48.98022877
A50: Prowadzenie publicznych placówek wychowania pozaszkolnego | B50: 28028745 | C50: 13936648.37 | D50: 49.7226985
A51: Dotacje dla niepublicznych placówek wychowania pozaszkolnego | B51: 114611 | C51: 56136.73 | D51: 48.98022877 | E51: 114611 | F51: 56136.73 | G51: 48.98022877
A52: Pozaszkolna Placówka Specjalistyczna - Młodzieżowy Ośrodek Wypoczynkowy w Gawrych Rudzie | B52: 1643377 | C52: 777179.63 | D52: 47.29162146
A53: Pozaszkolna Placówka Specjalistyczna - Szkolny Ośrodek Wypoczynkowy "Orle Gniazdo" w Sromowcach Wyżnych | B53: 2107798 | C53: 1135554.79 | D53: 53.87398555
A54: Pozaszkolna Placówka Specjalistyczna - Szkolny Ośrodek Wypoczynkowy "Syrenka" w Marózie | B54: 2459100 | C54: 1228088.58 | D54: 49.94057094
A55: Pozaszkolna Placówka Specjalistyczna - Ośrodek Rehabilitacyjno - Wypoczynkowy "Syrena" w Mielnie | B55: 5489719 | C55: 1787580.57 | D55: 32.56233279
A56: Pozaszkolna Placówka Specjalistyczna - Ośrodek Oświatowo - Szkoleniowy "Arkadia" w Kazimierzu Dolnym | B56: 1680953 | C56: 811372.72 | D56: 48.26861429
A57: Prowadzenie ośrodków rewalidacyjno-wychowawczych | B57: 2454236 | C57: 1603405.37 | D57: 65.33215917 | E57: 50464 | F57: 27236.97 | G57: 53.97306991
A58: Prowadzenie publicznych ośrodków rewalidacyjno-wychowawczych | B58: 2403772 | C58: 1576168.4 | D58: 65.57062816
A59: Dotacje dla niepublicznych ośrodków rewalidacyjno-wychowawczych | B59: 50464 | C59: 27236.97 | D59: 53.97306991 | E59: 50464 | F59: 27236.97 | G59: 53.97306991
A60: Prowadzenie młodzieżowych ośrodków wychowawczych | B60: 10528617 | C60: 5187881.75 | D60: 49.27410457
A61: Prowadzenie publicznych młodzieżowych ośrodków wychowawczych | B61: 10528617 | C61: 5187881.75 | D61: 49.27410457
A62: Prowadzenie młodzieżowych ośrodków socjoterapii | B62: 25436703 | C62: 13651931.5 | D62: 53.67020836
A63: Prowadzenie publicznych młodzieżowych ośrodków socjoterapii | B63: 25436703 | C63: 13651931.5 | D63: 53.67020836
A64: Remonty w przedszkolach, szkołach i placówkach oświatowych | B64: 6941015 | C64: 761127.01 | D64: 10.96564422
A65: Zajęcia dla uczniów na basenach i w halach sportowych | B65: 196175 | C65: 115862.38 | D65: 59.06072639
A66: Dowożenie uczniów do szkół | B66: 25000 | C66: 11999.73 | D66: 47.99892
A67: Prowadzenie stołówek szkolnych i przedszkolnych | B67: 1546875 | C67: 666327.45 | D67: 43.07571394
A68: Wczesne wspomaganie rozwoju dziecka | B68: 2755774 | C68: 1076981.16 | D68: 39.0808956 | E68: 17921 | F68: 7511.59 | G68: 41.9150159
A69: Prowadzenie ośrodków szkolenia, dokształcania i doskonalenia kadr | B69: 8364530 | C69: 3796524.16 | D69: 45.388374
A70: Warszawskie Centrum Innowacji Edukacyjno - Społecznych i Szkoleń | B70: 8364530 | C70: 3796524.16 | D70: 45.388374
A71: Realizacja zadań wymagających stosowania specjalnej organizacji nauki i metod pracy | B71: 83903 | C71: 31141.09 | D71: 37.11558585 | E71: 83903 | F71: 31141.09 | G71: 37.11558585
A72: Dotacje dla podmiotów niepublicznych realizujących zadania wymagające stosowania specjalnej nauki organizacji i metod pracy | B72: 83903 | C72: 31141.09 | D72: 37.11558585 | E72: 83903 | F72: 31141.09 | G72: 37.11558585
A73: Wyposażenie szkół w podręczniki, materiały edukacyjne lub materiały ćwiczeniowe | B73: 764436 | C73: 122665.26 | D73: 16.04650487 | E73: 121969 | F73: 121969 | G73: 100
A74: Wyposażenie szkół publicznych w podręczniki, materiały edukacyjne lub materiały ćwiczeniowe | B74: 642467 | C74: 696.26 | D74: 0.108372881
A75: Dotacje na sfinansowanie wyposażenia placówek niepublicznych w podręczniki lub materiały ćwiczeniowe | B75: 121969 | C75: 121969 | D75: 100 | E75: 121969 | F75: 121969 | G75: 100
A76: Pozostałe zadania z zakresu oświaty i wychowania | B76: 23922555 | C76: 10900197.91 | D76: 45.56452231 | E76: 7621
A77: Zarządzanie finansami oświaty | B77: 9530095 | C77: 4995320.09 | D77: 52.41626752
A78: Dokształcanie i doskonalenie nauczycieli | B78: 7875130 | C78: 2383201.63 | D78: 30.26237827
A79: Fundusz socjalny dla emerytowanych pracowników oświaty | B79: 2148817 | C79: 1679490.63 | D79: 78.1588488
A80: Organizacja olimpiad, konkursów i uroczystości szkolnych oraz realizacja programów o charakterze innowacyjnym | B80: 303588 | C80: 174465.9 | D80: 57.46798292
A81: Wypoczynek dzieci i młodzieży szkolnej | B81: 933654 | C81: 238336.09 | D81: 25.52723921
A82: Pomoc materialna dla uczniów, studentów i doktorantów | B82: 264209 | C82: 149123.4 | D82: 56.44145355
A83: Stypendia za wyniki w nauce | B83: 61051 | C83: 35084 | D83: 57.46670816
A84: Dożywianie uczniów | B84: 203158 | C84: 114039.4 | D84: 56.13335433
A85: Realizacja programów edukacyjno-oświatowych (w tym UE) | B85: 774959 | C85: 582577 | D85: 75.17520282
A86: Programy edukacyjno - oświatowe | B86: 18220 | C86: 3748.92 | D86: 20.57585071
A87: Projekty edukacyjno - oświatowe realizowane w ramach programów Unii Europejskiej | B87: 756739 | C87: 578828.08 | D87: 76.48979106
A88: Inne zadania (utrzymanie związków zawodowych, wypłata zasądzonych rent za zlikwidowanie jednostki) | B88: 2092103 | C88: 697683.17 | D88: 33.34841401 | E88: 7621
A89: OCHRONA ZDROWIA I POLITYKA SPOŁECZNA | B89: 453765022 | C89: 222965034.2 | D89: 49.13667282 | E89: 39715976 | F89: 16780526.22 | G89: 42.25132531
A90: Polityka społeczna | B90: 453734666 | C90: 222946527.2 | D90: 49.13588136 | E90: 39715976 | F90: 16780526.22 | G90: 42.25132531
A91: Poradnictwo, mieszkania chronione i ośrodki interwencji kryzysowej oraz usługi specjalistyczne | B91: 9546613 | C91: 4812394.23 | D91: 50.40944081 | E91: 3577386 | F91: 2267304.74 | G91: 63.37881179
A92: Pomoc bezrobotnym, aktywizacja zawodowa | B92: 34507000 | C92: 14444840.47 | D92: 41.86060936
A93: Zadania z zakresu pomocy bezrobotnym | B93: 34507000 | C93: 14444840.47 | D93: 41.86060936
A94: Pomoc osobom niepełnosprawnym | B94: 1621053 | C94: 1480648.97 | D94: 91.3387144 | E94: 1367260 | F94: 1367260 | G94: 100
A95: Pomoc dla repatriantów oraz dla uchodźców, w tym pomoc dla obywateli Ukrainy | B95: 16581558 | C95: 10794553.37 | D95: 65.09975341 | E95: 5445753 | F95: 1948773.61 | G95: 35.78520014
A96: Orzekanie o stopniu niepełnosprawności | B96: 6422377 | C96: 2637388.94 | D96: 41.0656201
A97: Jednostki obsługi zadań z zakresu pomocy społecznej | B97: 26009675 | C97: 13011724.83 | D97: 50.02647988
A98: Zapewnienie opieki osobom przebywającym i dochodzącym w jednostkach pomocy społecznej | B98: 206735110 | C98: 107560510.5 | D98: 52.02817774 | E98: 19975842 | F98: 7935600 | G98: 39.72598502
A99: Zapewnienie pomocy, opieki i wychowania dzieciom i młodzieży pozbawionym opieki rodziców | B99: 151834280 | C99: 67965965.87 | D99: 44.76325496 | E99: 8872735 | F99: 3023087.87 | G99: 34.07165739
A100: Wspieranie inicjatyw społecznych na rzecz zaspokajania potrzeb życiowych osób i rodzin | B100: 477000 | C100: 238500 | D100: 50 | E100: 477000 | F100: 238500 | G100: 50
A101: Wypłata świadczeń i zasiłków oraz pomoc w naturze | B101: 30356 | C101: 18507.06 | D101: 60.96672816
A102: Ubezpieczenia zdrowotne i świadczenia dla osób nieobjętych ubezpieczeniem społecznym oraz osób pobierających niektóre świadczenia z pomocy społecznej | B102: 30356 | C102: 18507.06 | D102: 60.96672816
A103: KULTURA I OCHRONA DZIEDZICTWA KULTUROWEGO | B103: 1850000 | E103: 1850000
A104: Działalność kulturalna | B104: 1850000 | E104: 1850000
A105: Prowadzenie działalności kulturalnej przez biblioteki | B105: 1850000 | E105: 1850000
A106: Prowadzenie biblioteki powiatowej | B106: 1850000 | E106: 1850000
A107: ZARZĄDZANIE STRUKTURAMI SAMORZĄDOWYMI | B107: 37398973 | C107: 16664196.85 | D107: 44.55789962 | E107: 37398973 | F107: 16664196.85 | G107: 44.55789962
A108: Działania na rzecz mieszkańców | B108: 27694000 | C108: 11668655.19 | D108: 42.13423554 | E108: 27694000 | F108: 11668655.19 | G108: 42.13423554
A109: Obsługa mieszkańców | B109: 27694000 | C109: 11668655.19 | D109: 42.13423554 | E109: 27694000 | F109: 11668655.19 | G109: 42.13423554
A110: Zadania z zakresu ewidencji ludności, wydawania dowodów osobistych, decyzji administracyjnych | B110: 44000 | C110: 700 | D110: 1.590909091 | E110: 44000 | F110: 700 | G110: 1.590909091
A111: Zadania z zakresu rejestracji pojazdów i dopuszczania ich do ruchu | B111: 27650000 | C111: 11667955.19 | D111: 42.19875295 | E111: 27650000 | F111: 11667955.19 | G111: 42.19875295
A112: Funkcjonowanie Urzędu Miasta | B112: 9704973 | C112: 4995541.66 | D112: 51.47403975 | E112: 9704973 | F112: 4995541.66 | G112: 51.47403975
A113: Utrzymanie stanowisk pracy | B113: 9454973 | C113: 4936449.93 | D113: 52.21009018 | E113: 9454973 | F113: 4936449.93 | G113: 52.21009018
A114: Fundusz wynagrodzeń | B114: 9454973 | C114: 4936449.93 | D114: 52.21009018 | E114: 9454973 | F114: 4936449.93 | G114: 52.21009018
A115: Zapewnienie prawidłowego działania Urzędu | B115: 250000 | C115: 59091.73 | D115: 23.636692 | E115: 250000 | F115: 59091.73 | G115: 23.636692
A116: Remonty bieżące w budynkach | B116: 65038 | C116: 5851.62 | D116: 8.997232387 | E116: 65038 | F116: 5851.62 | G116: 8.997232387
A117: Utrzymanie Urzędu | B117: 97962 | C117: 49706.88 | D117: 50.7409812 | E117: 97962 | F117: 49706.88 | G117: 50.7409812
A118: Obsługa informatyczna | B118: 73000 | E118: 73000
A119: Obsługa teletechniczna | B119: 14000 | C119: 3533.23 | D119: 25.23735714 | E119: 14000 | F119: 3533.23 | G119: 25.23735714
A120: FINANSE I RÓŻNE ROZLICZENIA | B120: 851767660 | C120: 425967593.1 | D120: 50.00983404 | E120: 851767660 | F120: 425967593.1 | G120: 50.00983404
A121: Zadania z zakresu polityki finansowej | B121: 851767660 | C121: 425967593.1 | D121: 50.00983404 | E121: 851767660 | F121: 425967593.1 | G121: 50.00983404
A122: Wpłaty do budżetu państwa | B122: 851600131 | C122: 425800065.5 | D122: 50 | E122: 851600131 | F122: 425800065.5 | G122: 50
A123: Różne rozliczenia | B123: 167529 | C123: 167527.61 | D123: 99.99917029 | E123: 167529 | F123: 167527.61 | G123: 99.99917029

Sheet Razem_dzielnice.
A6: WYKONANIE WYDATKÓW BIEŻĄCYCH MIASTA STOŁECZNEGO WARSZAWY W UKŁADZIE ZADAŃ ZA I PÓŁROCZE 2023 ROKU
A7: WYDATKI RAZEM DZIELNICE
A9: Wyszczególnienie | B9: Plan | E9: W tym Urząd
B10: Plan | C10: Wykonanie | D10: Wskaźnik % (kol. 3/2) | E10: Plan | F10: Wykonanie | G10: Wskaźnik % (kol. 6/5)
A11: 1 | B11: 2 | C11: 3 | D11: 4 | E11: 5 | F11: 6 | G11: 7
A12: OGÓŁEM | B12: 9051242641 | C12: 4590835899 | D12: 50.72050414 | E12: 3001516034 | F12: 1495248425 | G12: 49.8164397 | J12: =SUM(Bemowo.:Żoliborz.!B12)-B12 -> 0 | K12: =SUM(Bemowo.:Żoliborz.!C12)-C12 -> 0 | M12: =SUM(Bemowo.:Żoliborz.!E12)-E12 -> 0 | N12: =SUM(Bemowo.:Żoliborz.!F12)-F12 -> 0
A13: TRANSPORT I KOMUNIKACJA | B13: 120766813 | C13: 19326584.58 | D13: 16.00322481 | E13: 102918774 | F13: 15990434.23 | G13: 15.53694589
A14: Komunikacja zbiorowa | B14: 519000 | C14: 10000 | D14: 1.926782274 | E14: 519000 | F14: 10000 | G14: 1.926782274
A15: Zarządzanie komunikacją miejską | B15: 519000 | C15: 10000 | D15: 1.926782274 | E15: 519000 | F15: 10000 | G15: 1.926782274
A16: Organizacja komunikacji, marketing, nadzór i kontrola ruchu | B16: 519000 | C16: 10000 | D16: 1.926782274 | E16: 519000 | F16: 10000 | G16: 1.926782274
A17: Drogi i mosty | B17: 120247813 | C17: 19316584.58 | D17: 16.06397996 | E17: 102399774 | F17: 15980434.23 | G17: 15.60592725
A18: Utrzymanie i remonty dróg | B18: 108364946 | C18: 16265820.45 | D18: 15.01022337 | E18: 95616714 | F18: 14856930.91 | G18: 15.53800616
A19: Utrzymanie i remonty dróg gminnych | B19: 105770687 | C19: 15370998.63 | D19: 14.53238044 | E19: 93152455 | F19: 14062109.09 | G19: 15.09580085
A20: Utrzymanie i remonty dróg w miastach na prawach powiatu | B20: 4000 | C20: 145692.99 | D20: 3642.32475 | E20: 4000 | F20: 145692.99 | G20: 3642.32475
A21: Utrzymanie i remonty dróg wewnętrznych | B21: 2590259 | C21: 749128.83 | D21: 28.92100095 | E21: 2460259 | F21: 649128.83 | G21: 26.38457293
A22: Oświetlenie ulic | B22: 6525137 | C22: 1542279.37 | D22: 23.63596918 | E22: 4452126 | F22: 923642 | G22: 20.7460885
A23: Iluminacje obiektów architektonicznych | B23: 1262748 | C23: 359468.95 | D23: 28.46719615 | E23: 427279 | F23: 93168.81 | G23: 21.80514605
A24: Utrzymanie i remonty oświetlenia ulic, placów i dróg | B24: 5262389 | C24: 1182810.42 | D24: 22.4766816 | E24: 4024847 | F24: 830473.19 | G24: 20.63365862
A25: Opracowania i analizy związane z drogami | B25: 2129103 | C25: 62925.79 | D25: 2.955507084 | E25: 2041103 | F25: 55767.19 | G25: 2.732208517
A26: Gospodarowanie parkingami i węzłami komunikacyjnymi | B26: 3228627 | C26: 1445558.97 | D26: 44.77317975 | E26: 289831 | F26: 144094.13 | G26: 49.71660381
A27: ŁAD PRZESTRZENNY I GOSPODARKA NIERUCHOMOŚCIAMI | B27: 1137892091 | C27: 537802263.8 | D27: 47.26302854 | E27: 64228233 | F27: 24599940.86 | G27: 38.30082148
A28: Rewitalizacja | B28: 100000 | C28: 0 | D28: 0 | E28: 100000 | F28: 0 | G28: 0
A29: Rewitalizacja obszarów miejskich | B29: 100000 | C29: 0 | D29: 0 | E29: 100000 | F29: 0 | G29: 0
A30: Gospodarka przestrzenna | B30: 6184890 | C30: 3343139.92 | D30: 54.05334484 | E30: 6184890 | F30: 3343139.92 | G30: 54.05334484
A31: Plany zagospodarowania przestrzennego | B31: 5549441 | C31: 3166565 | D31: 57.06097245 | E31: 5549441 | F31: 3166565 | G31: 57.06097245
A32: Architektura, Urbanistyka i Zagospodarowanie Przestrzeni Publicznej | B32: 635449 | C32: 176574.92 | D32: 27.7874259 | E32: 635449 | F32: 176574.92 | G32: 27.7874259
A33: Mieszkaniowy zasób komunalny oraz pozostałe zadania związane z zapewnieniem lokali mieszkalnych | B33: 1048890192 | C33: 503688114.6 | D33: 48.02105296 | E33: 34167210 | F33: 11550697.54 | G33: 33.80638202
A34: Koszty eksploatacji mieszkaniowego zasobu komunalnego | B34: 213903344 | C34: 95275577.73 | D34: 44.54141574 | E34: 21365173 | F34: 8281898.19 | G34: 38.76354378
A35: Remonty mieszkaniowego zasobu komunalnego | B35: 115287775 | C35: 29488283.86 | D35: 25.57797985 | E35: 5465082 | F35: 766244.6 | G35: 14.02073381
A36: Utrzymanie jednostek gospodarujących zasobem komunalnym | B36: 296323670 | C36: 138084747.5 | D36: 46.59929715 | F36: 0 | G36: -
A37: Rozliczenia ze wspólnotami mieszkaniowymi | B37: 417780092 | C37: 239413782.4 | D37: 57.30617303 | E37: 3911628 | F37: 1959148.8 | G37: 50.08525351
A38: Opracowania i analizy związane z zarządzaniem zasobem komunalnym | B38: 257662 | C38: 48353 | D38: 18.76605786 | E38: 57662 | F38: 48353 | G38: 83.85591898
A39: Rozliczenia za lokale z właścicielami innymi niż m.st. Warszawa | B39: 5337649 | C39: 1377370.06 | D39: 25.8048077 | E39: 3367665 | F39: 495052.95 | G39: 14.70018395
A40: Zadania związane z nabywaniem i sprzedażą nieruchomości | B40: 8330380 | C40: 3904824.3 | D40: 46.87450392 | E40: 8228380 | F40: 3863366.36 | G40: 46.95172513
A41: Przygotowanie nieruchomości komunalnych przeznaczonych m.in. do zbycia i zamiany | B41: 1198457 | C41: 166222.82 | D41: 13.86973584 | E41: 1198457 | F41: 166222.82 | G41: 13.86973584
A42: Regulacja stanów prawnych nieruchomości, w tym odszkodowania | B42: 7131923 | C42: 3738601.48 | D42: 52.42066523 | E42: 7029923 | F42: 3697143.54 | G42: 52.59152255
A43: Pozostały zasób komunalny | B43: 74386629 | C43: 26866184.99 | D43: 36.11695455 | E43: 15547753 | F43: 5842737.04 | G43: 37.57930191
A44: Zarządzanie lokalami użytkowymi i ich eksploatacja | B44: 41020254 | C44: 18774664.5 | D44: 45.76925462 | E44: 5418247 | F44: 2031270.12 | G44: 37.48943376
A45: Remonty lokali użytkowych | B45: 17913096 | C45: 2036124.47 | D45: 11.36668095 | E45: 733500 | F45: 182764.12 | G45: 24.91671711
A46: Zarządzanie pozostałymi nieruchomościami | B46: 15453279 | C46: 6055396.02 | D46: 39.18518536 | E46: 9396006 | F46: 3628702.8 | G46: 38.61963051
A47: GOSPODARKA KOMUNALNA I OCHRONA ŚRODOWISKA | B47: 173009760 | C47: 54175810.63 | D47: 31.31373087 | E47: 122743367 | F47: 33893099.48 | G47: 27.61297845
A48: Utrzymanie porządku i czystości | B48: 55328315 | C48: 19685738.67 | D48: 35.57986299 | E48: 45962157 | F48: 16171362.23 | G48: 35.18408031
A49: Oczyszczanie miasta | B49: 41045008 | C49: 15171072.8 | D49: 36.96204128 | E49: 33045358 | F49: 12230471.91 | G49: 37.01116481
A50: Zimowe oczyszczanie ulic | B50: 21870077 | C50: 11479496.07 | D50: 52.48950916 | E50: 18707777 | F50: 9871424.15 | G50: 52.76641982
A51: Letnie oczyszczanie ulic | B51: 15023119 | C51: 2577041.71 | D51: 17.15383943 | E51: 11544998 | F51: 1781076.28 | G51: 15.42725499
A52: Oczyszczanie pozostałych terenów | B52: 4151812 | C52: 1114535.02 | D52: 26.8445445 | E52: 2792583 | F52: 577971.48 | G52: 20.69666255
A53: Interwencyjne pogotowie oczyszczania | B53: 157993 | C53: 20061.5 | D53: 12.69771446 | E53: 149993 | F53: 19861.5 | G53: 13.24161794
A54: Opróżnianie i zakup koszy ulicznych | B54: 6633773 | C54: 2439126.72 | D54: 36.76831752 | E54: 5932773 | F54: 2136411.19 | G54: 36.01033092
A55: Szalety miejskie i kabiny sanitarne | B55: 1734547 | C55: 553816.46 | D55: 31.92859346 | E55: 1112579 | F55: 284136.88 | G55: 25.53858018
A56: Likwidacja dzikich wysypisk | B56: 1574776 | C56: 701101.11 | D56: 44.52068802 | E56: 1542236 | F56: 699920.67 | G56: 45.38349967
A57: Akcje związane z utrzymaniem czystości i porządku | B57: 150398 | C57: 44945.85 | D57: 29.88460618 | E57: 150398 | F57: 44945.85 | G57: 29.88460618
A58: Dzień Ziemi i inne | B58: 150398 | C58: 44945.85 | D58: 29.88460618 | E58: 150398 | F58: 44945.85 | G58: 29.88460618
A59: Gospodarka odpadami | B59: 882650 | C59: 28866.3 | D59: 3.270412961 | E59: 882650 | F59: 28866.3 | G59: 3.270412961
A60: Opracowania i analizy związane z ochroną środowiska i monitorowanie środowiska | B60: 619594 | C60: 60456.97 | D60: 9.757513791 | E60: 619594 | F60: 60456.97 | G60: 9.757513791
A61: Zadania z zakresu bezdomności zwierząt w mieście | B61: 2529576 | C61: 666290.96 | D61: 26.34002536 | E61: 2526576 | F61: 666290.96 | G61: 26.37130092
A62: Gospodarka ściekowa i ochrona wód | B62: 9618908 | C62: 2586417 | D62: 26.88888385 | E62: 8527632 | F62: 2231661.19 | G62: 26.16976424
A63: Utrzymanie i remonty sieci wodno-kanalizacyjnej | B63: 6290458 | C63: 1914555.03 | D63: 30.43586063 | E63: 5384165 | F63: 1615331.26 | G63: 30.00151853
A64: Opracowania związane z gospodarką wodno-ściekową | B64: 63000 | C64: 21583.2 | D64: 34.25904762 | E64: 63000 | F64: 21583.2 | G64: 34.25904762
A65: Utrzymanie i konserwacja urządzeń wodnych i innych zbiorników wodnych | B65: 3265450 | C65: 650278.77 | D65: 19.91390988 | E65: 3080467 | F65: 594746.73 | G65: 19.30703137
A66: Tereny zielone | B66: 64858146 | C66: 15315808.82 | D66: 23.61431796 | E66: 56211734 | F66: 13105680.37 | G66: 23.31484805
A67: Utrzymanie i konserwacja zieleni | B67: 19429321 | C67: 4543303.56 | D67: 23.38374851 | E67: 16295028 | F67: 3592848.47 | G67: 22.0487407
A68: Utrzymanie i konserwacja zieleni przyulicznej | B68: 25920735 | C68: 5134102.57 | D68: 19.80693283 | E68: 20478616 | F68: 3874429.21 | G68: 18.91938991
A69: Utrzymanie parków | B69: 18746803 | C69: 5616645.69 | D69: 29.96055215 | E69: 18746803 | F69: 5616645.69 | G69: 29.96055215
A70: Utrzymanie lasów | B70: 8400 | C70: 4168 | D70: 49.61904762 | E70: 8400 | F70: 4168 | G70: 49.61904762
A71: Opracowania związane z zielenią | B71: 752887 | C71: 17589 | D71: 2.33620716 | E71: 682887 | F71: 17589 | G71: 2.57568236
A72: Pozostałe zadania z zakresu gospodarki komunalnej | B72: 43204391 | C72: 16587846.14 | D72: 38.3938895 | E72: 12041844 | F72: 2384395.69 | G72: 19.80091828
A73: Place zabaw, ścieżki zdrowia i inne formy aktywności plenerowej | B73: 11867723 | C73: 2361471.24 | D73: 19.89826726 | E73: 8968087 | F73: 1848065.68 | G73: 20.60713372
A74: Wykonywanie zadań związanych z rolnictwem w mieście | B74: 22339 | C74: 22098 | D74: 98.92116926 | E74: 22339 | F74: 22098 | G74: 98.92116926
A75: Utrzymanie i rozwój infrastruktury komunalnej | B75: 19588122 | C75: 9942531.08 | D75: 50.75795975
A76: Utrzymanie jednostek budżetowych realizujących zadania z zakresu infrastruktury w dzielnicach | B76: 19588122 | C76: 9942531.08 | D76: 50.75795975
A77: Gospodarowanie targowiskami i nadzór nad handlem obwoźnym | B77: 8668789 | C77: 3741959.9 | D77: 43.16588972
A78: Przedsięwzięcia ekologiczne | B78: 3057418 | C78: 519785.92 | D78: 17.0008131 | E78: 3051418 | F78: 514232.01 | G78: 16.852231
A79: BEZPIECZEŃSTWO I PORZĄDEK PUBLICZNY | B79: 10500 | C79: 10500 | D79: 100
A80: Obrona narodowa i cywilna | B80: 10500 | C80: 10500 | D80: 100
A81: Kwalifikacja wojskowa | B81: 10500 | C81: 10500 | D81: 100
A82: EDUKACJA | B82: 5614213155 | C82: 2984275636 | D82: 53.15572377 | E82: 1187870086 | F82: 649295556.5 | G82: 54.66048553
A83: Oświata i edukacyjna opieka wychowawcza | B83: 5359270934 | C83: 2869604944 | D83: 53.54468881 | E83: 1171963789 | F83: 647029667.4 | G83: 55.20901529
A84: Prowadzenie przedszkoli i innych form wychowania przedszkolnego | B84: 1301381139 | C84: 698162934.8 | D84: 53.64784488 | E84: 461231460 | F84: 260593460.8 | G84: 56.49949828
A85: Prowadzenie publicznych przedszkoli i innych form wychowania przedszkolnego | B85: 840807597 | C85: 437909594.8 | D85: 52.08202166 | E85: 657918 | F85: 340120.76 | G85: 51.69652753
A86: Dotacje dla niepublicznych przedszkoli i innych form wychowania przedszkolnego | B86: 460573542 | C86: 260253340 | D86: 56.5063592 | E86: 460573542 | F86: 260253340 | G86: 56.5063592
A87: Prowadzenie przedszkoli specjalnych | B87: 26775446 | C87: 14065567.41 | D87: 52.53158961 | E87: 5841690 | F87: 2909153.48 | G87: 49.79986066
A88: Prowadzenie publicznych przedszkoli specjalnych | B88: 20939024 | C88: 11156413.93 | D88: 53.28048686 | E88: 5268 | F88: 0 | G88: 0
A89: Dotacje dla niepublicznych przedszkoli specjalnych | B89: 5836422 | C89: 2909153.48 | D89: 49.8448104 | E89: 5836422 | F89: 2909153.48 | G89: 49.8448104
A90: Prowadzenie oddziałów "0" w szkołach podstawowych | B90: 77734757 | C90: 40204287.84 | D90: 51.71983472 | E90: 6549597 | F90: 3041962.52 | G90: 46.44503349
A91: Prowadzenie publicznych oddziałów "0" w szkołach podstawowych | B91: 71185160 | C91: 37162325.32 | D91: 52.2051581
A92: Dotacje dla niepublicznych oddziałów "0" w szkołach podstawowych | B92: 6549597 | C92: 3041962.52 | D92: 46.44503349 | E92: 6549597 | F92: 3041962.52 | G92: 46.44503349
A93: Prowadzenie szkół podstawowych | B93: 1630038259 | C93: 893439221.3 | D93: 54.81093566 | E93: 164262587 | F93: 93777681.97 | G93: 57.09010413
A94: Prowadzenie publicznych szkół podstawowych | B94: 1466603699 | C94: 799760089.5 | D94: 54.53143818 | E94: 828027 | F94: 98550.11 | G94: 11.9017991
A95: Dotacje dla niepublicznych szkół podstawowych | B95: 163434560 | C95: 93679131.86 | D95: 57.31904676 | E95: 163434560 | F95: 93679131.86 | G95: 57.31904676
A96: Prowadzenie liceów ogólnokształcących | B96: 706949323 | C96: 396971940.1 | D96: 56.15281425 | E96: 96638617 | F96: 54154992.52 | G96: 56.03866674
A97: Prowadzenie publicznych liceów ogólnokształcących | B97: 610420868 | C97: 342821773 | D97: 56.16154214 | E97: 110162 | F97: 4825.37 | G97: 4.380249088
A98: Dotacje dla niepublicznych liceów ogólnokształcących | B98: 96528455 | C98: 54150167.15 | D98: 56.09762132 | E98: 96528455 | F98: 54150167.15 | G98: 56.09762132
A99: Prowadzenie publicznych szkół artystycznych | B99: 2853853 | C99: 1461420.28 | D99: 51.20867403
A100: Prowadzenie publicznych placówek kształcenia ustawicznego icentrów kształcenia zawodowego | B100: 23619095 | C100: 11887524.64 | D100: 50.33014449
A101: Prowadzenie publicznych poradni psychologiczno-pedagogicznych | B101: 103272565 | C101: 55611852 | D101: 53.84958919 | E101: 61100 | F101: 0 | G101: 0
A102: Prowadzenie internatów i burs szkolnych | B102: 10380678 | C102: 5183003.87 | D102: 49.92933862 | E102: 5803215 | F102: 2812442.66 | G102: 48.46352685
A103: Prowadzenie publicznych internatów i burs szkolnych | B103: 4577463 | C103: 2370561.21 | D103: 51.78766513
A104: Dotacje dla niepublicznych internatów i burs szkolnych | B104: 5803215 | C104: 2812442.66 | D104: 48.46352685 | E104: 5803215 | F104: 2812442.66 | G104: 48.46352685
A105: Prowadzenie świetlic szkolnych | B105: 199994918 | C105: 107364919.3 | D105: 53.68382376
A106: Prowadzenie placówek wychowania pozaszkolnego | B106: 48865587 | C106: 24941136.29 | D106: 51.0402879 | E106: 15000 | F106: 161.6 | G106: 1.077333333
A107: Prowadzenie publicznych placówek wychowania pozaszkolnego | B107: 48865587 | C107: 24941136.29 | D107: 51.0402879 | E107: 15000 | F107: 161.6 | G107: 1.077333333
A108: Remonty w przedszkolach, szkołach i placówkach oświatowych | B108: 122445392 | C108: 13434340.03 | D108: 10.97169915 | E108: 53388027 | F108: 3509179.94 | G108: 6.572971764
A109: Zajęcia dla uczniów na basenach i w halach sportowych | B109: 12754386 | C109: 5584625.52 | D109: 43.78592211
A110: Dowożenie uczniów do szkół | B110: 31421530 | C110: 11441310.11 | D110: 36.41232655 | E110: 31421530 | F110: 11441310.11 | G110: 36.41232655
A111: Prowadzenie stołówek szkolnych i przedszkolnych | B111: 52338688 | C111: 25856862.74 | D111: 49.40296314
A112: Wczesne wspomaganie rozwoju dziecka | B112: 12459304 | C112: 6590671.68 | D112: 52.89759107 | E112: 8805903 | F112: 4755394.8 | G112: 54.00235274
A113: Realizacja zadań wymagających stosowania specjalnej organizacji nauki i metod pracy | B113: 603643505 | C113: 342966141.6 | D113: 56.81600792 | E113: 271128561 | F113: 166363591.9 | G113: 61.35967061
A114: Realizacja zadań wymagających stosowania specjalnej organizacji nauki i metod pracy przez placówki publiczne | B114: 332514944 | C114: 176602549.7 | D114: 53.11116172
A115: Dotacje dla podmiotów niepublicznych realizujących zadania wymagające stosowania specjalnej nauki organizacji i metod pracy | B115: 271128561 | C115: 166363591.9 | D115: 61.35967061 | E115: 271128561 | F115: 166363591.9 | G115: 61.35967061
A116: Kwalifikacyjne kursy zawodowe | B116: 3879134 | C116: 1712133.02 | D116: 44.13699089 | E116: 2446760 | F116: 1035782.46 | G116: 42.33281809
A117: Prowadzenie kwalifikacyjnych kursów zawodowych w placówkach publicznych | B117: 1432374 | C117: 676350.56 | D117: 47.21885206
A118: Dotacje dla placówek niepublicznych na prowadzenie kwalifikacyjnych kursów zawodowych | B118: 2446760 | C118: 1035782.46 | D118: 42.33281809 | E118: 2446760 | F118: 1035782.46 | G118: 42.33281809
A119: Prowadzenie techników | B119: 295165954 | C119: 162818552.8 | D119: 55.16169822 | E119: 9308150 | F119: 4943273.01 | G119: 53.10693328
A120: Prowadzenie publicznych techników | B120: 285975704 | C120: 157875441.4 | D120: 55.20589308 | E120: 117900 | F120: 161.6 | G120: 0.13706531
A121: Dotacje dla niepublicznych techników | B121: 9190250 | C121: 4943111.41 | D121: 53.78647382 | E121: 9190250 | F121: 4943111.41 | G121: 53.78647382
A122: Prowadzenie szkół policealnych | B122: 49323288 | C122: 33052972.61 | D122: 67.01291408 | E122: 49320529 | F122: 33050216.62 | G122: 67.01107488
A123: Prowadzenie publicznych szkół policealnych | B123: 2759 | C123: 2755.99 | D123: 99.8909025
A124: Dotacje dla niepublicznych szkół policealnych | B124: 49320529 | C124: 33050216.62 | D124: 67.01107488 | E124: 49320529 | F124: 33050216.62 | G124: 67.01107488
A125: Prowadzenie branżowych szkół I i II stopnia | B125: 25752272 | C125: 12211815.25 | D125: 47.4203412 | E125: 1100000 | F125: 0 | G125: 0
A126: Prowadzenie publicznych branżowych szkół I i II stopnia | B126: 24652272 | C126: 12211815.25 | D126: 49.53626688
A127: Dotacje dla niepublicznych branżowych szkół I i II stopnia | B127: 1100000 | C127: 0 | D127: 0 | E127: 1100000 | F127: 0 | G127: 0
A128: Wyposażenie szkół w podręczniki, materiały edukacyjne lub materiały ćwiczeniowe | B128: 18221861 | C128: 4641710.7 | D128: 25.47330758 | E128: 4641063 | F128: 4641063 | G128: 100
A129: Wyposażenie szkół publicznych w podręczniki, materiały edukacyjne lub materiały ćwiczeniowe | B129: 13580798 | C129: 647.7 | D129: 0.004769234
A130: Dotacje na sfinansowanie wyposażenia placówek niepublicznych w podręczniki lub materiały ćwiczeniowe | B130: 4641063 | C130: 4641063 | D130: 100 | E130: 4641063 | F130: 4641063 | G130: 100
A131: Pozostałe zadania z zakresu oświaty i wychowania | B131: 254942221 | C131: 114670692.3 | D131: 44.97909051 | E131: 15906297 | F131: 2265889.1 | G131: 14.24523319
A132: Zarządzanie finansami oświaty | B132: 125399204 | C132: 59029014.85 | D132: 47.07287843 | E132: 40000 | F132: 11472.33 | G132: 28.680825
A133: Postępowania związane z awansem zawodowym nauczycieli | B133: 553799 | C133: 7064.24 | D133: 1.275596381 | E133: 553799 | F133: 7064.24 | G133: 1.275596381
A134: Dokształcanie i doskonalenie nauczycieli | B134: 9658880 | C134: 1866262.62 | D134: 19.32172902 | E134: 4405963 | F134: 172583 | G134: 3.91703244
A135: Fundusz socjalny dla emerytowanych pracowników oświaty | B135: 19956328 | C135: 16270170.51 | D135: 81.52887901
A136: Nagrody dla nauczycieli | B136: 4841331 | C136: 53012.07 | D136: 1.09498958 | E136: 2249462 | F136: 5859.5 | G136: 0.260484507
A137: Organizacja olimpiad, konkursów i uroczystości szkolnych oraz realizacja programów o charakterze innowacyjnym | B137: 7242977 | C137: 1725725.05 | D137: 23.82618432 | E137: 1272074 | F137: 163314.94 | G137: 12.83847795
A138: Wypoczynek dzieci i młodzieży szkolnej | B138: 15492936 | C138: 3201150.02 | D138: 20.66199731 | E138: 4690284 | F138: 1175066.69 | G138: 25.05320978
A139: Pomoc materialna dla uczniów, studentów i doktorantów | B139: 30012306 | C139: 12351623.23 | D139: 41.15519557 | F139: 0 | G139: -
A140: Stypendia za wyniki w nauce | B140: 6035456 | C140: 3270220.51 | D140: 54.18348688
A141: Stypendia socjalne | B141: 6118275 | C141: 1150949.53 | D141: 18.81166718
A142: Dożywianie uczniów | B142: 17858575 | C142: 7930453.19 | D142: 44.40697642
A143: Realizacja programów edukacyjno-oświatowych (w tym UE) | B143: 36276636 | C143: 18478098.22 | D143: 50.93663652 | E143: 2471665 | F143: 513599.89 | G143: 20.77951057
A144: Programy edukacyjno - oświatowe | B144: 19744329 | C144: 8010688.31 | D144: 40.57209698 | E144: 198705 | F144: 0 | G144: 0
A145: Projekty edukacyjno - oświatowe realizowane w ramach programów Unii Europejskiej | B145: 16532307 | C145: 10467409.91 | D145: 63.31487741 | E145: 2272960 | F145: 513599.89 | G145: 22.59608132
A146: Inne zadania (utrzymanie związków zawodowych, wypłata zasądzonych rent za zlikwidowanie jednostki) | B146: 5507824 | C146: 1688571.52 | D146: 30.65768841 | E146: 223050 | F146: 216928.51 | G146: 97.25555257
A147: OCHRONA ZDROWIA I POLITYKA SPOŁECZNA | B147: 789167742 | C147: 406454477.6 | D147: 51.50419308 | E147: 427460282 | F147: 235151990.6 | G147: 55.01142456
A148: Programy zdrowotne | B148: 33497242 | C148: 19708330.06 | D148: 58.83567985 | E148: 33442242 | F148: 19700830.06 | G148: 58.91001584
A149: Programy w zakresie przeciwdziałania narkomanii | B149: 20000 | C149: 0 | D149: 0 | E149: 20000 | F149: 0 | G149: 0
A150: Miejski Program Profilaktyki i Rozwiązywania Problemów Alkoholowych | B150: 33477242 | C150: 19708330.06 | D150: 58.8708295 | E150: 33422242 | F150: 19700830.06 | G150: 58.94526783
A151: Miejski Program Profilaktyki i Rozwiązywania Problemów Alkoholowych | B151: 33477242 | C151: 19708330.06 | D151: 58.8708295 | E151: 33422242 | F151: 19700830.06 | G151: 58.94526783
A152: Polityka społeczna | B152: 364498294 | C152: 197582462.4 | D152: 54.20669059 | E152: 72058177 | F152: 59248384.8 | G152: 82.22298602
A153: Poradnictwo, mieszkania chronione i ośrodki interwencji kryzysowej oraz usługi specjalistyczne | B153: 3807691 | C153: 2970002 | D153: 78.00007931 | E153: 112283 | F153: 5750.46 | G153: 5.121398609
A154: Pomoc bezrobotnym, aktywizacja zawodowa | B154: 544317 | C154: 458183.56 | D154: 84.17586811
A155: Zadania z zakresu pomocy bezrobotnym | B155: 544317 | C155: 458183.56 | D155: 84.17586811
A156: Pomoc osobom niepełnosprawnym | B156: 140757 | C156: 137530.89 | D156: 97.70802873
A157: Pomoc dla repatriantów oraz dla uchodźców, w tym pomoc dla obywateli Ukrainy | B157: 57923196 | C157: 52390432.84 | D157: 90.44810449 | E157: 52977686 | F157: 49164413.63 | G157: 92.80211603
A158: Jednostki obsługi zadań z zakresu pomocy społecznej | B158: 204663792 | C158: 97406451.35 | D158: 47.59339715 | E158: 90000 | F158: 31114.06 | G158: 34.57117778
A159: Zapewnienie opieki osobom przebywającym i dochodzącym w jednostkach pomocy społecznej | B159: 45927294 | C159: 22295687.35 | D159: 48.54561505 | E159: 7791362 | F159: 4687462.16 | G159: 60.1622946
A160: Zapewnienie pomocy, opieki i wychowania dzieciom i młodzieży pozbawionym opieki rodziców | B160: 10429992 | C160: 4619871.27 | D160: 44.29410176
A161: Wspieranie inicjatyw społecznych na rzecz zaspokajania potrzeb życiowych osób i rodzin | B161: 14094015 | C161: 5982006 | D161: 42.44359042 | E161: 11086846 | F161: 5359644.49 | G161: 48.34237339
A162: Dożywianie | B162: 26903240 | C162: 11300749.38 | D162: 42.00516139
A163: Realizacja programu "Posiłek w szkole i w domu" | B163: 18985480 | C163: 7764239.25 | D163: 40.89567001
A164: Pozostałe zadania z zakresu dożywiania | B164: 7917760 | C164: 3536510.13 | D164: 44.66553836
A165: Realizacja programów na rzecz społeczności romskiej | B165: 64000 | C165: 21547.8 | D165: 33.6684375
A166: Wypłata świadczeń i zasiłków oraz pomoc w naturze | B166: 391172206 | C166: 189163685.1 | D166: 48.35816097 | E166: 321959863 | F166: 156202775.7 | G166: 48.51622629
A167: Zasiłki i pomoc w naturze | B167: 86730898 | C167: 35859655.43 | D167: 41.34588279 | E167: 20637255 | F167: 4307000 | G167: 20.87002365
A168: Świadczenia rodzinne, wychowawcze i z funduszu alimentacyjnego | B168: 264935323 | C168: 133229255.3 | D168: 50.28746404 | E168: 264935323 | F168: 133229255.3 | G168: 50.28746404
A169: Dodatki mieszkaniowe i energetyczne | B169: 33119485 | C169: 16462725.74 | D169: 49.70707044 | E169: 33119485 | F169: 16462725.74 | G169: 49.70707044
A170: Ubezpieczenia zdrowotne i świadczenia dla osób nieobjętych ubezpieczeniem społecznym oraz osób pobierających niektóre świadczenia z pomocy społecznej | B170: 6386500 | C170: 3612048.61 | D170: 56.55756064 | E170: 3267800 | F170: 2203794.69 | G170: 67.43970531
A171: KULTURA I OCHRONA DZIEDZICTWA KULTUROWEGO | B171: 293729795 | C171: 140204482.2 | D171: 47.73246859 | E171: 290761481 | F171: 139731435.5 | G171: 48.05706553
A172: Upowszechnianie kultury i tradycji | B172: 26230714 | C172: 7643257.35 | D172: 29.13857911 | E172: 26210039 | F172: 7625966.55 | G172: 29.09559406
A173: Przedsięwzięcia artystyczne i kulturalne | B173: 26230714 | C173: 7643257.35 | D173: 29.13857911 | E173: 26210039 | F173: 7625966.55 | G173: 29.09559406
A174: Ochrona i konserwacja obiektów zabytkowych | B174: 1569419 | C174: 73554 | D174: 4.686702531 | E174: 798961 | F174: 16605 | G174: 2.078324224
A175: Ochrona zabytków i opieka nad zabytkami | B175: 1569419 | C175: 73554 | D175: 4.686702531 | E175: 798961 | F175: 16605 | G175: 2.078324224
A176: Działalność kulturalna | B176: 262132270 | C176: 131921887.4 | D176: 50.32645823 | E176: 262132270 | F176: 131921887.4 | G176: 50.32645823
A177: Prowadzenie działalności kulturalnej przez domy i ośrodki kultury | B177: 124286685 | C177: 61248807.25 | D177: 49.28026462 | E177: 124286685 | F177: 61248807.25 | G177: 49.28026462
A178: Białołęcki Ośrodek Kultury | B178: 5588000 | C178: 2855000 | D178: 51.09162491 | E178: 5588000 | F178: 2855000 | G178: 51.09162491
A179: Bielański Ośrodek Kultury | B179: 5476000 | C179: 2370000 | D179: 43.27976625 | E179: 5476000 | F179: 2370000 | G179: 43.27976625
A180: Centrum "Łowicka" - Dom Kultury w Dzielnicy Mokotów | B180: 2581776 | C180: 1281769.25 | D180: 49.64680321 | E180: 2581776 | F180: 1281769.25 | G180: 49.64680321
A181: Centrum Promocji Kultury w Dzielnicy Praga-Południe | B181: 9290000 | C181: 4090000 | D181: 44.02583423 | E181: 9290000 | F181: 4090000 | G181: 44.02583423
A182: Dom Kultury "Dorożkarnia" w Dzielnicy Mokotów | B182: 3737000 | C182: 1879000 | D182: 50.28097404 | E182: 3737000 | F182: 1879000 | G182: 50.28097404
A183: Dom Kultury "KADR" w Dzielnicy Mokotów | B183: 5140000 | C183: 2574000 | D183: 50.07782101 | E183: 5140000 | F183: 2574000 | G183: 50.07782101
A184: Dom Kultury "Praga" w Dzielnicy Praga-Północ | B184: 3716500 | C184: 1956500 | D184: 52.64361631 | E184: 3716500 | F184: 1956500 | G184: 52.64361631
A185: Dom Kultury "REMBERTÓW" | B185: 1376800 | C185: 569000 | D185: 41.32771644 | E185: 1376800 | F185: 569000 | G185: 41.32771644
A186: Dom Kultury "Świt" w Dzielnicy Targówek | B186: 5350700 | C186: 2525700 | D186: 47.20316968 | E186: 5350700 | F186: 2525700 | G186: 47.20316968
A187: Dom Kultury "Włochy" | B187: 5863900 | C187: 2932900 | D187: 50.01620082 | E187: 5863900 | F187: 2932900 | G187: 50.01620082
A188: Dom Kultury "WYGODA" w Dzielnicy Rembertów | B188: 962200 | C188: 424200 | D188: 44.08646851 | E188: 962200 | F188: 424200 | G188: 44.08646851
A189: Dom Kultury "Zacisze" w Dzielnicy Targówek | B189: 2781000 | C189: 1164600 | D189: 41.87702265 | E189: 2781000 | F189: 1164600 | G189: 41.87702265
A190: Dom Kultury "Śródmieście" | B190: 9131000 | C190: 4111000 | D190: 45.02245099 | E190: 9131000 | F190: 4111000 | G190: 45.02245099
A191: Centrum Kultury Wilanów | B191: 5603370 | C191: 3022170 | D191: 53.9348642 | E191: 5603370 | F191: 3022170 | G191: 53.9348642
A192: Ośrodek Kultury "Arsus" w Dzielnicy Ursus | B192: 5507000 | C192: 2826783 | D192: 51.33072453 | E192: 5507000 | F192: 2826783 | G192: 51.33072453
A193: Ośrodek Kultury Ochoty | B193: 4669413 | C193: 2131606 | D193: 45.65040616 | E193: 4669413 | F193: 2131606 | G193: 45.65040616
A194: Ośrodek Kultury w Dzielnicy Wesoła | B194: 1917020 | C194: 856088 | D194: 44.65722841 | E194: 1917020 | F194: 856088 | G194: 44.65722841
A195: Służewski Dom Kultury w Dzielnicy Mokotów | B195: 4011000 | C195: 1979000 | D195: 49.33931688 | E195: 4011000 | F195: 1979000 | G195: 49.33931688
A196: Bemowskie Centrum Kultury w Dzielnicy Bemowo | B196: 8183593 | C196: 4164207 | D196: 50.88482528 | E196: 8183593 | F196: 4164207 | G196: 50.88482528
A197: Wawerskie Centrum Kultury | B197: 6123513 | C197: 3345034 | D197: 54.62606187 | E197: 6123513 | F197: 3345034 | G197: 54.62606187
A198: Prom Kultury Saska Kępa | B198: 2840000 | C198: 1540000 | D198: 54.22535211 | E198: 2840000 | F198: 1540000 | G198: 54.22535211
A199: Wolskie Centrum Kultury | B199: 8180500 | C199: 4301250 | D199: 52.57930444 | E199: 8180500 | F199: 4301250 | G199: 52.57930444
A200: Dzielnicowy Ośrodek Kultury Ursynów | B200: 2535000 | C200: 1380000 | D200: 54.43786982 | E200: 2535000 | F200: 1380000 | G200: 54.43786982
A201: Centrum Kultury i Aktywności w Dzielnicy Targówek | B201: 3615000 | C201: 1700000 | D201: 47.02627939 | E201: 3615000 | F201: 1700000 | G201: 47.02627939
A202: Ursynowskie Centrum Kultury "Alternatywy" | B202: 6540000 | C202: 3780000 | D202: 57.79816514 | E202: 6540000 | F202: 3780000 | G202: 57.79816514
A203: Żoliborski Dom Kultury | B203: 3566400 | C203: 1489000 | D203: 41.7507851 | E203: 3566400 | F203: 1489000 | G203: 41.7507851
A204: Prowadzenie działalności kulturalnej przez biblioteki | B204: 137845585 | C204: 70673080.12 | D204: 51.26974514 | E204: 137845585 | F204: 70673080.12 | G204: 51.26974514
A205: Biblioteka Publiczna im. Juliana Ursyna Niemcewicza w Dzielnicy Ursynów | B205: 8813474 | C205: 4215570 | D205: 47.83096881 | E205: 8813474 | F205: 4215570 | G205: 47.83096881
A206: Biblioteka Publiczna im. Stanisława Staszica w Dzielnicy Bielany | B206: 10658848 | C206: 5457100 | D206: 51.19784052 | E206: 10658848 | F206: 5457100 | G206: 51.19784052
... 79 more rows

Sheet Bemowo.
A6: WYKONANIE WYDATKÓW BIEŻĄCYCH MIASTA STOŁECZNEGO WARSZAWY W UKŁADZIE ZADAŃ ZA I PÓŁROCZE 2023 ROKU
A7: WYDATKI BEMOWO
A9: Wyszczególnienie | B9: Plan | E9: W tym Urząd
B10: Plan | C10: Wykonanie | D10: Wskaźnik % (kol. 3/2) | E10: Plan | F10: Wykonanie | G10: Wskaźnik % (kol. 6/5)
A11: 1 | B11: 2 | C11: 3 | D11: 4 | E11: 5 | F11: 6 | G11: 7
A12: OGÓŁEM | B12: 441200422 | C12: 227791744.8 | D12: 51.62999251 | E12: 184697029 | F12: 90238938.77 | G12: 48.85781826
A13: TRANSPORT I KOMUNIKACJA | B13: 4337506 | C13: 309887.98 | D13: 7.144381587 | E13: 4337506 | F13: 309887.98 | G13: 7.144381587
A14: Drogi i mosty | B14: 4337506 | C14: 309887.98 | D14: 7.144381587 | E14: 4337506 | F14: 309887.98 | G14: 7.144381587
A15: Utrzymanie i remonty dróg | B15: 4214506 | C15: 282412.48 | D15: 6.700962817 | E15: 4214506 | F15: 282412.48 | G15: 6.700962817
A16: Utrzymanie i remonty dróg gminnych | B16: 3716235 | C16: 244296.55 | D16: 6.573764845 | E16: 3716235 | F16: 244296.55 | G16: 6.573764845
A17: Utrzymanie i remonty dróg wewnętrznych | B17: 498271 | C17: 38115.93 | D17: 7.64963845 | E17: 498271 | F17: 38115.93 | G17: 7.64963845
A18: Oświetlenie ulic | B18: 73000 | C18: 27475.5 | D18: 37.63767123 | E18: 73000 | F18: 27475.5 | G18: 37.63767123
A19: Utrzymanie i remonty oświetlenia ulic, placów i dróg | B19: 73000 | C19: 27475.5 | D19: 37.63767123 | E19: 73000 | F19: 27475.5 | G19: 37.63767123
A20: Opracowania i analizy związane z drogami | B20: 50000 | C20: 0 | D20: 0 | E20: 50000 | F20: 0 | G20: 0
A21: ŁAD PRZESTRZENNY I GOSPODARKA NIERUCHOMOŚCIAMI | B21: 6467071 | C21: 2022882.02 | D21: 31.27972493 | E21: 6467071 | F21: 2022882.02 | G21: 31.27972493
A22: Gospodarka przestrzenna | B22: 251500 | C22: 88804.17 | D22: 35.30980915 | E22: 251500 | F22: 88804.17 | G22: 35.30980915
A23: Architektura, Urbanistyka i Zagospodarowanie Przestrzeni Publicznej | B23: 251500 | C23: 88804.17 | D23: 35.30980915 | E23: 251500 | F23: 88804.17 | G23: 35.30980915
A24: Mieszkaniowy zasób komunalny oraz pozostałe zadania związane z zapewnieniem lokali mieszkalnych | B24: 5233630 | C24: 1735884.4 | D24: 33.16788539 | E24: 5233630 | F24: 1735884.4 | G24: 33.16788539
A25: Koszty eksploatacji mieszkaniowego zasobu komunalnego | B25: 3395619 | C25: 1208286.23 | D25: 35.58368091 | E25: 3395619 | F25: 1208286.23 | G25: 35.58368091
A26: Remonty mieszkaniowego zasobu komunalnego | B26: 1117887 | C26: 236014.36 | D26: 21.11254179 | E26: 1117887 | F26: 236014.36 | G26: 21.11254179
A27: Rozliczenia ze wspólnotami mieszkaniowymi | B27: 466624 | C27: 217617.42 | D27: 46.6365682 | E27: 466624 | F27: 217617.42 | G27: 46.6365682
A28: Opracowania i analizy związane z zarządzaniem zasobem komunalnym | B28: 40000 | C28: 36000 | D28: 90 | E28: 40000 | F28: 36000 | G28: 90
A29: Rozliczenia za lokale z właścicielami innymi niż m.st. Warszawa | B29: 213500 | C29: 37966.39 | D29: 17.78285246 | E29: 213500 | F29: 37966.39 | G29: 17.78285246
A30: Zadania związane z nabywaniem i sprzedażą nieruchomości | B30: 188500 | C30: 40248 | D30: 21.35172414 | E30: 188500 | F30: 40248 | G30: 21.35172414
A31: Przygotowanie nieruchomości komunalnych przeznaczonych m.in. do zbycia i zamiany | B31: 11500 | C31: 0 | D31: 0 | E31: 11500 | F31: 0 | G31: 0
A32: Regulacja stanów prawnych nieruchomości, w tym odszkodowania | B32: 177000 | C32: 40248 | D32: 22.73898305 | E32: 177000 | F32: 40248 | G32: 22.73898305
A33: Pozostały zasób komunalny | B33: 793441 | C33: 157945.45 | D33: 19.90638875 | E33: 793441 | F33: 157945.45 | G33: 19.90638875
A34: Zarządzanie lokalami użytkowymi i ich eksploatacja | B34: 195358 | C34: 48096.17 | D34: 24.61950368 | E34: 195358 | F34: 48096.17 | G34: 24.61950368
A35: Zarządzanie pozostałymi nieruchomościami | B35: 598083 | C35: 109849.28 | D35: 18.36689557 | E35: 598083 | F35: 109849.28 | G35: 18.36689557
A36: GOSPODARKA KOMUNALNA I OCHRONA ŚRODOWISKA | B36: 8370707 | C36: 2228465.35 | D36: 26.62218795 | E36: 8370707 | F36: 2228465.35 | G36: 26.62218795
A37: Utrzymanie porządku i czystości | B37: 3569092 | C37: 992374.4 | D37: 27.80467413 | E37: 3569092 | F37: 992374.4 | G37: 27.80467413
A38: Oczyszczanie miasta | B38: 2807188 | C38: 652529.12 | D38: 23.24493835 | E38: 2807188 | F38: 652529.12 | G38: 23.24493835
A39: Zimowe oczyszczanie ulic | B39: 2222188 | C39: 650809.1 | D39: 29.28686052 | E39: 2222188 | F39: 650809.1 | G39: 29.28686052
A40: Letnie oczyszczanie ulic | B40: 580000 | C40: 0 | D40: 0 | E40: 580000 | F40: 0 | G40: 0
A41: Oczyszczanie pozostałych terenów | B41: 5000 | C41: 1720.02 | D41: 34.4004 | E41: 5000 | F41: 1720.02 | G41: 34.4004
A42: Interwencyjne pogotowie oczyszczania | B42: 5000 | C42: 1803.02 | D42: 36.0604 | E42: 5000 | F42: 1803.02 | G42: 36.0604
A43: Opróżnianie i zakup koszy ulicznych | B43: 470000 | C43: 220343.4 | D43: 46.88157447 | E43: 470000 | F43: 220343.4 | G43: 46.88157447
A44: Szalety miejskie i kabiny sanitarne | B44: 57500 | C44: 19463.87 | D44: 33.8502087 | E44: 57500 | F44: 19463.87 | G44: 33.8502087
A45: Likwidacja dzikich wysypisk | B45: 30000 | C45: 14298.21 | D45: 47.6607 | E45: 30000 | F45: 14298.21 | G45: 47.6607
A46: Akcje związane z utrzymaniem czystości i porządku | B46: 73404 | C46: 25420.8 | D46: 34.63135524 | E46: 73404 | F46: 25420.8 | G46: 34.63135524
A47: Dzień Ziemi i inne | B47: 73404 | C47: 25420.8 | D47: 34.63135524 | E47: 73404 | F47: 25420.8 | G47: 34.63135524
A48: Opracowania i analizy związane z ochroną środowiska i monitorowanie środowiska | B48: 16000 | C48: 892.98 | D48: 5.581125 | E48: 16000 | F48: 892.98 | G48: 5.581125
A49: Zadania z zakresu bezdomności zwierząt w mieście | B49: 110000 | C49: 57623 | D49: 52.38454546 | E49: 110000 | F49: 57623 | G49: 52.38454546
A50: Gospodarka ściekowa i ochrona wód | B50: 1065899 | C50: 235741.43 | D50: 22.11667616 | E50: 1065899 | F50: 235741.43 | G50: 22.11667616
A51: Utrzymanie i remonty sieci wodno-kanalizacyjnej | B51: 853356 | C51: 175246.43 | D51: 20.53614552 | E51: 853356 | F51: 175246.43 | G51: 20.53614552
A52: Utrzymanie i konserwacja urządzeń wodnych i innych zbiorników wodnych | B52: 212543 | C52: 60495 | D52: 28.46247583 | E52: 212543 | F52: 60495 | G52: 28.46247583
A53: Tereny zielone | B53: 2885017 | C53: 696245.59 | D53: 24.13315381 | E53: 2885017 | F53: 696245.59 | G53: 24.13315381
A54: Utrzymanie i konserwacja zieleni | B54: 105000 | C54: 8653.47 | D54: 8.2414 | E54: 105000 | F54: 8653.47 | G54: 8.2414
A55: Utrzymanie i konserwacja zieleni przyulicznej | B55: 1437298 | C55: 250701.93 | D55: 17.44258532 | E55: 1437298 | F55: 250701.93 | G55: 17.44258532
A56: Utrzymanie parków | B56: 1342719 | C56: 436890.19 | D56: 32.53772308 | E56: 1342719 | F56: 436890.19 | G56: 32.53772308
A57: Pozostałe zadania z zakresu gospodarki komunalnej | B57: 850699 | C57: 304103.93 | D57: 35.74753585 | E57: 850699 | F57: 304103.93 | G57: 35.74753585
A58: Place zabaw, ścieżki zdrowia i inne formy aktywności plenerowej | B58: 764347 | C58: 280503.93 | D58: 36.69850605 | E58: 764347 | F58: 280503.93 | G58: 36.69850605
A59: Przedsięwzięcia ekologiczne | B59: 86352 | C59: 23600 | D59: 27.32999815 | E59: 86352 | F59: 23600 | G59: 27.32999815
A60: EDUKACJA | B60: 296070823 | C60: 158628394.5 | D60: 53.57785442 | E60: 61769220 | F60: 32385627.48 | G60: 52.43004118
A61: Oświata i edukacyjna opieka wychowawcza | B61: 280236957 | C61: 152558443.4 | D61: 54.43908793 | E61: 60916524 | F61: 32218916.99 | G61: 52.89027488
A62: Prowadzenie przedszkoli i innych form wychowania przedszkolnego | B62: 84228577 | C62: 47023182.9 | D62: 55.82806284 | E62: 41011946 | F62: 21835267.9 | G62: 53.2412383
A63: Prowadzenie publicznych przedszkoli i innych form wychowania przedszkolnego | B63: 43434031 | C63: 25281192.02 | D63: 58.20595381 | E63: 217400 | F63: 93277.02 | G63: 42.90571297
A64: Dotacje dla niepublicznych przedszkoli i innych form wychowania przedszkolnego | B64: 40794546 | C64: 21741990.88 | D64: 53.2963178 | E64: 40794546 | F64: 21741990.88 | G64: 53.2963178
A65: Prowadzenie oddziałów "0" w szkołach podstawowych | B65: 12358732 | C65: 6552946.68 | D65: 53.02280752
A66: Prowadzenie publicznych oddziałów "0" w szkołach podstawowych | B66: 12358732 | C66: 6552946.68 | D66: 53.02280752
A67: Prowadzenie szkół podstawowych | B67: 112998578 | C67: 61874108.38 | D67: 54.75653718 | E67: 4014666 | F67: 2116314.22 | G67: 52.7145775
A68: Prowadzenie publicznych szkół podstawowych | B68: 109091312 | C68: 59787087.66 | D68: 54.80462794 | E68: 107400 | F68: 29293.5 | G68: 27.27513967
A69: Dotacje dla niepublicznych szkół podstawowych | B69: 3907266 | C69: 2087020.72 | D69: 53.41383771 | E69: 3907266 | F69: 2087020.72 | G69: 53.41383771
A70: Prowadzenie liceów ogólnokształcących | B70: 10158065 | C70: 5650088.66 | D70: 55.62170217 | E70: 1831460 | F70: 970123.9 | G70: 52.96997477
A71: Prowadzenie publicznych liceów ogólnokształcących | B71: 8326605 | C71: 4679964.76 | D71: 56.204957
A72: Dotacje dla niepublicznych liceów ogólnokształcących | B72: 1831460 | C72: 970123.9 | D72: 52.96997477 | E72: 1831460 | F72: 970123.9 | G72: 52.96997477
A73: Prowadzenie publicznych poradni psychologiczno-pedagogicznych | B73: 5816816 | C73: 2726925.42 | D73: 46.88003575
A74: Prowadzenie internatów i burs szkolnych | B74: 219122 | C74: 156673.38 | D74: 71.50052482 | E74: 219122 | F74: 156673.38 | G74: 71.50052482
A75: Dotacje dla niepublicznych internatów i burs szkolnych | B75: 219122 | C75: 156673.38 | D75: 71.50052482 | E75: 219122 | F75: 156673.38 | G75: 71.50052482
A76: Prowadzenie świetlic szkolnych | B76: 16193259 | C76: 8992659.64 | D76: 55.53335274
A77: Remonty w przedszkolach, szkołach i placówkach oświatowych | B77: 4642084 | C77: 794853.48 | D77: 17.12277244 | E77: 917050 | F77: 0 | G77: 0
A78: Zajęcia dla uczniów na basenach i w halach sportowych | B78: 448550 | C78: 205270.22 | D78: 45.7630632
A79: Dowożenie uczniów do szkół | B79: 1667962 | C79: 644135.13 | D79: 38.61809382 | E79: 1667962 | F79: 644135.13 | G79: 38.61809382
A80: Prowadzenie stołówek szkolnych i przedszkolnych | B80: 4732566 | C80: 2498908.99 | D80: 52.80241184
A81: Wczesne wspomaganie rozwoju dziecka | B81: 854783 | C81: 433683.83 | D81: 50.73613186 | E81: 551566 | F81: 288520.72 | G81: 52.30937367
A82: Realizacja zadań wymagających stosowania specjalnej organizacji nauki i metod pracy | B82: 24790722 | C82: 14966407.71 | D82: 60.37100376 | E82: 10664153 | F82: 6169282.74 | G82: 57.85065856
A83: Realizacja zadań wymagających stosowania specjalnej organizacji nauki i metod pracy przez placówki publiczne | B83: 14126569 | C83: 8797124.97 | D83: 62.27361343
A84: Dotacje dla podmiotów niepublicznych realizujących zadania wymagające stosowania specjalnej nauki organizacji i metod pracy | B84: 10664153 | C84: 6169282.74 | D84: 57.85065856 | E84: 10664153 | F84: 6169282.74 | G84: 57.85065856
A85: Wyposażenie szkół w podręczniki, materiały edukacyjne lub materiały ćwiczeniowe | B85: 1127141 | C85: 38599 | D85: 3.424505009 | E85: 38599 | F85: 38599 | G85: 100
A86: Wyposażenie szkół publicznych w podręczniki, materiały edukacyjne lub materiały ćwiczeniowe | B86: 1088542 | C86: 0 | D86: 0
A87: Dotacje na sfinansowanie wyposażenia placówek niepublicznych w podręczniki lub materiały ćwiczeniowe | B87: 38599 | C87: 38599 | D87: 100 | E87: 38599 | F87: 38599 | G87: 100
A88: Pozostałe zadania z zakresu oświaty i wychowania | B88: 15833866 | C88: 6069951.1 | D88: 38.33524359 | E88: 852696 | F88: 166710.49 | G88: 19.55098769
A89: Zarządzanie finansami oświaty | B89: 7240300 | C89: 3074193.07 | D89: 42.45947088
A90: Postępowania związane z awansem zawodowym nauczycieli | B90: 48700 | C90: 51.3 | D90: 0.105338809 | E90: 48700 | F90: 51.3 | G90: 0.105338809
A91: Dokształcanie i doskonalenie nauczycieli | B91: 828485 | C91: 120299.48 | D91: 14.52041739 | E91: 549196 | F91: 0 | G91: 0
A92: Fundusz socjalny dla emerytowanych pracowników oświaty | B92: 804470 | C92: 603358 | D92: 75.00068368
A93: Nagrody dla nauczycieli | B93: 226263 | C93: 0 | D93: 0 | E93: 0 | F93: 0 | G93: -
A94: Organizacja olimpiad, konkursów i uroczystości szkolnych oraz realizacja programów o charakterze innowacyjnym | B94: 516446 | C94: 87059.37 | D94: 16.85740039 | E94: 75400 | F94: 0 | G94: 0
A95: Wypoczynek dzieci i młodzieży szkolnej | B95: 1631581 | C95: 165729.49 | D95: 10.15760112
A96: Pomoc materialna dla uczniów, studentów i doktorantów | B96: 2173438 | C96: 791416.73 | D96: 36.41312658 | F96: 0 | G96: -
A97: Stypendia za wyniki w nauce | B97: 612068 | C97: 343905 | D97: 56.18738441
A98: Stypendia socjalne | B98: 125118 | C98: 37345.96 | D98: 29.84859093
A99: Dożywianie uczniów | B99: 1436252 | C99: 410165.77 | D99: 28.55806432
A100: Realizacja programów edukacyjno-oświatowych (w tym UE) | B100: 1982088 | C100: 1067395.66 | D100: 53.85208225 | E100: 179400 | F100: 166659.19 | G100: 92.89809922
A101: Programy edukacyjno - oświatowe | B101: 1008880 | C101: 480427.05 | D101: 47.61984081 | E101: 3000 | F101: 0 | G101: 0
A102: Projekty edukacyjno - oświatowe realizowane w ramach programów Unii Europejskiej | B102: 973208 | C102: 586968.61 | D102: 60.31276048 | E102: 176400 | F102: 166659.19 | G102: 94.47799887
A103: Inne zadania (utrzymanie związków zawodowych, wypłata zasądzonych rent za zlikwidowanie jednostki) | B103: 382095 | C103: 160448 | D103: 41.99165129
A104: OCHRONA ZDROWIA I POLITYKA SPOŁECZNA | B104: 43712284 | C104: 24056241.38 | D104: 55.03313755 | E104: 21573164 | F104: 12775325.59 | G104: 59.21859951
A105: Programy zdrowotne | B105: 2321298 | C105: 1116573.41 | D105: 48.1012524 | E105: 2266298 | F105: 1109073.41 | G105: 48.93766883
A106: Miejski Program Profilaktyki i Rozwiązywania Problemów Alkoholowych | B106: 2321298 | C106: 1116573.41 | D106: 48.1012524 | E106: 2266298 | F106: 1109073.41 | G106: 48.93766883
A107: Miejski Program Profilaktyki i Rozwiązywania Problemów Alkoholowych | B107: 2321298 | C107: 1116573.41 | D107: 48.1012524 | E107: 2266298 | F107: 1109073.41 | G107: 48.93766883
A108: Polityka społeczna | B108: 24965179 | C108: 13777281.97 | D108: 55.18599314 | E108: 4329095 | F108: 3507332.25 | G108: 81.01767806
A109: Poradnictwo, mieszkania chronione i ośrodki interwencji kryzysowej oraz usługi specjalistyczne | B109: 1229206 | C109: 1054938.37 | D109: 85.82274818 | E109: 7586 | F109: 997.26 | G109: 13.14605853
A110: Pomoc bezrobotnym, aktywizacja zawodowa | B110: 56082 | C110: 32803.1 | D110: 58.49131629
A111: Zadania z zakresu pomocy bezrobotnym | B111: 56082 | C111: 32803.1 | D111: 58.49131629
A112: Pomoc osobom niepełnosprawnym | B112: 35721 | C112: 35660 | D112: 99.8292321
A113: Pomoc dla repatriantów oraz dla uchodźców, w tym pomoc dla obywateli Ukrainy | B113: 3429565 | C113: 3066658.91 | D113: 89.41830553 | E113: 3214603 | F113: 2932955.47 | G113: 91.23849726
A114: Jednostki obsługi zadań z zakresu pomocy społecznej | B114: 12950593 | C114: 6182204.88 | D114: 47.73684788
A115: Zapewnienie opieki osobom przebywającym i dochodzącym w jednostkach pomocy społecznej | B115: 4287401 | C115: 2079745.2 | D115: 48.50829675
A116: Zapewnienie pomocy, opieki i wychowania dzieciom i młodzieży pozbawionym opieki rodziców | B116: 596392 | C116: 292809.79 | D116: 49.0968675
A117: Wspieranie inicjatyw społecznych na rzecz zaspokajania potrzeb życiowych osób i rodzin | B117: 1530179 | C117: 599098.98 | D117: 39.15221553 | E117: 1106906 | F117: 573379.52 | G117: 51.80019984
A118: Dożywianie | B118: 850040 | C118: 433362.74 | D118: 50.98145264
A119: Realizacja programu "Posiłek w szkole i w domu" | B119: 616168 | C119: 290873.87 | D119: 47.20690948
A120: Pozostałe zadania z zakresu dożywiania | B120: 233872 | C120: 142488.87 | D120: 60.92600653
A121: Wypłata świadczeń i zasiłków oraz pomoc w naturze | B121: 16425807 | C121: 9162386 | D121: 55.78043137 | E121: 14977771 | F121: 8158919.93 | G121: 54.47352567
A122: Zasiłki i pomoc w naturze | B122: 1701119 | C122: 1022168.01 | D122: 60.08797797 | E122: 322667 | F122: 62000 | G122: 19.21485618
A123: Świadczenia rodzinne, wychowawcze i z funduszu alimentacyjnego | B123: 13732673 | C123: 7520575.48 | D123: 54.76410514 | E123: 13732673 | F123: 7520575.48 | G123: 54.76410514
A124: Dodatki mieszkaniowe i energetyczne | B124: 706813 | C124: 437054.6 | D124: 61.83454464 | E124: 706813 | F124: 437054.6 | G124: 61.83454464
A125: Ubezpieczenia zdrowotne i świadczenia dla osób nieobjętych ubezpieczeniem społecznym oraz osób pobierających niektóre świadczenia z pomocy społecznej | B125: 285202 | C125: 182587.91 | D125: 64.02055736 | E125: 215618 | F125: 139289.85 | G125: 64.60028847
A126: KULTURA I OCHRONA DZIEDZICTWA KULTUROWEGO | B126: 19262651 | C126: 9659485.66 | D126: 50.14619047 | E126: 19262651 | F126: 9659485.66 | G126: 50.14619047
A127: Upowszechnianie kultury i tradycji | B127: 2227034 | C127: 771742.76 | D127: 34.65338922 | E127: 2227034 | F127: 771742.76 | G127: 34.65338922
A128: Przedsięwzięcia artystyczne i kulturalne | B128: 2227034 | C128: 771742.76 | D128: 34.65338922 | E128: 2227034 | F128: 771742.76 | G128: 34.65338922
A129: Ochrona i konserwacja obiektów zabytkowych | B129: 390961 | C129: 4920 | D129: 1.258437542 | E129: 390961 | F129: 4920 | G129: 1.258437542
A130: Ochrona zabytków i opieka nad zabytkami | B130: 390961 | C130: 4920 | D130: 1.258437542 | E130: 390961 | F130: 4920 | G130: 1.258437542
A131: Działalność kulturalna | B131: 16568156 | C131: 8879737 | D131: 53.59520396 | E131: 16568156 | F131: 8879737 | G131: 53.59520396
A132: Prowadzenie działalności kulturalnej przez domy i ośrodki kultury | B132: 8183593 | C132: 4164207 | D132: 50.88482528 | E132: 8183593 | F132: 4164207 | G132: 50.88482528
A133: Bemowskie Centrum Kultury w Dzielnicy Bemowo | B133: 8183593 | C133: 4164207 | D133: 50.88482528 | E133: 8183593 | F133: 4164207 | G133: 50.88482528
A134: Prowadzenie działalności kulturalnej przez biblioteki | B134: 8384563 | C134: 4715530 | D134: 56.24061743 | E134: 8384563 | F134: 4715530 | G134: 56.24061743
A135: Biblioteka Publiczna w Dzielnicy Bemowo | B135: 8384563 | C135: 4715530 | D135: 56.24061743 | E135: 8384563 | F135: 4715530 | G135: 56.24061743
A136: Pozostałe inicjatywy w zakresie kultury | B136: 76500 | C136: 3085.9 | D136: 4.033856209 | E136: 76500 | F136: 3085.9 | G136: 4.033856209
A137: Utrzymanie pomników, rzeźb i innych miejsc pamięci | B137: 76500 | C137: 3085.9 | D137: 4.033856209 | E137: 76500 | F137: 3085.9 | G137: 4.033856209
A138: REKREACJA, SPORT I TURYSTYKA | B138: 9223682 | C138: 5416330.06 | D138: 58.72199475 | E138: 9223682 | F138: 5416330.06 | G138: 58.72199475
A139: Działalność rekreacyjno-sportowa | B139: 1649542 | C139: 607660.34 | D139: 36.83812476 | E139: 1649542 | F139: 607660.34 | G139: 36.83812476
A140: Utrzymanie obiektów sportowo-rekreacyjnych | B140: 1649542 | C140: 607660.34 | D140: 36.83812476 | E140: 1649542 | F140: 607660.34 | G140: 36.83812476
A141: Upowszechnianie kultury fizycznej i sportu | B141: 7574140 | C141: 4808669.72 | D141: 63.48799626 | E141: 7574140 | F141: 4808669.72 | G141: 63.48799626
A142: Imprezy rekreacyjno-sportowe | B142: 812000 | C142: 518417 | D142: 63.84445813 | E142: 812000 | F142: 518417 | G142: 63.84445813
A143: Podnoszenie sprawności fizycznej mieszkańców oraz szkolenia i współzawodnictwo sportowe dzieci i młodzieży | B143: 1854700 | C143: 760252.72 | D143: 40.99060333 | E143: 1854700 | F143: 760252.72 | G143: 40.99060333
A144: Sport i rekreacja osób niepełnosprawnych | B144: 313000 | C144: 230000 | D144: 73.48242812 | E144: 313000 | F144: 230000 | G144: 73.48242812
A145: Prowadzenie działalności sportowo - rekreacyjnej | B145: 4594440 | C145: 3300000 | D145: 71.82594614 | E145: 4594440 | F145: 3300000 | G145: 71.82594614
A146: Ośrodek Sportu i Rekreacji w Dzielnicy Bemowo | B146: 4594440 | C146: 3300000 | D146: 71.82594614 | E146: 4594440 | F146: 3300000 | G146: 71.82594614
A147: DZIAŁALNOŚĆ PROMOCYJNA I WSPIERANIE ROZWOJU GOSPODARCZEGO | B147: 1505625 | C147: 456974.13 | D147: 30.35112528 | E147: 1505625 | F147: 456974.13 | G147: 30.35112528
A148: Promocja miasta | B148: 1473462 | C148: 455811.41 | D148: 30.93472448 | E148: 1473462 | F148: 455811.41 | G148: 30.93472448
A149: Promocja krajowa | B149: 1217462 | C149: 379498.44 | D149: 31.17127598 | E149: 1217462 | F149: 379498.44 | G149: 31.17127598
A150: Udział w wystawach, targach, imprezach promocyjnych | B150: 591663 | C150: 165978.47 | D150: 28.052873 | E150: 591663 | F150: 165978.47 | G150: 28.052873
A151: Wydawnictwa w tym wydawnictwa multimedialne | B151: 170000 | C151: 80841.9 | D151: 47.55405882 | E151: 170000 | F151: 80841.9 | G151: 47.55405882
A152: Reklama w mediach, zakup materiałów promocyjnych oraz zarządzanie marką miasta Warszawy | B152: 455799 | C152: 132678.07 | D152: 29.10889888 | E152: 455799 | F152: 132678.07 | G152: 29.10889888
A153: Promocja zagraniczna | B153: 80000 | C153: 0 | D153: 0 | E153: 80000 | F153: 0 | G153: 0
A154: Wymiana młodzieży | B154: 80000 | C154: 0 | D154: 0 | E154: 80000 | F154: 0 | G154: 0
A155: Współpraca regionalna | B155: 1000 | C155: 280.6 | D155: 28.06 | E155: 1000 | F155: 280.6 | G155: 28.06
A156: Współpraca międzynarodowa | B156: 117000 | C156: 72194.37 | D156: 61.70458974 | E156: 117000 | F156: 72194.37 | G156: 61.70458974
A157: Dekoracja miasta | B157: 58000 | C157: 3838 | D157: 6.617241379 | E157: 58000 | F157: 3838 | G157: 6.617241379
A158: Wspieranie rozwoju gospodarczego | B158: 32163 | C158: 1162.72 | D158: 3.615085657 | E158: 32163 | F158: 1162.72 | G158: 3.615085657
A159: Obsługa inwestorów i promocja gospodarcza | B159: 32163 | C159: 1162.72 | D159: 3.615085657 | E159: 32163 | F159: 1162.72 | G159: 3.615085657
A160: ZARZĄDZANIE STRUKTURAMI SAMORZĄDOWYMI | B160: 50303422 | C160: 24934943.98 | D160: 49.56908097 | E160: 50240752 | F160: 24905820.75 | G160: 49.57294578
A161: Funkcjonowanie Urzędu Miasta | B161: 49155220 | C161: 24475980.48 | D161: 49.79324776 | E161: 49155220 | F161: 24475980.48 | G161: 49.79324776
A162: Utrzymanie stanowisk pracy | B162: 41754454 | C162: 21906127.29 | D162: 52.46416895 | E162: 41754454 | F162: 21906127.29 | G162: 52.46416895
A163: Fundusz wynagrodzeń | B163: 41426494 | C163: 21824927.74 | D163: 52.68350187 | E163: 41426494 | F163: 21824927.74 | G163: 52.68350187
A164: Wydatki na rzecz pracownika | B164: 327960 | C164: 81199.55 | D164: 24.75897975 | E164: 327960 | F164: 81199.55 | G164: 24.75897975
A165: Zapewnienie prawidłowego działania Urzędu | B165: 7400766 | C165: 2569853.19 | D165: 34.72415139 | E165: 7400766 | F165: 2569853.19 | G165: 34.72415139
A166: Remonty bieżące w budynkach | B166: 917827 | C166: 171874.92 | D166: 18.7262872 | E166: 917827 | F166: 171874.92 | G166: 18.7262872
A167: Utrzymanie Urzędu | B167: 3541297 | C167: 1368273.5 | D167: 38.63763757 | E167: 3541297 | F167: 1368273.5 | G167: 38.63763757
A168: Obsługa informatyczna | B168: 1161703 | C168: 346582.25 | D168: 29.8339808 | E168: 1161703 | F168: 346582.25 | G168: 29.8339808
A169: Obsługa teletechniczna | B169: 171000 | C169: 116721.75 | D169: 68.25833333 | E169: 171000 | F169: 116721.75 | G169: 68.25833333
A170: Obsługa prawna | B170: 122000 | C170: 32406.44 | D170: 26.56265574 | E170: 122000 | F170: 32406.44 | G170: 26.56265574
A171: Obsługa kancelaryjna | B171: 585273 | C171: 218395.5 | D171: 37.31515037 | E171: 585273 | F171: 218395.5 | G171: 37.31515037
A172: Obsługa medialna | B172: 30000 | C172: 12546 | D172: 41.82 | E172: 30000 | F172: 12546 | G172: 41.82
A173: Ochrona osób i mienia | B173: 871666 | C173: 303052.83 | D173: 34.76708166 | E173: 871666 | F173: 303052.83 | G173: 34.76708166
A174: Rozwój społeczeństwa obywatelskiego | B174: 1148202 | C174: 458963.5 | D174: 39.97236549 | E174: 1085532 | F174: 429840.27 | G174: 39.59719935
A175: Obsługa organizacyjno-techniczna Rady m.st. Warszawy i Rad Dzielnic | B175: 748157 | C175: 356111.85 | D175: 47.59854549 | E175: 748157 | F175: 356111.85 | G175: 47.59854549
A176: Dialog społeczny, badania opinii mieszkańców, komunikacja społeczna | B176: 211855 | C176: 50368.42 | D176: 23.77494985 | E176: 211855 | F176: 50368.42 | G176: 23.77494985
A177: Centra Aktywności Lokalnej | B177: 188190 | C177: 52483.23 | D177: 27.88842659 | E177: 125520 | F177: 23360 | G177: 18.61057999
A178: FINANSE I RÓŻNE ROZLICZENIA | B178: 1946651 | C178: 78139.75 | D178: 4.014060558 | E178: 1946651 | F178: 78139.75 | G178: 4.014060558
A179: Zadania z zakresu polityki finansowej | B179: 1946651 | C179: 78139.75 | D179: 4.014060558 | E179: 1946651 | F179: 78139.75 | G179: 4.014060558
A180: Różne rozliczenia | B180: 1946651 | C180: 78139.75 | D180: 4.014060558 | E180: 1946651 | F180: 78139.75 | G180: 4.014060558

Sheet Białołęka.
A6: WYKONANIE WYDATKÓW BIEŻĄCYCH MIASTA STOŁECZNEGO WARSZAWY W UKŁADZIE ZADAŃ ZA I PÓŁROCZE 2023 ROKU
A7: WYDATKI BIAŁOŁĘKA
A9: Wyszczególnienie | B9: Plan | E9: W tym Urząd
B10: Plan | C10: Wykonanie | D10: Wskaźnik % (kol. 3/2) | E10: Plan | F10: Wykonanie | G10: Wskaźnik % (kol. 6/5)
A11: 1 | B11: 2 | C11: 3 | D11: 4 | E11: 5 | F11: 6 | G11: 7
A12: OGÓŁEM | B12: 608467866 | C12: 330767018.9 | D12: 54.36063881 | E12: 243308595 | F12: 136538939.8 | G12: 56.11759824
A13: TRANSPORT I KOMUNIKACJA | B13: 10814630 | C13: 818972.89 | D13: 7.572823943 | E13: 10814630 | F13: 818972.89 | G13: 7.572823943
A14: Drogi i mosty | B14: 10814630 | C14: 818972.89 | D14: 7.572823943 | E14: 10814630 | F14: 818972.89 | G14: 7.572823943
A15: Utrzymanie i remonty dróg | B15: 10297130 | C15: 818972.89 | D15: 7.953409251 | E15: 10297130 | F15: 818972.89 | G15: 7.953409251
A16: Utrzymanie i remonty dróg gminnych | B16: 9797130 | C16: 818972.89 | D16: 8.359314309 | E16: 9797130 | F16: 818972.89 | G16: 8.359314309
A17: Utrzymanie i remonty dróg wewnętrznych | B17: 500000 | C17: 0 | D17: 0 | E17: 500000 | F17: 0 | G17: 0
A18: Oświetlenie ulic | B18: 352500 | C18: 0 | D18: 0 | E18: 352500 | F18: 0 | G18: 0
A19: Utrzymanie i remonty oświetlenia ulic, placów i dróg | B19: 352500 | C19: 0 | D19: 0 | E19: 352500 | F19: 0 | G19: 0
A20: Opracowania i analizy związane z drogami | B20: 165000 | C20: 0 | D20: 0 | E20: 165000 | F20: 0 | G20: 0
A21: ŁAD PRZESTRZENNY I GOSPODARKA NIERUCHOMOŚCIAMI | B21: 12798700 | C21: 4499405.38 | D21: 35.15517498 | E21: 2815000 | F21: 139372.3 | G21: 4.951058615
A22: Gospodarka przestrzenna | B22: 2151814 | C22: 0 | D22: 0 | E22: 2151814 | F22: 0 | G22: 0
A23: Plany zagospodarowania przestrzennego | B23: 2151814 | C23: 0 | D23: 0 | E23: 2151814 | F23: 0 | G23: 0
A24: Mieszkaniowy zasób komunalny oraz pozostałe zadania związane z zapewnieniem lokali mieszkalnych | B24: 9803400 | C24: 4291280.75 | D24: 43.77339239 | E24: 50000 | F24: 70.52 | G24: 0.14104
A25: Koszty eksploatacji mieszkaniowego zasobu komunalnego | B25: 4027400 | C25: 2266901.1 | D25: 56.28696181 | E25: 400 | F25: 70.52 | G25: 17.63
A26: Remonty mieszkaniowego zasobu komunalnego | B26: 1778880 | C26: 252647.76 | D26: 14.20263087
A27: Utrzymanie jednostek gospodarujących zasobem komunalnym | B27: 3178520 | C27: 1394927.91 | D27: 43.88608252
A28: Rozliczenia ze wspólnotami mieszkaniowymi | B28: 766000 | C28: 376803.98 | D28: 49.1911201
A29: Rozliczenia za lokale z właścicielami innymi niż m.st. Warszawa | B29: 52600 | C29: 0 | D29: 0 | E29: 49600 | F29: 0 | G29: 0
A30: Zadania związane z nabywaniem i sprzedażą nieruchomości | B30: 313000 | C30: 56989.4 | D30: 18.20747604 | E30: 313000 | F30: 56989.4 | G30: 18.20747604
A31: Regulacja stanów prawnych nieruchomości, w tym odszkodowania | B31: 313000 | C31: 56989.4 | D31: 18.20747604 | E31: 313000 | F31: 56989.4 | G31: 18.20747604
A32: Pozostały zasób komunalny | B32: 530486 | C32: 151135.23 | D32: 28.48995638 | E32: 300186 | F32: 82312.38 | G32: 27.42045931
A33: Zarządzanie lokalami użytkowymi i ich eksploatacja | B33: 190300 | C33: 59629.07 | D33: 31.33424593
A34: Remonty lokali użytkowych | B34: 40000 | C34: 9193.78 | D34: 22.98445
A35: Zarządzanie pozostałymi nieruchomościami | B35: 300186 | C35: 82312.38 | D35: 27.42045931 | E35: 300186 | F35: 82312.38 | G35: 27.42045931
A36: GOSPODARKA KOMUNALNA I OCHRONA ŚRODOWISKA | B36: 9429129 | C36: 3373521.33 | D36: 35.77765592 | E36: 9409129 | F36: 3369616.1 | G36: 35.81220004
A37: Utrzymanie porządku i czystości | B37: 4530500 | C37: 2371812.26 | D37: 52.35210816 | E37: 4530500 | F37: 2371812.26 | G37: 52.35210816
A38: Oczyszczanie miasta | B38: 3300000 | C38: 2095233.45 | D38: 63.49192273 | E38: 3300000 | F38: 2095233.45 | G38: 63.49192273
A39: Zimowe oczyszczanie ulic | B39: 2300000 | C39: 1800285.49 | D39: 78.27328217 | E39: 2300000 | F39: 1800285.49 | G39: 78.27328217
A40: Letnie oczyszczanie ulic | B40: 800000 | C40: 267497.96 | D40: 33.437245 | E40: 800000 | F40: 267497.96 | G40: 33.437245
A41: Oczyszczanie pozostałych terenów | B41: 200000 | C41: 27450 | D41: 13.725 | E41: 200000 | F41: 27450 | G41: 13.725
A42: Interwencyjne pogotowie oczyszczania | B42: 50000 | C42: 1592.43 | D42: 3.18486 | E42: 50000 | F42: 1592.43 | G42: 3.18486
A43: Opróżnianie i zakup koszy ulicznych | B43: 571000 | C43: 80832.08 | D43: 14.15623117 | E43: 571000 | F43: 80832.08 | G43: 14.15623117
A44: Szalety miejskie i kabiny sanitarne | B44: 168000 | C44: 63789.3 | D44: 37.96982143 | E44: 168000 | F44: 63789.3 | G44: 37.96982143
A45: Likwidacja dzikich wysypisk | B45: 300000 | C45: 47475 | D45: 15.825 | E45: 300000 | F45: 47475 | G45: 15.825
A46: Opracowania i analizy związane z ochroną środowiska i monitorowanie środowiska | B46: 20000 | C46: 0 | D46: 0 | E46: 20000 | F46: 0 | G46: 0
A47: Zadania z zakresu bezdomności zwierząt w mieście | B47: 121500 | C47: 82890 | D47: 68.22222222 | E47: 121500 | F47: 82890 | G47: 68.22222222
A48: Gospodarka ściekowa i ochrona wód | B48: 757880 | C48: 370470.54 | D48: 48.88248008 | E48: 757880 | F48: 370470.54 | G48: 48.88248008
A49: Utrzymanie i remonty sieci wodno-kanalizacyjnej | B49: 277500 | C49: 62215.64 | D49: 22.42005045 | E49: 277500 | F49: 62215.64 | G49: 22.42005045
A50: Utrzymanie i konserwacja urządzeń wodnych i innych zbiorników wodnych | B50: 480380 | C50: 308254.9 | D50: 64.1689704 | E50: 480380 | F50: 308254.9 | G50: 64.1689704
A51: Tereny zielone | B51: 2759500 | C51: 520317.86 | D51: 18.85551223 | E51: 2759500 | F51: 520317.86 | G51: 18.85551223
A52: Utrzymanie i konserwacja zieleni | B52: 889500 | C52: 249627.42 | D52: 28.06379089 | E52: 889500 | F52: 249627.42 | G52: 28.06379089
A53: Utrzymanie i konserwacja zieleni przyulicznej | B53: 929000 | C53: 95074.04 | D53: 10.23401938 | E53: 929000 | F53: 95074.04 | G53: 10.23401938
A54: Utrzymanie parków | B54: 870000 | C54: 168851.4 | D54: 19.4082069 | E54: 870000 | F54: 168851.4 | G54: 19.4082069
A55: Opracowania związane z zielenią | B55: 71000 | C55: 6765 | D55: 9.528169014 | E55: 71000 | F55: 6765 | G55: 9.528169014
A56: Pozostałe zadania z zakresu gospodarki komunalnej | B56: 1381249 | C56: 110920.67 | D56: 8.030461561 | E56: 1361249 | F56: 107015.44 | G56: 7.861562433
A57: Place zabaw, ścieżki zdrowia i inne formy aktywności plenerowej | B57: 1255000 | C57: 80617.33 | D57: 6.423691633 | E57: 1255000 | F57: 80617.33 | G57: 6.423691633
A58: Wykonywanie zadań związanych z rolnictwem w mieście | B58: 4249 | C58: 4022.79 | D58: 94.6761591 | E58: 4249 | F58: 4022.79 | G58: 94.6761591
A59: Gospodarowanie targowiskami i nadzór nad handlem obwoźnym | B59: 20000 | C59: 3905.23 | D59: 19.52615
A60: Przedsięwzięcia ekologiczne | B60: 102000 | C60: 22375.32 | D60: 21.93658823 | E60: 102000 | F60: 22375.32 | G60: 21.93658823
A61: EDUKACJA | B61: 457681790 | C61: 259062794.3 | D61: 56.60325579 | E61: 125986978 | F61: 79949617.6 | G61: 63.45863586
A62: Oświata i edukacyjna opieka wychowawcza | B62: 442765012 | C62: 252849864.9 | D62: 57.10701118 | E62: 125419646 | F62: 79932468.48 | G62: 63.7320157
A63: Prowadzenie przedszkoli i innych form wychowania przedszkolnego | B63: 148145380 | C63: 90377086.83 | D63: 61.0056735 | E63: 99199117 | F63: 64678212.81 | G63: 65.20039166
A64: Prowadzenie publicznych przedszkoli i innych form wychowania przedszkolnego | B64: 48946263 | C64: 25698874.02 | D64: 52.5042617 | F64: 0 | G64: -
A65: Dotacje dla niepublicznych przedszkoli i innych form wychowania przedszkolnego | B65: 99199117 | C65: 64678212.81 | D65: 65.20039166 | E65: 99199117 | F65: 64678212.81 | G65: 65.20039166
A66: Prowadzenie oddziałów "0" w szkołach podstawowych | B66: 9690161 | C66: 5263076.65 | D66: 54.31361409 | E66: 107560 | F66: 55827.76 | G66: 51.90383042
A67: Prowadzenie publicznych oddziałów "0" w szkołach podstawowych | B67: 9582601 | C67: 5207248.89 | D67: 54.34066273
A68: Dotacje dla niepublicznych oddziałów "0" w szkołach podstawowych | B68: 107560 | C68: 55827.76 | D68: 51.90383042 | E68: 107560 | F68: 55827.76 | G68: 51.90383042
A69: Prowadzenie szkół podstawowych | B69: 170544716 | C69: 96328260.96 | D69: 56.48270039 | E69: 5097900 | F69: 3139512.94 | G69: 61.58443555
A70: Prowadzenie publicznych szkół podstawowych | B70: 165600716 | C70: 93188748.02 | D70: 56.27315526 | E70: 153900 | F70: 0 | G70: 0
A71: Dotacje dla niepublicznych szkół podstawowych | B71: 4944000 | C71: 3139512.94 | D71: 63.50147532 | E71: 4944000 | F71: 3139512.94 | G71: 63.50147532
A72: Prowadzenie liceów ogólnokształcących | B72: 14195670 | C72: 7649985.78 | D72: 53.88957182 | E72: 17340 | F72: 1185.82 | G72: 6.838638985
A73: Prowadzenie publicznych liceów ogólnokształcących | B73: 14178330 | C73: 7648799.96 | D73: 53.94711479
A74: Dotacje dla niepublicznych liceów ogólnokształcących | B74: 17340 | C74: 1185.82 | D74: 6.838638985 | E74: 17340 | F74: 1185.82 | G74: 6.838638985
A75: Prowadzenie publicznych poradni psychologiczno-pedagogicznych | B75: 9132472 | C75: 5134594.4 | D75: 56.22348911
A76: Prowadzenie świetlic szkolnych | B76: 23999845 | C76: 13703023.24 | D76: 57.09629891
A77: Remonty w przedszkolach, szkołach i placówkach oświatowych | B77: 5183887 | C77: 559325.75 | D77: 10.78969796 | E77: 863640 | F77: 0 | G77: 0
A78: Zajęcia dla uczniów na basenach i w halach sportowych | B78: 2065371 | C78: 839768.97 | D78: 40.65947329
A79: Dowożenie uczniów do szkół | B79: 2679583 | C79: 1078470.34 | D79: 40.24769302 | E79: 2679583 | F79: 1078470.34 | G79: 40.24769302
A80: Prowadzenie stołówek szkolnych i przedszkolnych | B80: 1820287 | C80: 962004.13 | D80: 52.84903589
A81: Wczesne wspomaganie rozwoju dziecka | B81: 800452 | C81: 490686.75 | D81: 61.30120857 | E81: 735942 | F81: 466457 | G81: 63.38230458
A82: Realizacja zadań wymagających stosowania specjalnej organizacji nauki i metod pracy | B82: 52723462 | C82: 30347772.1 | D82: 57.56027952 | E82: 16602755 | F82: 10396992.81 | G82: 62.6220938
A83: Realizacja zadań wymagających stosowania specjalnej organizacji nauki i metod pracy przez placówki publiczne | B83: 36120707 | C83: 19950779.29 | D83: 55.23363452
A84: Dotacje dla podmiotów niepublicznych realizujących zadania wymagające stosowania specjalnej nauki organizacji i metod pracy | B84: 16602755 | C84: 10396992.81 | D84: 62.6220938 | E84: 16602755 | F84: 10396992.81 | G84: 62.6220938
A85: Wyposażenie szkół w podręczniki, materiały edukacyjne lub materiały ćwiczeniowe | B85: 1783726 | C85: 115809 | D85: 6.492533046 | E85: 115809 | F85: 115809 | G85: 100
A86: Wyposażenie szkół publicznych w podręczniki, materiały edukacyjne lub materiały ćwiczeniowe | B86: 1667917 | C86: 0 | D86: 0
A87: Dotacje na sfinansowanie wyposażenia placówek niepublicznych w podręczniki lub materiały ćwiczeniowe | B87: 115809 | C87: 115809 | D87: 100 | E87: 115809 | F87: 115809 | G87: 100
A88: Pozostałe zadania z zakresu oświaty i wychowania | B88: 14916778 | C88: 6212929.41 | D88: 41.65061255 | E88: 567332 | F88: 17149.12 | G88: 3.022766211
A89: Zarządzanie finansami oświaty | B89: 7597485 | C89: 3376641.06 | D89: 44.44419515
A90: Postępowania związane z awansem zawodowym nauczycieli | B90: 49000 | C90: 0 | D90: 0 | E90: 49000 | F90: 0 | G90: 0
A91: Dokształcanie i doskonalenie nauczycieli | B91: 778739 | C91: 151544.14 | D91: 19.46019655 | E91: 292092 | F91: 0 | G91: 0
A92: Fundusz socjalny dla emerytowanych pracowników oświaty | B92: 441317 | C92: 330987.75 | D92: 75
A93: Nagrody dla nauczycieli | B93: 167530 | C93: 5859.5 | D93: 3.497582523 | E93: 167530 | F93: 5859.5 | G93: 3.497582523
A94: Organizacja olimpiad, konkursów i uroczystości szkolnych oraz realizacja programów o charakterze innowacyjnym | B94: 175118 | C94: 70506.78 | D94: 40.26244018 | E94: 13300 | F94: 0 | G94: 0
A95: Wypoczynek dzieci i młodzieży szkolnej | B95: 2119214 | C95: 438452.73 | D95: 20.68940324 | E95: 30000 | F95: 0 | G95: 0
A96: Pomoc materialna dla uczniów, studentów i doktorantów | B96: 1190453 | C96: 578530.54 | D96: 48.59751204
A97: Stypendia za wyniki w nauce | B97: 175720 | C97: 129770 | D97: 73.85044389
A98: Stypendia socjalne | B98: 246894 | C98: 86820.39 | D98: 35.16504654
A99: Dożywianie uczniów | B99: 767839 | C99: 361940.15 | D99: 47.13750539
A100: Realizacja programów edukacyjno-oświatowych (w tym UE) | B100: 2382512 | C100: 1249117.29 | D100: 52.42858336 | F100: 0 | G100: -
A101: Programy edukacyjno - oświatowe | B101: 1255990 | C101: 449107.77 | D101: 35.75727275
A102: Projekty edukacyjno - oświatowe realizowane w ramach programów Unii Europejskiej | B102: 1126522 | C102: 800009.52 | D102: 71.01588074 | F102: 0 | G102: -
A103: Inne zadania (utrzymanie związków zawodowych, wypłata zasądzonych rent za zlikwidowanie jednostki) | B103: 15410 | C103: 11289.62 | D103: 73.26164828 | E103: 15410 | F103: 11289.62 | G103: 73.26164828
A104: OCHRONA ZDROWIA I POLITYKA SPOŁECZNA | B104: 43411424 | C104: 27069190.23 | D104: 62.35499262 | E104: 31195956 | F104: 21188132.47 | G104: 67.9194844
A105: Programy zdrowotne | B105: 1691131 | C105: 886732 | D105: 52.43425849 | E105: 1691131 | F105: 886732 | G105: 52.43425849
A106: Miejski Program Profilaktyki i Rozwiązywania Problemów Alkoholowych | B106: 1691131 | C106: 886732 | D106: 52.43425849 | E106: 1691131 | F106: 886732 | G106: 52.43425849
A107: Miejski Program Profilaktyki i Rozwiązywania Problemów Alkoholowych | B107: 1691131 | C107: 886732 | D107: 52.43425849 | E107: 1691131 | F107: 886732 | G107: 52.43425849
A108: Polityka społeczna | B108: 18387494 | C108: 12812551.92 | D108: 69.68079457 | E108: 8135893 | F108: 7903083.39 | G108: 97.13848732
A109: Poradnictwo, mieszkania chronione i ośrodki interwencji kryzysowej oraz usługi specjalistyczne | B109: 7585 | C109: 0 | D109: 0 | E109: 7585 | F109: 0 | G109: 0
A110: Pomoc osobom niepełnosprawnym | B110: 35036 | C110: 35035 | D110: 99.99714579
A111: Pomoc dla repatriantów oraz dla uchodźców, w tym pomoc dla obywateli Ukrainy | B111: 8165499 | C111: 8087053.15 | D111: 99.03930121 | E111: 7827600 | F111: 7803083.39 | G111: 99.68679276
A112: Jednostki obsługi zadań z zakresu pomocy społecznej | B112: 8418396 | C112: 3984161.34 | D112: 47.32684635
A113: Zapewnienie pomocy, opieki i wychowania dzieciom i młodzieży pozbawionym opieki rodziców | B113: 688851 | C113: 309714.28 | D113: 44.96099737
A114: Wspieranie inicjatyw społecznych na rzecz zaspokajania potrzeb życiowych osób i rodzin | B114: 388533 | C114: 111266.97 | D114: 28.63771417 | E114: 300708 | F114: 100000 | G114: 33.25485188
A115: Dożywianie | B115: 683594 | C115: 285321.18 | D115: 41.73839735
A116: Realizacja programu "Posiłek w szkole i w domu" | B116: 475345 | C116: 172700.5 | D116: 36.33161178
A117: Pozostałe zadania z zakresu dożywiania | B117: 208249 | C117: 112620.68 | D117: 54.07981791
A118: Wypłata świadczeń i zasiłków oraz pomoc w naturze | B118: 23332799 | C118: 13369906.31 | D118: 57.30091066 | E118: 21368932 | F118: 12398317.08 | G118: 58.02029357
A119: Zasiłki i pomoc w naturze | B119: 3270353 | C119: 1276983.79 | D119: 39.04727685 | E119: 1400703 | F119: 352500 | G119: 25.16593453
A120: Świadczenia rodzinne, wychowawcze i z funduszu alimentacyjnego | B120: 19171019 | C120: 11590122.02 | D120: 60.45647349 | E120: 19171019 | F120: 11590122.02 | G120: 60.45647349
A121: Dodatki mieszkaniowe i energetyczne | B121: 602389 | C121: 321666.16 | D121: 53.39841199 | E121: 602389 | F121: 321666.16 | G121: 53.39841199
A122: Ubezpieczenia zdrowotne i świadczenia dla osób nieobjętych ubezpieczeniem społecznym oraz osób pobierających niektóre świadczenia z pomocy społecznej | B122: 289038 | C122: 181134.34 | D122: 62.66800213 | E122: 194821 | F122: 134028.9 | G122: 68.79592036
A123: KULTURA I OCHRONA DZIEDZICTWA KULTUROWEGO | B123: 12484515 | C123: 6273030 | D123: 50.24648535 | E123: 12484515 | F123: 6273030 | G123: 50.24648535
A124: Upowszechnianie kultury i tradycji | B124: 1120000 | C124: 406030 | D124: 36.25267857 | E124: 1120000 | F124: 406030 | G124: 36.25267857
A125: Przedsięwzięcia artystyczne i kulturalne | B125: 1120000 | C125: 406030 | D125: 36.25267857 | E125: 1120000 | F125: 406030 | G125: 36.25267857
A126: Działalność kulturalna | B126: 11322515 | C126: 5860000 | D126: 51.75528582 | E126: 11322515 | F126: 5860000 | G126: 51.75528582
A127: Prowadzenie działalności kulturalnej przez domy i ośrodki kultury | B127: 5588000 | C127: 2855000 | D127: 51.09162491 | E127: 5588000 | F127: 2855000 | G127: 51.09162491
A128: Białołęcki Ośrodek Kultury | B128: 5588000 | C128: 2855000 | D128: 51.09162491 | E128: 5588000 | F128: 2855000 | G128: 51.09162491
A129: Prowadzenie działalności kulturalnej przez biblioteki | B129: 5734515 | C129: 3005000 | D129: 52.4019904 | E129: 5734515 | F129: 3005000 | G129: 52.4019904
A130: Biblioteka Publiczna w Dzielnicy Białołęka | B130: 5734515 | C130: 3005000 | D130: 52.4019904 | E130: 5734515 | F130: 3005000 | G130: 52.4019904
A131: Pozostałe inicjatywy w zakresie kultury | B131: 42000 | C131: 7000 | D131: 16.66666667 | E131: 42000 | F131: 7000 | G131: 16.66666667
A132: Utrzymanie pomników, rzeźb i innych miejsc pamięci | B132: 42000 | C132: 7000 | D132: 16.66666667 | E132: 42000 | F132: 7000 | G132: 16.66666667
A133: REKREACJA, SPORT I TURYSTYKA | B133: 12978634 | C133: 5397661.87 | D133: 41.58882876 | E133: 2108634 | F133: 706113.09 | G133: 33.48675446
A134: Działalność rekreacyjno-sportowa | B134: 10597334 | C134: 4623929.31 | D134: 43.63294872 | E134: 5634 | F134: 0 | G134: 0
A135: Utrzymanie obiektów sportowo-rekreacyjnych | B135: 10597334 | C135: 4623929.31 | D135: 43.63294872 | E135: 5634 | F135: 0 | G135: 0
A136: Upowszechnianie kultury fizycznej i sportu | B136: 2381300 | C136: 773732.56 | D136: 32.49202368 | E136: 2103000 | F136: 706113.09 | G136: 33.57646648
A137: Imprezy rekreacyjno-sportowe | B137: 1024900 | C137: 246905.48 | D137: 24.09068982 | E137: 849000 | F137: 198394.01 | G137: 23.36796349
A138: Podnoszenie sprawności fizycznej mieszkańców oraz szkolenia i współzawodnictwo sportowe dzieci i młodzieży | B138: 1314900 | C138: 500147.08 | D138: 38.03689102 | E138: 1212500 | F138: 481039.08 | G138: 39.67332619
A139: Sport i rekreacja osób niepełnosprawnych | B139: 41500 | C139: 26680 | D139: 64.28915663 | E139: 41500 | F139: 26680 | G139: 64.28915663
A140: DZIAŁALNOŚĆ PROMOCYJNA I WSPIERANIE ROZWOJU GOSPODARCZEGO | B140: 871100 | C140: 552003.68 | D140: 63.36857766 | E140: 871100 | F140: 552003.68 | G140: 63.36857766
A141: Promocja miasta | B141: 871100 | C141: 552003.68 | D141: 63.36857766 | E141: 871100 | F141: 552003.68 | G141: 63.36857766
A142: Promocja krajowa | B142: 761100 | C142: 551686.73 | D142: 72.48544607 | E142: 761100 | F142: 551686.73 | G142: 72.48544607
A143: Udział w wystawach, targach, imprezach promocyjnych | B143: 576200 | C143: 442015.75 | D143: 76.7122093 | E143: 576200 | F143: 442015.75 | G143: 76.7122093
A144: Wydawnictwa w tym wydawnictwa multimedialne | B144: 93100 | C144: 32670.1 | D144: 35.09140709 | E144: 93100 | F144: 32670.1 | G144: 35.09140709
A145: Reklama w mediach, zakup materiałów promocyjnych oraz zarządzanie marką miasta Warszawy | B145: 91800 | C145: 77000.88 | D145: 83.87895425 | E145: 91800 | F145: 77000.88 | G145: 83.87895425
A146: Promocja zagraniczna | B146: 70000 | C146: 0 | D146: 0 | E146: 70000 | F146: 0 | G146: 0
A147: Wymiana młodzieży | B147: 70000 | C147: 0 | D147: 0 | E147: 70000 | F147: 0 | G147: 0
A148: Współpraca regionalna | B148: 10000 | C148: 316.95 | D148: 3.1695 | E148: 10000 | F148: 316.95 | G148: 3.1695
A149: Współpraca międzynarodowa | B149: 30000 | C149: 0 | D149: 0 | E149: 30000 | F149: 0 | G149: 0
A150: ZARZĄDZANIE STRUKTURAMI SAMORZĄDOWYMI | B150: 47218204 | C150: 23524772.46 | D150: 49.8214046 | E150: 46842913 | F150: 23346414.94 | G150: 49.83980168
A151: Działania na rzecz mieszkańców | B151: 39915 | C151: 9820.17 | D151: 24.60270575 | E151: 39915 | F151: 9820.17 | G151: 24.60270575
A152: Obsługa mieszkańców | B152: 39915 | C152: 9820.17 | D152: 24.60270575 | E152: 39915 | F152: 9820.17 | G152: 24.60270575
A153: Zadania z zakresu ewidencji ludności, wydawania dowodów osobistych, decyzji administracyjnych | B153: 39915 | C153: 9820.17 | D153: 24.60270575 | E153: 39915 | F153: 9820.17 | G153: 24.60270575
A154: Funkcjonowanie Urzędu Miasta | B154: 46262298 | C154: 23107183.29 | D154: 49.94819602 | E154: 45972998 | F154: 22951343.16 | G154: 49.92352937
A155: Utrzymanie stanowisk pracy | B155: 39498733 | C155: 20775597.77 | D155: 52.59813719 | E155: 39498733 | F155: 20775597.77 | G155: 52.59813719
A156: Fundusz wynagrodzeń | B156: 38997583 | C156: 20627667.21 | D156: 52.8947325 | E156: 38997583 | F156: 20627667.21 | G156: 52.8947325
A157: Wydatki na rzecz pracownika | B157: 501150 | C157: 147930.56 | D157: 29.51822009 | E157: 501150 | F157: 147930.56 | G157: 29.51822009
A158: Zapewnienie prawidłowego działania Urzędu | B158: 6763565 | C158: 2331585.52 | D158: 34.47273028 | E158: 6474265 | F158: 2175745.39 | G158: 33.60606015
A159: Remonty bieżące w budynkach | B159: 1180420 | C159: 544885.05 | D159: 46.16026923 | E159: 1162720 | F159: 535374.82 | G159: 46.04503406
A160: Utrzymanie Urzędu | B160: 3373245 | C160: 1034521.56 | D160: 30.66843826 | E160: 3101645 | F160: 888191.66 | G160: 28.63614824
A161: Obsługa informatyczna | B161: 726940 | C161: 158764.84 | D161: 21.84015737 | E161: 726940 | F161: 158764.84 | G161: 21.84015737
A162: Obsługa teletechniczna | B162: 65410 | C162: 6847.4 | D162: 10.4684299 | E162: 65410 | F162: 6847.4 | G162: 10.4684299
A163: Obsługa w zakresie prowadzenia procedur przetargowych | B163: 550 | C163: 0 | D163: 0 | E163: 550 | F163: 0 | G163: 0
A164: Obsługa kancelaryjna | B164: 651000 | C164: 287134.35 | D164: 44.10665899 | E164: 651000 | F164: 287134.35 | G164: 44.10665899
A165: Obsługa medialna | B165: 5400 | C165: 1131.6 | D165: 20.95555556 | E165: 5400 | F165: 1131.6 | G165: 20.95555556
A166: Ochrona osób i mienia | B166: 760600 | C166: 298300.72 | D166: 39.21913226 | E166: 760600 | F166: 298300.72 | G166: 39.21913226
A167: Rozwój społeczeństwa obywatelskiego | B167: 915991 | C167: 407769 | D167: 44.51670377 | E167: 830000 | F167: 385251.61 | G167: 46.41585663
A168: Obsługa organizacyjno-techniczna Rady m.st. Warszawy i Rad Dzielnic | B168: 820000 | C168: 385251.61 | D168: 46.98190366 | E168: 820000 | F168: 385251.61 | G168: 46.98190366
A169: Dialog społeczny, badania opinii mieszkańców, komunikacja społeczna | B169: 10000 | C169: 0 | D169: 0 | E169: 10000 | F169: 0 | G169: 0
A170: Centra Aktywności Lokalnej | B170: 85991 | C170: 22517.39 | D170: 26.185752
A171: FINANSE I RÓŻNE ROZLICZENIA | B171: 779740 | C171: 195666.75 | D171: 25.09384538 | E171: 779740 | F171: 195666.75 | G171: 25.09384538
A172: Zadania z zakresu polityki finansowej | B172: 777740 | C172: 195666.75 | D172: 25.15837555 | E172: 777740 | F172: 195666.75 | G172: 25.15837555
A173: Różne rozliczenia | B173: 777740 | C173: 195666.75 | D173: 25.15837555 | E173: 777740 | F173: 195666.75 | G173: 25.15837555
A174: Zadania z zakresu polityki podatkowej | B174: 2000 | C174: 0 | D174: 0 | E174: 2000 | F174: 0 | G174: 0
A175: Wymiar, windykacja i ewidencja podatków i opłat lokalnych oraz należności niepodatkowych | B175: 2000 | C175: 0 | D175: 0 | E175: 2000 | F175: 0 | G175: 0

Sheet Bielany.
A6: WYKONANIE WYDATKÓW BIEŻĄCYCH MIASTA STOŁECZNEGO WARSZAWY W UKŁADZIE ZADAŃ ZA I PÓŁROCZE 2023 ROKU
A7: WYDATKI BIELANY
A9: Wyszczególnienie | B9: Plan | E9: W tym Urząd
B10: Plan | C10: Wykonanie | D10: Wskaźnik % (kol. 3/2) | E10: Plan | F10: Wykonanie | G10: Wskaźnik % (kol. 6/5)
A11: 1 | B11: 2 | C11: 3 | D11: 4 | E11: 5 | F11: 6 | G11: 7
A12: OGÓŁEM | B12: 684780946 | C12: 354478537.1 | D12: 51.76524539 | E12: 218636621 | F12: 116763797.6 | G12: 53.40541628
A13: TRANSPORT I KOMUNIKACJA | B13: 3563000 | C13: 599254.43 | D13: 16.81881645 | E13: 3563000 | F13: 599254.43 | G13: 16.81881645
A14: Komunikacja zbiorowa | B14: 148000 | C14: 10000 | D14: 6.756756757 | E14: 148000 | F14: 10000 | G14: 6.756756757
A15: Zarządzanie komunikacją miejską | B15: 148000 | C15: 10000 | D15: 6.756756757 | E15: 148000 | F15: 10000 | G15: 6.756756757
A16: Organizacja komunikacji, marketing, nadzór i kontrola ruchu | B16: 148000 | C16: 10000 | D16: 6.756756757 | E16: 148000 | F16: 10000 | G16: 6.756756757
A17: Drogi i mosty | B17: 3415000 | C17: 589254.43 | D17: 17.25488814 | E17: 3415000 | F17: 589254.43 | G17: 17.25488814
A18: Utrzymanie i remonty dróg | B18: 2685000 | C18: 544085.9 | D18: 20.26390689 | E18: 2685000 | F18: 544085.9 | G18: 20.26390689
A19: Utrzymanie i remonty dróg gminnych | B19: 2625000 | C19: 494128.09 | D19: 18.82392724 | E19: 2625000 | F19: 494128.09 | G19: 18.82392724
A20: Utrzymanie i remonty dróg wewnętrznych | B20: 60000 | C20: 49957.81 | D20: 83.26301667 | E20: 60000 | F20: 49957.81 | G20: 83.26301667
A21: Oświetlenie ulic | B21: 650000 | C21: 45168.53 | D21: 6.949004615 | E21: 650000 | F21: 45168.53 | G21: 6.949004615
A22: Utrzymanie i remonty oświetlenia ulic, placów i dróg | B22: 650000 | C22: 45168.53 | D22: 6.949004615 | E22: 650000 | F22: 45168.53 | G22: 6.949004615
A23: Opracowania i analizy związane z drogami | B23: 80000 | C23: 0 | D23: 0 | E23: 80000 | F23: 0 | G23: 0
A24: ŁAD PRZESTRZENNY I GOSPODARKA NIERUCHOMOŚCIAMI | B24: 78910468 | C24: 34428623.28 | D24: 43.62998237 | E24: 660000 | F24: 179853.76 | G24: 27.2505697
A25: Gospodarka przestrzenna | B25: 60000 | C25: 17672.57 | D25: 29.45428333 | E25: 60000 | F25: 17672.57 | G25: 29.45428333
A26: Architektura, Urbanistyka i Zagospodarowanie Przestrzeni Publicznej | B26: 60000 | C26: 17672.57 | D26: 29.45428333 | E26: 60000 | F26: 17672.57 | G26: 29.45428333
A27: Mieszkaniowy zasób komunalny oraz pozostałe zadania związane z zapewnieniem lokali mieszkalnych | B27: 75307600 | C27: 32424659.23 | D27: 43.05629077 | E27: 270000 | F27: 703.31 | G27: 0.260485185
A28: Koszty eksploatacji mieszkaniowego zasobu komunalnego | B28: 11036500 | C28: 3957558.14 | D28: 35.8588152 | E28: 60000 | F28: 703.31 | G28: 1.172183333
A29: Remonty mieszkaniowego zasobu komunalnego | B29: 9420200 | C29: 1031032.4 | D29: 10.94490988
A30: Utrzymanie jednostek gospodarujących zasobem komunalnym | B30: 14442900 | C30: 6327742.23 | D30: 43.81213074
A31: Rozliczenia ze wspólnotami mieszkaniowymi | B31: 40195000 | C31: 21108326.46 | D31: 52.51480647
A32: Rozliczenia za lokale z właścicielami innymi niż m.st. Warszawa | B32: 213000 | C32: 0 | D32: 0 | E32: 210000 | F32: 0 | G32: 0
A33: Zadania związane z nabywaniem i sprzedażą nieruchomości | B33: 111000 | C33: 7602.02 | D33: 6.848666667 | E33: 111000 | F33: 7602.02 | G33: 6.848666667
A34: Przygotowanie nieruchomości komunalnych przeznaczonych m.in. do zbycia i zamiany | B34: 54000 | C34: 6143.12 | D34: 11.37614815 | E34: 54000 | F34: 6143.12 | G34: 11.37614815
A35: Regulacja stanów prawnych nieruchomości, w tym odszkodowania | B35: 57000 | C35: 1458.9 | D35: 2.559473684 | E35: 57000 | F35: 1458.9 | G35: 2.559473684
A36: Pozostały zasób komunalny | B36: 3431868 | C36: 1978689.46 | D36: 57.65633935 | E36: 219000 | F36: 153875.86 | G36: 70.26294977
A37: Zarządzanie lokalami użytkowymi i ich eksploatacja | B37: 2332868 | C37: 1722413.07 | D37: 73.8324273
A38: Remonty lokali użytkowych | B38: 880000 | C38: 102400.53 | D38: 11.63642386
A39: Zarządzanie pozostałymi nieruchomościami | B39: 219000 | C39: 153875.86 | D39: 70.26294977 | E39: 219000 | F39: 153875.86 | G39: 70.26294977
A40: GOSPODARKA KOMUNALNA I OCHRONA ŚRODOWISKA | B40: 11597116 | C40: 4355739.67 | D40: 37.55881781 | E40: 11597116 | F40: 4355739.67 | G40: 37.55881781
A41: Utrzymanie porządku i czystości | B41: 3875887 | C41: 1678418.83 | D41: 43.30412187 | E41: 3875887 | F41: 1678418.83 | G41: 43.30412187
A42: Oczyszczanie miasta | B42: 1531872 | C42: 566812.49 | D42: 37.0012958 | E42: 1531872 | F42: 566812.49 | G42: 37.0012958
A43: Zimowe oczyszczanie ulic | B43: 701145 | C43: 203889.89 | D43: 29.07956129 | E43: 701145 | F43: 203889.89 | G43: 29.07956129
A44: Letnie oczyszczanie ulic | B44: 780727 | C44: 362922.6 | D44: 46.48521186 | E44: 780727 | F44: 362922.6 | G44: 46.48521186
A45: Oczyszczanie pozostałych terenów | B45: 50000 | C45: 0 | D45: 0 | E45: 50000 | F45: 0 | G45: 0
A46: Opróżnianie i zakup koszy ulicznych | B46: 695812 | C46: 300525.9 | D46: 43.19067507 | E46: 695812 | F46: 300525.9 | G46: 43.19067507
A47: Szalety miejskie i kabiny sanitarne | B47: 60000 | C47: 12634.2 | D47: 21.057 | E47: 60000 | F47: 12634.2 | G47: 21.057
A48: Likwidacja dzikich wysypisk | B48: 840000 | C48: 573536.82 | D48: 68.27819286 | E48: 840000 | F48: 573536.82 | G48: 68.27819286
A49: Akcje związane z utrzymaniem czystości i porządku | B49: 26000 | C49: 0 | D49: 0 | E49: 26000 | F49: 0 | G49: 0
A50: Dzień Ziemi i inne | B50: 26000 | C50: 0 | D50: 0 | E50: 26000 | F50: 0 | G50: 0
A51: Opracowania i analizy związane z ochroną środowiska i monitorowanie środowiska | B51: 317023 | C51: 50732.59 | D51: 16.00281052 | E51: 317023 | F51: 50732.59 | G51: 16.00281052
A52: Zadania z zakresu bezdomności zwierząt w mieście | B52: 405180 | C52: 174176.83 | D52: 42.98751913 | E52: 405180 | F52: 174176.83 | G52: 42.98751913
A53: Gospodarka ściekowa i ochrona wód | B53: 891400 | C53: 371928.23 | D53: 41.72405542 | E53: 891400 | F53: 371928.23 | G53: 41.72405542
A54: Utrzymanie i remonty sieci wodno-kanalizacyjnej | B54: 701400 | C54: 342844.23 | D54: 48.87998717 | E54: 701400 | F54: 342844.23 | G54: 48.87998717
A55: Utrzymanie i konserwacja urządzeń wodnych i innych zbiorników wodnych | B55: 190000 | C55: 29084 | D55: 15.30736842 | E55: 190000 | F55: 29084 | G55: 15.30736842
A56: Tereny zielone | B56: 4859304 | C56: 1662964.87 | D56: 34.22228513 | E56: 4859304 | F56: 1662964.87 | G56: 34.22228513
A57: Utrzymanie i konserwacja zieleni | B57: 630000 | C57: 10000 | D57: 1.587301587 | E57: 630000 | F57: 10000 | G57: 1.587301587
A58: Utrzymanie i konserwacja zieleni przyulicznej | B58: 1831304 | C58: 787442.75 | D58: 42.99901873 | E58: 1831304 | F58: 787442.75 | G58: 42.99901873
A59: Utrzymanie parków | B59: 2388000 | C59: 865522.12 | D59: 36.24464489 | E59: 2388000 | F59: 865522.12 | G59: 36.24464489
A60: Opracowania związane z zielenią | B60: 10000 | C60: 0 | D60: 0 | E60: 10000 | F60: 0 | G60: 0
A61: Pozostałe zadania z zakresu gospodarki komunalnej | B61: 1970525 | C61: 642427.74 | D61: 32.60185687 | E61: 1970525 | F61: 642427.74 | G61: 32.60185687
A62: Place zabaw, ścieżki zdrowia i inne formy aktywności plenerowej | B62: 1150025 | C62: 427862.41 | D62: 37.20461816 | E62: 1150025 | F62: 427862.41 | G62: 37.20461816
A63: Przedsięwzięcia ekologiczne | B63: 820500 | C63: 214565.33 | D63: 26.1505582 | E63: 820500 | F63: 214565.33 | G63: 26.1505582
A64: EDUKACJA | B64: 451355942 | C64: 247523369.7 | D64: 54.83994929 | E64: 106238840 | F64: 63445978.29 | G64: 59.72013464
A65: Oświata i edukacyjna opieka wychowawcza | B65: 430778708 | C65: 238525656.4 | D65: 55.37080918 | E65: 105846701 | F65: 63443979.42 | G65: 59.93949629
A66: Prowadzenie przedszkoli i innych form wychowania przedszkolnego | B66: 84125862 | C66: 46457493.76 | D66: 55.22379522 | E66: 13872591 | F66: 8819259.78 | G66: 63.57327034
A67: Prowadzenie publicznych przedszkoli i innych form wychowania przedszkolnego | B67: 70283271 | C67: 37650033.28 | D67: 53.5689827 | E67: 30000 | F67: 11799.3 | G67: 39.331
A68: Dotacje dla niepublicznych przedszkoli i innych form wychowania przedszkolnego | B68: 13842591 | C68: 8807460.48 | D68: 63.62580878 | E68: 13842591 | F68: 8807460.48 | G68: 63.62580878
A69: Prowadzenie przedszkoli specjalnych | B69: 2411016 | C69: 1379758.05 | D69: 57.22724569
A70: Prowadzenie publicznych przedszkoli specjalnych | B70: 2411016 | C70: 1379758.05 | D70: 57.22724569
A71: Prowadzenie oddziałów "0" w szkołach podstawowych | B71: 6123045 | C71: 3213551.3 | D71: 52.48289536 | E71: 260000 | F71: 140218.56 | G71: 53.93021538
A72: Prowadzenie publicznych oddziałów "0" w szkołach podstawowych | B72: 5863045 | C72: 3073332.74 | D72: 52.41871314
A73: Dotacje dla niepublicznych oddziałów "0" w szkołach podstawowych | B73: 260000 | C73: 140218.56 | D73: 53.93021538 | E73: 260000 | F73: 140218.56 | G73: 53.93021538
A74: Prowadzenie szkół podstawowych | B74: 119838889 | C74: 66950525.47 | D74: 55.86711128 | E74: 17003825 | F74: 10153397.13 | G74: 59.71243017
A75: Prowadzenie publicznych szkół podstawowych | B75: 102840064 | C75: 56799190.49 | D75: 55.23060593 | E75: 5000 | F75: 2062.15 | G75: 41.243
A76: Dotacje dla niepublicznych szkół podstawowych | B76: 16998825 | C76: 10151334.98 | D76: 59.71786273 | E76: 16998825 | F76: 10151334.98 | G76: 59.71786273
A77: Prowadzenie liceów ogólnokształcących | B77: 79631543 | C77: 45894542.4 | D77: 57.63362189 | E77: 21315065 | F77: 12634804.79 | G77: 59.27640751
A78: Prowadzenie publicznych liceów ogólnokształcących | B78: 58316478 | C78: 33259737.61 | D78: 57.0331727
A79: Dotacje dla niepublicznych liceów ogólnokształcących | B79: 21315065 | C79: 12634804.79 | D79: 59.27640751 | E79: 21315065 | F79: 12634804.79 | G79: 59.27640751
A80: Prowadzenie publicznych poradni psychologiczno-pedagogicznych | B80: 5595468 | C80: 3153018.38 | D80: 56.34950249
A81: Prowadzenie internatów i burs szkolnych | B81: 2145142 | C81: 1088930.47 | D81: 50.76262877 | E81: 295000 | F81: 153206.85 | G81: 51.93452542
A82: Prowadzenie publicznych internatów i burs szkolnych | B82: 1850142 | C82: 935723.62 | D82: 50.5757731
A83: Dotacje dla niepublicznych internatów i burs szkolnych | B83: 295000 | C83: 153206.85 | D83: 51.93452542 | E83: 295000 | F83: 153206.85 | G83: 51.93452542
A84: Prowadzenie świetlic szkolnych | B84: 13575256 | C84: 8014203.92 | D84: 59.03537966
A85: Prowadzenie placówek wychowania pozaszkolnego | B85: 6308753 | C85: 3289572.93 | D85: 52.14299767
A86: Prowadzenie publicznych placówek wychowania pozaszkolnego | B86: 6308753 | C86: 3289572.93 | D86: 52.14299767
A87: Remonty w przedszkolach, szkołach i placówkach oświatowych | B87: 5650328 | C87: 625558.66 | D87: 11.07119197 | E87: 2168500 | F87: 152310 | G87: 7.023749135
A88: Zajęcia dla uczniów na basenach i w halach sportowych | B88: 341400 | C88: 197830 | D88: 57.9466901
A89: Dowożenie uczniów do szkół | B89: 2000000 | C89: 890989.79 | D89: 44.5494895 | E89: 2000000 | F89: 890989.79 | G89: 44.5494895
A90: Wczesne wspomaganie rozwoju dziecka | B90: 532000 | C90: 353597.16 | D90: 66.46563158 | E90: 532000 | F90: 353597.16 | G90: 66.46563158
A91: Realizacja zadań wymagających stosowania specjalnej organizacji nauki i metod pracy | B91: 80203715 | C91: 44155644.22 | D91: 55.05436278 | E91: 45992000 | F91: 27864274.3 | G91: 60.58504588
A92: Realizacja zadań wymagających stosowania specjalnej organizacji nauki i metod pracy przez placówki publiczne | B92: 34211715 | C92: 16291369.92 | D92: 47.61927287
A93: Dotacje dla podmiotów niepublicznych realizujących zadania wymagające stosowania specjalnej nauki organizacji i metod pracy | B93: 45992000 | C93: 27864274.3 | D93: 60.58504588 | E93: 45992000 | F93: 27864274.3 | G93: 60.58504588
A94: Prowadzenie techników | B94: 18565054 | C94: 10474149.47 | D94: 56.41863186 | E94: 253300 | F94: 127501.06 | G94: 50.33598895
A95: Prowadzenie publicznych techników | B95: 18311754 | C95: 10346648.41 | D95: 56.5027709
A96: Dotacje dla niepublicznych techników | B96: 253300 | C96: 127501.06 | D96: 50.33598895 | E96: 253300 | F96: 127501.06 | G96: 50.33598895
A97: Prowadzenie branżowych szkół I i II stopnia | B97: 686662 | C97: 231870.4 | D97: 33.76776347
A98: Prowadzenie publicznych branżowych szkół I i II stopnia | B98: 686662 | C98: 231870.4 | D98: 33.76776347
A99: Wyposażenie szkół w podręczniki, materiały edukacyjne lub materiały ćwiczeniowe | B99: 3044575 | C99: 2154420 | D99: 70.76258591 | E99: 2154420 | F99: 2154420 | G99: 100
A100: Wyposażenie szkół publicznych w podręczniki, materiały edukacyjne lub materiały ćwiczeniowe | B100: 890155 | C100: 0 | D100: 0
A101: Dotacje na sfinansowanie wyposażenia placówek niepublicznych w podręczniki lub materiały ćwiczeniowe | B101: 2154420 | C101: 2154420 | D101: 100 | E101: 2154420 | F101: 2154420 | G101: 100
A102: Pozostałe zadania z zakresu oświaty i wychowania | B102: 20577234 | C102: 8997713.35 | D102: 43.72654435 | E102: 392139 | F102: 1998.87 | G102: 0.509735068
A103: Zarządzanie finansami oświaty | B103: 9981900 | C103: 4285612.18 | D103: 42.93383204
A104: Postępowania związane z awansem zawodowym nauczycieli | B104: 42000 | C104: 1998.87 | D104: 4.759214286 | E104: 42000 | F104: 1998.87 | G104: 4.759214286
A105: Dokształcanie i doskonalenie nauczycieli | B105: 741864 | C105: 112491.23 | D105: 15.16332239 | E105: 350139 | F105: 0 | G105: 0
A106: Fundusz socjalny dla emerytowanych pracowników oświaty | B106: 2231067 | C106: 2231067 | D106: 100
A107: Nagrody dla nauczycieli | B107: 297950 | C107: 10187.7 | D107: 3.419264977
A108: Organizacja olimpiad, konkursów i uroczystości szkolnych oraz realizacja programów o charakterze innowacyjnym | B108: 806254 | C108: 122591.91 | D108: 15.2051227
A109: Wypoczynek dzieci i młodzieży szkolnej | B109: 804619 | C109: 151919.03 | D109: 18.88086535
A110: Pomoc materialna dla uczniów, studentów i doktorantów | B110: 2941211 | C110: 1135501.54 | D110: 38.60659912
A111: Stypendia za wyniki w nauce | B111: 550000 | C111: 488535 | D111: 88.82454546
A112: Stypendia socjalne | B112: 401499 | C112: 46470.05 | D112: 11.57413842
A113: Dożywianie uczniów | B113: 1989712 | C113: 600496.49 | D113: 30.18007078
A114: Realizacja programów edukacyjno-oświatowych (w tym UE) | B114: 2314469 | C114: 852697.72 | D114: 36.84204541
A115: Programy edukacyjno - oświatowe | B115: 1390994 | C115: 506505.87 | D115: 36.41323183
A116: Projekty edukacyjno - oświatowe realizowane w ramach programów Unii Europejskiej | B116: 923475 | C116: 346191.85 | D116: 37.4879504
A117: Inne zadania (utrzymanie związków zawodowych, wypłata zasądzonych rent za zlikwidowanie jednostki) | B117: 415900 | C117: 93646.17 | D117: 22.51651118
A118: OCHRONA ZDROWIA I POLITYKA SPOŁECZNA | B118: 63916456 | C118: 30529979.55 | D118: 47.76544486 | E118: 32189776 | F118: 16001000.75 | G118: 49.70833208
A119: Programy zdrowotne | B119: 2587306 | C119: 1184530.2 | D119: 45.7823775 | E119: 2587306 | F119: 1184530.2 | G119: 45.7823775
A120: Miejski Program Profilaktyki i Rozwiązywania Problemów Alkoholowych | B120: 2587306 | C120: 1184530.2 | D120: 45.7823775 | E120: 2587306 | F120: 1184530.2 | G120: 45.7823775
A121: Miejski Program Profilaktyki i Rozwiązywania Problemów Alkoholowych | B121: 2587306 | C121: 1184530.2 | D121: 45.7823775 | E121: 2587306 | F121: 1184530.2 | G121: 45.7823775
A122: Polityka społeczna | B122: 31955059 | C122: 15017661.81 | D122: 46.99619491 | E122: 4791902 | F122: 2741259.13 | G122: 57.20607663
A123: Poradnictwo, mieszkania chronione i ośrodki interwencji kryzysowej oraz usługi specjalistyczne | B123: 903060 | C123: 736616.65 | D123: 81.56895998 | E123: 7585 | F123: 0 | G123: 0
A124: Pomoc dla repatriantów oraz dla uchodźców, w tym pomoc dla obywateli Ukrainy | B124: 2435026 | C124: 2144243.35 | D124: 88.0583349 | E124: 2218869 | F124: 2007293.17 | G124: 90.46469936
A125: Jednostki obsługi zadań z zakresu pomocy społecznej | B125: 15232131 | C125: 6902357.35 | D125: 45.31445633
A126: Zapewnienie opieki osobom przebywającym i dochodzącym w jednostkach pomocy społecznej | B126: 6066052 | C126: 2638373.44 | D126: 43.49407885 | E126: 37248 | F126: 0 | G126: 0
A127: Zapewnienie pomocy, opieki i wychowania dzieciom i młodzieży pozbawionym opieki rodziców | B127: 604472 | C127: 325902.76 | D127: 53.91527813
A128: Wspieranie inicjatyw społecznych na rzecz zaspokajania potrzeb życiowych osób i rodzin | B128: 3152700 | C128: 821734.01 | D128: 26.06445301 | E128: 2528200 | F128: 733965.96 | G128: 29.03116684
A129: Dożywianie | B129: 3561618 | C129: 1448434.25 | D129: 40.66787202
A130: Realizacja programu "Posiłek w szkole i w domu" | B130: 2692633 | C130: 1022563.09 | D130: 37.97632615
A131: Pozostałe zadania z zakresu dożywiania | B131: 868985 | C131: 425871.16 | D131: 49.00788391
A132: Wypłata świadczeń i zasiłków oraz pomoc w naturze | B132: 29374091 | C132: 14327787.54 | D132: 48.77695633 | E132: 24810568 | F132: 12075211.42 | G132: 48.66962909
A133: Zasiłki i pomoc w naturze | B133: 4877608 | C133: 2258902.58 | D133: 46.31168761 | E133: 483025 | F133: 82500 | G133: 17.07986129
A134: Świadczenia rodzinne, wychowawcze i z funduszu alimentacyjnego | B134: 21686447 | C134: 10483275.28 | D134: 48.3402158 | E134: 21686447 | F134: 10483275.28 | G134: 48.3402158
A135: Dodatki mieszkaniowe i energetyczne | B135: 2503821 | C135: 1414455 | D135: 56.49185784 | E135: 2503821 | F135: 1414455 | G135: 56.49185784
A136: Ubezpieczenia zdrowotne i świadczenia dla osób nieobjętych ubezpieczeniem społecznym oraz osób pobierających niektóre świadczenia z pomocy społecznej | B136: 306215 | C136: 171154.68 | D136: 55.89363029 | E136: 137275 | F136: 94981.14 | G136: 69.1904134
A137: KULTURA I OCHRONA DZIEDZICTWA KULTUROWEGO | B137: 18209848 | C137: 8344902.28 | D137: 45.82631486 | E137: 18209848 | F137: 8344902.28 | G137: 45.82631486
A138: Upowszechnianie kultury i tradycji | B138: 2000000 | C138: 505602.28 | D138: 25.280114 | E138: 2000000 | F138: 505602.28 | G138: 25.280114
A139: Przedsięwzięcia artystyczne i kulturalne | B139: 2000000 | C139: 505602.28 | D139: 25.280114 | E139: 2000000 | F139: 505602.28 | G139: 25.280114
A140: Działalność kulturalna | B140: 16134848 | C140: 7827100 | D140: 48.51052827 | E140: 16134848 | F140: 7827100 | G140: 48.51052827
A141: Prowadzenie działalności kulturalnej przez domy i ośrodki kultury | B141: 5476000 | C141: 2370000 | D141: 43.27976625 | E141: 5476000 | F141: 2370000 | G141: 43.27976625
A142: Bielański Ośrodek Kultury | B142: 5476000 | C142: 2370000 | D142: 43.27976625 | E142: 5476000 | F142: 2370000 | G142: 43.27976625
A143: Prowadzenie działalności kulturalnej przez biblioteki | B143: 10658848 | C143: 5457100 | D143: 51.19784052 | E143: 10658848 | F143: 5457100 | G143: 51.19784052
A144: Biblioteka Publiczna im. Stanisława Staszica w Dzielnicy Bielany | B144: 10658848 | C144: 5457100 | D144: 51.19784052 | E144: 10658848 | F144: 5457100 | G144: 51.19784052
A145: Pozostałe inicjatywy w zakresie kultury | B145: 75000 | C145: 12200 | D145: 16.26666667 | E145: 75000 | F145: 12200 | G145: 16.26666667
A146: Utrzymanie pomników, rzeźb i innych miejsc pamięci | B146: 75000 | C146: 12200 | D146: 16.26666667 | E146: 75000 | F146: 12200 | G146: 16.26666667
A147: REKREACJA, SPORT I TURYSTYKA | B147: 13646099 | C147: 5898164.03 | D147: 43.2223453 | E147: 2596024 | F147: 1038564.27 | G147: 40.00595796
A148: Działalność rekreacyjno-sportowa | B148: 11025075 | C148: 4856634.62 | D148: 44.050808
A149: Utrzymanie obiektów sportowo-rekreacyjnych | B149: 11025075 | C149: 4856634.62 | D149: 44.050808
A150: Upowszechnianie kultury fizycznej i sportu | B150: 2621024 | C150: 1041529.41 | D150: 39.73749992 | E150: 2596024 | F150: 1038564.27 | G150: 40.00595796
A151: Imprezy rekreacyjno-sportowe | B151: 1012000 | C151: 569076.46 | D151: 56.23285178 | E151: 987000 | F151: 566111.32 | G151: 57.35677001
A152: Podnoszenie sprawności fizycznej mieszkańców oraz szkolenia i współzawodnictwo sportowe dzieci i młodzieży | B152: 1524024 | C152: 450452.95 | D152: 29.55681472 | E152: 1524024 | F152: 450452.95 | G152: 29.55681472
A153: Szkolenia i dokształcanie kadr kultury fizycznej | B153: 20000 | C153: 0 | D153: 0 | E153: 20000 | F153: 0 | G153: 0
A154: Sport i rekreacja osób niepełnosprawnych | B154: 65000 | C154: 22000 | D154: 33.84615385 | E154: 65000 | F154: 22000 | G154: 33.84615385
A155: DZIAŁALNOŚĆ PROMOCYJNA I WSPIERANIE ROZWOJU GOSPODARCZEGO | B155: 1649090 | C155: 421526.73 | D155: 25.56117192 | E155: 1649090 | F155: 421526.73 | G155: 25.56117192
A156: Promocja miasta | B156: 1235000 | C156: 325115.69 | D156: 26.32515709 | E156: 1235000 | F156: 325115.69 | G156: 26.32515709
A157: Promocja krajowa | B157: 1220000 | C157: 320861.85 | D157: 26.30015164 | E157: 1220000 | F157: 320861.85 | G157: 26.30015164
A158: Udział w wystawach, targach, imprezach promocyjnych | B158: 349600 | C158: 126644.57 | D158: 36.2255635 | E158: 349600 | F158: 126644.57 | G158: 36.2255635
A159: Wydawnictwa w tym wydawnictwa multimedialne | B159: 565400 | C159: 121064.08 | D159: 21.41211178 | E159: 565400 | F159: 121064.08 | G159: 21.41211178
A160: Reklama w mediach, zakup materiałów promocyjnych oraz zarządzanie marką miasta Warszawy | B160: 305000 | C160: 73153.2 | D160: 23.98465574 | E160: 305000 | F160: 73153.2 | G160: 23.98465574
A161: Współpraca regionalna | B161: 10000 | C161: 2363.83 | D161: 23.6383 | E161: 10000 | F161: 2363.83 | G161: 23.6383
A162: Współpraca międzynarodowa | B162: 5000 | C162: 1890.01 | D162: 37.8002 | E162: 5000 | F162: 1890.01 | G162: 37.8002
A163: Wspieranie rozwoju gospodarczego | B163: 414090 | C163: 96411.04 | D163: 23.28262938 | E163: 414090 | F163: 96411.04 | G163: 23.28262938
A164: Pozyskiwanie środków i funduszy pomocowych | B164: 40000 | C164: 0 | D164: 0 | E164: 40000 | F164: 0 | G164: 0
A165: Obsługa inwestorów i promocja gospodarcza | B165: 374090 | C165: 96411.04 | D165: 25.77215109 | E165: 374090 | F165: 96411.04 | G165: 25.77215109
A166: ZARZĄDZANIE STRUKTURAMI SAMORZĄDOWYMI | B166: 41482045 | C166: 22263998.73 | D166: 53.67141068 | E166: 41482045 | F166: 22263998.73 | G166: 53.67141068
A167: Działania na rzecz mieszkańców | B167: 5930 | C167: 3330 | D167: 56.15514334 | E167: 5930 | F167: 3330 | G167: 56.15514334
A168: Obsługa mieszkańców | B168: 5930 | C168: 3330 | D168: 56.15514334 | E168: 5930 | F168: 3330 | G168: 56.15514334
A169: Zadania z zakresu ewidencji ludności, wydawania dowodów osobistych, decyzji administracyjnych | B169: 5930 | C169: 3330 | D169: 56.15514334 | E169: 5930 | F169: 3330 | G169: 56.15514334
A170: Funkcjonowanie Urzędu Miasta | B170: 40577915 | C170: 21870184.82 | D170: 53.89676828 | E170: 40577915 | F170: 21870184.82 | G170: 53.89676828
A171: Utrzymanie stanowisk pracy | B171: 33061010 | C171: 19424460.73 | D171: 58.75337968 | E171: 33061010 | F171: 19424460.73 | G171: 58.75337968
A172: Fundusz wynagrodzeń | B172: 32692877 | C172: 19274681.06 | D172: 58.95682127 | E172: 32692877 | F172: 19274681.06 | G172: 58.95682127
A173: Wydatki na rzecz pracownika | B173: 368133 | C173: 149779.67 | D173: 40.68629273 | E173: 368133 | F173: 149779.67 | G173: 40.68629273
A174: Zapewnienie prawidłowego działania Urzędu | B174: 7516905 | C174: 2445724.09 | D174: 32.53631767 | E174: 7516905 | F174: 2445724.09 | G174: 32.53631767
A175: Remonty bieżące w budynkach | B175: 656500 | C175: 123072.27 | D175: 18.7467281 | E175: 656500 | F175: 123072.27 | G175: 18.7467281
A176: Utrzymanie Urzędu | B176: 4414432 | C176: 1627847.59 | D176: 36.87558422 | E176: 4414432 | F176: 1627847.59 | G176: 36.87558422
A177: Obsługa informatyczna | B177: 460910 | C177: 25511.76 | D177: 5.535084941 | E177: 460910 | F177: 25511.76 | G177: 5.535084941
A178: Obsługa teletechniczna | B178: 28000 | C178: 9030.93 | D178: 32.25332143 | E178: 28000 | F178: 9030.93 | G178: 32.25332143
A179: Obsługa prawna | B179: 161000 | C179: 47405.4 | D179: 29.44434783 | E179: 161000 | F179: 47405.4 | G179: 29.44434783
A180: Obsługa kancelaryjna | B180: 848000 | C180: 280710.15 | D180: 33.10261203 | E180: 848000 | F180: 280710.15 | G180: 33.10261203
A181: Obsługa medialna | B181: 40000 | C181: 9059.57 | D181: 22.648925 | E181: 40000 | F181: 9059.57 | G181: 22.648925
A182: Ochrona osób i mienia | B182: 908063 | C182: 323086.42 | D182: 35.57973621 | E182: 908063 | F182: 323086.42 | G182: 35.57973621
A183: Rozwój społeczeństwa obywatelskiego | B183: 898200 | C183: 390483.91 | D183: 43.47404921 | E183: 898200 | F183: 390483.91 | G183: 43.47404921
A184: Obsługa organizacyjno-techniczna Rady m.st. Warszawy i Rad Dzielnic | B184: 852000 | C184: 380483.91 | D184: 44.65773592 | E184: 852000 | F184: 380483.91 | G184: 44.65773592
A185: Utrzymanie i działalność statutowa Rad Osiedli | B185: 6200 | C185: 0 | D185: 0 | E185: 6200 | F185: 0 | G185: 0
A186: Centra Aktywności Lokalnej | B186: 40000 | C186: 10000 | D186: 25 | E186: 40000 | F186: 10000 | G186: 25
A187: FINANSE I RÓŻNE ROZLICZENIA | B187: 450882 | C187: 112978.67 | D187: 25.05725888 | E187: 450882 | F187: 112978.67 | G187: 25.05725888
A188: Zadania z zakresu polityki finansowej | B188: 424144 | C188: 109285.91 | D188: 25.76622798 | E188: 424144 | F188: 109285.91 | G188: 25.76622798
A189: Obsługa finansowo-księgowa | B189: 423644 | C189: 109119.91 | D189: 25.75745437 | E189: 423644 | F189: 109119.91 | G189: 25.75745437
A190: Różne rozliczenia | B190: 500 | C190: 166 | D190: 33.2 | E190: 500 | F190: 166 | G190: 33.2
A191: Zadania z zakresu polityki podatkowej | B191: 26738 | C191: 3692.76 | D191: 13.81090583 | E191: 26738 | F191: 3692.76 | G191: 13.81090583
A192: Wymiar, windykacja i ewidencja podatków i opłat lokalnych oraz należności niepodatkowych | B192: 26738 | C192: 3692.76 | D192: 13.81090583 | E192: 26738 | F192: 3692.76 | G192: 13.81090583

Sheet Mokotów.
A6: WYKONANIE WYDATKÓW BIEŻĄCYCH MIASTA STOŁECZNEGO WARSZAWY W UKŁADZIE ZADAŃ ZA I PÓŁROCZE 2023 ROKU
A7: WYDATKI MOKOTÓW
A9: Wyszczególnienie | B9: Plan | E9: W tym Urząd
B10: Plan | C10: Wykonanie | D10: Wskaźnik % (kol. 3/2) | E10: Plan | F10: Wykonanie | G10: Wskaźnik % (kol. 6/5)
A11: 1 | B11: 2 | C11: 3 | D11: 4 | E11: 5 | F11: 6 | G11: 7
A12: OGÓŁEM | B12: 1024573684 | C12: 525446445.1 | D12: 51.28439792 | E12: 337624732 | F12: 160086286.9 | G12: 47.41545028
A13: TRANSPORT I KOMUNIKACJA | B13: 20284016 | C13: 1348910.55 | D13: 6.650115786 | E13: 20284016 | F13: 1348910.55 | G13: 6.650115786
A14: Drogi i mosty | B14: 20284016 | C14: 1348910.55 | D14: 6.650115786 | E14: 20284016 | F14: 1348910.55 | G14: 6.650115786
A15: Utrzymanie i remonty dróg | B15: 18673184 | C15: 889636.17 | D15: 4.764244652 | E15: 18673184 | F15: 889636.17 | G15: 4.764244652
A16: Utrzymanie i remonty dróg gminnych | B16: 18358473 | C16: 830164.56 | D16: 4.521969556 | E16: 18358473 | F16: 830164.56 | G16: 4.521969556
A17: Utrzymanie i remonty dróg wewnętrznych | B17: 314711 | C17: 59471.61 | D17: 18.89721363 | E17: 314711 | F17: 59471.61 | G17: 18.89721363
A18: Oświetlenie ulic | B18: 1329000 | C18: 450104.38 | D18: 33.86789917 | E18: 1329000 | F18: 450104.38 | G18: 33.86789917
A19: Iluminacje obiektów architektonicznych | B19: 6000 | C19: 340.32 | D19: 5.672 | E19: 6000 | F19: 340.32 | G19: 5.672
A20: Utrzymanie i remonty oświetlenia ulic, placów i dróg | B20: 1323000 | C20: 449764.06 | D20: 33.99577173 | E20: 1323000 | F20: 449764.06 | G20: 33.99577173
A21: Opracowania i analizy związane z drogami | B21: 281832 | C21: 9170 | D21: 3.253711431 | E21: 281832 | F21: 9170 | G21: 3.253711431
A22: ŁAD PRZESTRZENNY I GOSPODARKA NIERUCHOMOŚCIAMI | B22: 180795251 | C22: 84976375.84 | D22: 47.00144244 | E22: 3055000 | F22: 667755.12 | G22: 21.85777807
A23: Gospodarka przestrzenna | B23: 109670 | C23: 0 | D23: 0 | E23: 109670 | F23: 0 | G23: 0
A24: Plany zagospodarowania przestrzennego | B24: 92670 | C24: 0 | D24: 0 | E24: 92670 | F24: 0 | G24: 0
A25: Architektura, Urbanistyka i Zagospodarowanie Przestrzeni Publicznej | B25: 17000 | C25: 0 | D25: 0 | E25: 17000 | F25: 0 | G25: 0
A26: Mieszkaniowy zasób komunalny oraz pozostałe zadania związane z zapewnieniem lokali mieszkalnych | B26: 171683416 | C26: 82450504.86 | D26: 48.02473458 | E26: 585265 | F26: 0 | G26: 0
A27: Koszty eksploatacji mieszkaniowego zasobu komunalnego | B27: 24671415 | C27: 7812783.8 | D27: 31.66735187 | E27: 3000 | F27: 0 | G27: 0
A28: Remonty mieszkaniowego zasobu komunalnego | B28: 11562804 | C28: 2401597.21 | D28: 20.77002438
A29: Utrzymanie jednostek gospodarujących zasobem komunalnym | B29: 55258778 | C29: 24647997.83 | D29: 44.60467408
A30: Rozliczenia ze wspólnotami mieszkaniowymi | B30: 79393154 | C30: 47582189.03 | D30: 59.93235768
A31: Opracowania i analizy związane z zarządzaniem zasobem komunalnym | B31: 200000 | C31: 0 | D31: 0
A32: Rozliczenia za lokale z właścicielami innymi niż m.st. Warszawa | B32: 597265 | C32: 5936.99 | D32: 0.994029451 | E32: 582265 | F32: 0 | G32: 0
A33: Zadania związane z nabywaniem i sprzedażą nieruchomości | B33: 1115035 | C33: 336349.66 | D33: 30.16494191 | E33: 1115035 | F33: 336349.66 | G33: 30.16494191
A34: Przygotowanie nieruchomości komunalnych przeznaczonych m.in. do zbycia i zamiany | B34: 94350 | C34: 12454.94 | D34: 13.20078431 | E34: 94350 | F34: 12454.94 | G34: 13.20078431
A35: Regulacja stanów prawnych nieruchomości, w tym odszkodowania | B35: 1020685 | C35: 323894.72 | D35: 31.73307338 | E35: 1020685 | F35: 323894.72 | G35: 31.73307338
A36: Pozostały zasób komunalny | B36: 7887130 | C36: 2189521.32 | D36: 27.76068507 | E36: 1245030 | F36: 331405.46 | G36: 26.61827105
A37: Zarządzanie lokalami użytkowymi i ich eksploatacja | B37: 4272572 | C37: 1560237.16 | D37: 36.51751591
A38: Remonty lokali użytkowych | B38: 1851788 | C38: 134355.79 | D38: 7.255462828
A39: Zarządzanie pozostałymi nieruchomościami | B39: 1762770 | C39: 494928.37 | D39: 28.07674115 | E39: 1245030 | F39: 331405.46 | G39: 26.61827105
A40: GOSPODARKA KOMUNALNA I OCHRONA ŚRODOWISKA | B40: 9268298 | C40: 1748393.19 | D40: 18.86423149 | E40: 8914760 | F40: 1671320.3 | G40: 18.74778794
A41: Utrzymanie porządku i czystości | B41: 5390261 | C41: 1449802.05 | D41: 26.8966948 | E41: 5390261 | F41: 1449802.05 | G41: 26.8966948
A42: Oczyszczanie miasta | B42: 4272261 | C42: 1113786.95 | D42: 26.07019913 | E42: 4272261 | F42: 1113786.95 | G42: 26.07019913
A43: Zimowe oczyszczanie ulic | B43: 1882261 | C43: 1099646.56 | D43: 58.42157703 | E43: 1882261 | F43: 1099646.56 | G43: 58.42157703
A44: Letnie oczyszczanie ulic | B44: 2350000 | C44: 0 | D44: 0 | E44: 2350000 | F44: 0 | G44: 0
A45: Oczyszczanie pozostałych terenów | B45: 40000 | C45: 14140.39 | D45: 35.350975 | E45: 40000 | F45: 14140.39 | G45: 35.350975
A46: Interwencyjne pogotowie oczyszczania | B46: 3000 | C46: 0 | D46: 0 | E46: 3000 | F46: 0 | G46: 0
A47: Opróżnianie i zakup koszy ulicznych | B47: 923000 | C47: 295500.92 | D47: 32.01526761 | E47: 923000 | F47: 295500.92 | G47: 32.01526761
A48: Likwidacja dzikich wysypisk | B48: 60000 | C48: 22014.18 | D48: 36.6903 | E48: 60000 | F48: 22014.18 | G48: 36.6903
A49: Opracowania i analizy związane z ochroną środowiska i monitorowanie środowiska | B49: 15000 | C49: 0 | D49: 0 | E49: 15000 | F49: 0 | G49: 0
A50: Zadania z zakresu bezdomności zwierząt w mieście | B50: 117000 | C50: 18500 | D50: 15.81196581 | E50: 117000 | F50: 18500 | G50: 15.81196581
A51: Gospodarka ściekowa i ochrona wód | B51: 138000 | C51: 40432.6 | D51: 29.29898551 | E51: 138000 | F51: 40432.6 | G51: 29.29898551
A52: Utrzymanie i remonty sieci wodno-kanalizacyjnej | B52: 138000 | C52: 40432.6 | D52: 29.29898551 | E52: 138000 | F52: 40432.6 | G52: 29.29898551
A53: Tereny zielone | B53: 3310499 | C53: 174316.72 | D53: 5.26557235 | E53: 3310499 | F53: 174316.72 | G53: 5.26557235
A54: Utrzymanie i konserwacja zieleni | B54: 441639 | C54: 52790.62 | D54: 11.95334198 | E54: 441639 | F54: 52790.62 | G54: 11.95334198
A55: Utrzymanie i konserwacja zieleni przyulicznej | B55: 2858860 | C55: 121526.1 | D55: 4.250858734 | E55: 2858860 | F55: 121526.1 | G55: 4.250858734
A56: Opracowania związane z zielenią | B56: 10000 | C56: 0 | D56: 0 | E56: 10000 | F56: 0 | G56: 0
A57: Pozostałe zadania z zakresu gospodarki komunalnej | B57: 429538 | C57: 83841.82 | D57: 19.51906933 | E57: 76000 | F57: 6768.93 | G57: 8.906486842
A58: Place zabaw, ścieżki zdrowia i inne formy aktywności plenerowej | B58: 358538 | C58: 77072.89 | D58: 21.49643552 | E58: 5000 | F58: 0 | G58: 0
A59: Przedsięwzięcia ekologiczne | B59: 71000 | C59: 6768.93 | D59: 9.533704225 | E59: 71000 | F59: 6768.93 | G59: 9.533704225
A60: EDUKACJA | B60: 616813678 | C60: 336683920.4 | D60: 54.58437976 | E60: 148437256 | F60: 75325279.97 | G60: 50.74553518
A61: Oświata i edukacyjna opieka wychowawcza | B61: 588670349 | C61: 323599569.8 | D61: 54.97127048 | E61: 145761737 | F61: 75123367.34 | G61: 51.5384688
A62: Prowadzenie przedszkoli i innych form wychowania przedszkolnego | B62: 136415771 | C62: 72811094.91 | D62: 53.3743968 | E62: 49799073 | F62: 26374851.96 | G62: 52.96253599
A63: Prowadzenie publicznych przedszkoli i innych form wychowania przedszkolnego | B63: 86809406 | C63: 46624729.76 | D63: 53.70930629 | E63: 192708 | F63: 188486.81 | G63: 97.80954086
A64: Dotacje dla niepublicznych przedszkoli i innych form wychowania przedszkolnego | B64: 49606365 | C64: 26186365.15 | D64: 52.78831688 | E64: 49606365 | F64: 26186365.15 | G64: 52.78831688
A65: Prowadzenie przedszkoli specjalnych | B65: 5179415 | C65: 2863803.52 | D65: 55.29202661 | E65: 867769 | F65: 381126 | G65: 43.92021379
A66: Prowadzenie publicznych przedszkoli specjalnych | B66: 4311646 | C66: 2482677.52 | D66: 57.58073645
A67: Dotacje dla niepublicznych przedszkoli specjalnych | B67: 867769 | C67: 381126 | D67: 43.92021379 | E67: 867769 | F67: 381126 | G67: 43.92021379
A68: Prowadzenie oddziałów "0" w szkołach podstawowych | B68: 4061976 | C68: 2033832.42 | D68: 50.07002552 | E68: 1293483 | F68: 556328.88 | G68: 43.01014238
A69: Prowadzenie publicznych oddziałów "0" w szkołach podstawowych | B69: 2768493 | C69: 1477503.54 | D69: 53.36851276
A70: Dotacje dla niepublicznych oddziałów "0" w szkołach podstawowych | B70: 1293483 | C70: 556328.88 | D70: 43.01014238 | E70: 1293483 | F70: 556328.88 | G70: 43.01014238
A71: Prowadzenie szkół podstawowych | B71: 168926772 | C71: 90728290.58 | D71: 53.7086511 | E71: 30669105 | F71: 15749022.86 | G71: 51.35142633
A72: Prowadzenie publicznych szkół podstawowych | B72: 138304911 | C72: 74982293.29 | D72: 54.21520664 | E72: 47244 | F72: 3025.57 | G72: 6.404135975
A73: Dotacje dla niepublicznych szkół podstawowych | B73: 30621861 | C73: 15745997.29 | D73: 51.42077188 | E73: 30621861 | F73: 15745997.29 | G73: 51.42077188
A74: Prowadzenie liceów ogólnokształcących | B74: 98745872 | C74: 58192109.18 | D74: 58.93118163 | E74: 13794250 | F74: 7255670.23 | G74: 52.59923686
A75: Prowadzenie publicznych liceów ogólnokształcących | B75: 84958867 | C75: 50939464.52 | D75: 59.95779642 | E75: 7245 | F75: 3025.57 | G75: 41.76080055
A76: Dotacje dla niepublicznych liceów ogólnokształcących | B76: 13787005 | C76: 7252644.66 | D76: 52.6049324 | E76: 13787005 | F76: 7252644.66 | G76: 52.6049324
A77: Prowadzenie publicznych poradni psychologiczno-pedagogicznych | B77: 11390192 | C77: 7163242.89 | D77: 62.88957104
A78: Prowadzenie internatów i burs szkolnych | B78: 1659270 | C78: 889500.48 | D78: 53.60794084 | E78: 1659270 | F78: 889500.48 | G78: 53.60794084
A79: Dotacje dla niepublicznych internatów i burs szkolnych | B79: 1659270 | C79: 889500.48 | D79: 53.60794084 | E79: 1659270 | F79: 889500.48 | G79: 53.60794084
A80: Prowadzenie świetlic szkolnych | B80: 16233003 | C80: 9946868.87 | D80: 61.27559312
A81: Prowadzenie placówek wychowania pozaszkolnego | B81: 7170368 | C81: 3873673.95 | D81: 54.02336324
A82: Prowadzenie publicznych placówek wychowania pozaszkolnego | B82: 7170368 | C82: 3873673.95 | D82: 54.02336324
A83: Remonty w przedszkolach, szkołach i placówkach oświatowych | B83: 9172384 | C83: 1144322.39 | D83: 12.47573575 | E83: 4399819 | F83: 447259.23 | G83: 10.16540067
A84: Zajęcia dla uczniów na basenach i w halach sportowych | B84: 988687 | C84: 311611.31 | D84: 31.51769063
A85: Dowożenie uczniów do szkół | B85: 3921448 | C85: 828286.26 | D85: 21.12194934 | E85: 3921448 | F85: 828286.26 | G85: 21.12194934
A86: Prowadzenie stołówek szkolnych i przedszkolnych | B86: 8816190 | C86: 5005398.74 | D86: 56.7750779
A87: Wczesne wspomaganie rozwoju dziecka | B87: 777052 | C87: 459630.8 | D87: 59.15058452 | E87: 777052 | F87: 459630.8 | G87: 59.15058452
A88: Realizacja zadań wymagających stosowania specjalnej organizacji nauki i metod pracy | B88: 67124328 | C88: 40959728.87 | D88: 61.02069114 | E88: 36024999 | F88: 21531922.09 | G88: 59.76938983
A89: Realizacja zadań wymagających stosowania specjalnej organizacji nauki i metod pracy przez placówki publiczne | B89: 31099329 | C89: 19427806.78 | D89: 62.47017992
A90: Dotacje dla podmiotów niepublicznych realizujących zadania wymagające stosowania specjalnej nauki organizacji i metod pracy | B90: 36024999 | C90: 21531922.09 | D90: 59.76938983 | E90: 36024999 | F90: 21531922.09 | G90: 59.76938983
A91: Prowadzenie techników | B91: 39718820 | C91: 23208085.94 | D91: 58.43095525
A92: Prowadzenie publicznych techników | B92: 39718820 | C92: 23208085.94 | D92: 58.43095525
A93: Prowadzenie szkół policealnych | B93: 2122060 | C93: 216359.55 | D93: 10.19573198 | E93: 2122060 | F93: 216359.55 | G93: 10.19573198
A94: Dotacje dla niepublicznych szkół policealnych | B94: 2122060 | C94: 216359.55 | D94: 10.19573198 | E94: 2122060 | F94: 216359.55 | G94: 10.19573198
A95: Prowadzenie branżowych szkół I i II stopnia | B95: 4680093 | C95: 2530320.1 | D95: 54.06559442
A96: Prowadzenie publicznych branżowych szkół I i II stopnia | B96: 4680093 | C96: 2530320.1 | D96: 54.06559442
A97: Wyposażenie szkół w podręczniki, materiały edukacyjne lub materiały ćwiczeniowe | B97: 1566648 | C97: 433409 | D97: 27.66473388 | E97: 433409 | F97: 433409 | G97: 100
A98: Wyposażenie szkół publicznych w podręczniki, materiały edukacyjne lub materiały ćwiczeniowe | B98: 1133239 | C98: 0 | D98: 0
A99: Dotacje na sfinansowanie wyposażenia placówek niepublicznych w podręczniki lub materiały ćwiczeniowe | B99: 433409 | C99: 433409 | D99: 100 | E99: 433409 | F99: 433409 | G99: 100
A100: Pozostałe zadania z zakresu oświaty i wychowania | B100: 28143329 | C100: 13084350.65 | D100: 46.49183702 | E100: 2675519 | F100: 201912.63 | G100: 7.546671506
A101: Zarządzanie finansami oświaty | B101: 14450118 | C101: 7431665.83 | D101: 51.42979338
A102: Postępowania związane z awansem zawodowym nauczycieli | B102: 54000 | C102: 2960.48 | D102: 5.48237037 | E102: 54000 | F102: 2960.48 | G102: 5.48237037
A103: Dokształcanie i doskonalenie nauczycieli | B103: 1009624 | C103: 142248.04 | D103: 14.08920945 | E103: 476514 | F103: 0 | G103: 0
A104: Fundusz socjalny dla emerytowanych pracowników oświaty | B104: 2162276 | C104: 2162276 | D104: 100
A105: Nagrody dla nauczycieli | B105: 410803 | C105: 0 | D105: 0 | E105: 340578 | F105: 0 | G105: 0
A106: Organizacja olimpiad, konkursów i uroczystości szkolnych oraz realizacja programów o charakterze innowacyjnym | B106: 505990 | C106: 240780.26 | D106: 47.58597205
A107: Wypoczynek dzieci i młodzieży szkolnej | B107: 1731629 | C107: 377878.43 | D107: 21.82213569 | E107: 338250 | F107: 141028 | G107: 41.69342202
A108: Pomoc materialna dla uczniów, studentów i doktorantów | B108: 2346879 | C108: 840971.22 | D108: 35.83359943
A109: Stypendia za wyniki w nauce | B109: 680000 | C109: 216740.2 | D109: 31.87355882
A110: Stypendia socjalne | B110: 569738 | C110: 64564.27 | D110: 11.33227378
A111: Dożywianie uczniów | B111: 1097141 | C111: 559666.75 | D111: 51.01137867
A112: Realizacja programów edukacyjno-oświatowych (w tym UE) | B112: 4694341 | C112: 1589398.39 | D112: 33.8577532 | E112: 1466177 | F112: 57924.15 | G112: 3.950692856
A113: Programy edukacyjno - oświatowe | B113: 2153113 | C113: 863941.52 | D113: 40.12522891
A114: Projekty edukacyjno - oświatowe realizowane w ramach programów Unii Europejskiej | B114: 2541228 | C114: 725456.87 | D114: 28.54749239 | E114: 1466177 | F114: 57924.15 | G114: 3.950692856
A115: Inne zadania (utrzymanie związków zawodowych, wypłata zasądzonych rent za zlikwidowanie jednostki) | B115: 777669 | C115: 296172 | D115: 38.08458354
A116: OCHRONA ZDROWIA I POLITYKA SPOŁECZNA | B116: 73832199 | C116: 39646259.13 | D116: 53.69778994 | E116: 43122028 | F116: 24937442.92 | G116: 57.82994
A117: Programy zdrowotne | B117: 2630142 | C117: 1882614.08 | D117: 71.57841972 | E117: 2630142 | F117: 1882614.08 | G117: 71.57841972
A118: Miejski Program Profilaktyki i Rozwiązywania Problemów Alkoholowych | B118: 2630142 | C118: 1882614.08 | D118: 71.57841972 | E118: 2630142 | F118: 1882614.08 | G118: 71.57841972
A119: Miejski Program Profilaktyki i Rozwiązywania Problemów Alkoholowych | B119: 2630142 | C119: 1882614.08 | D119: 71.57841972 | E119: 2630142 | F119: 1882614.08 | G119: 71.57841972
A120: Polityka społeczna | B120: 31304932 | C120: 18223778.68 | D120: 58.21376223 | E120: 8813885 | F120: 7581450.95 | G120: 86.01713036
A121: Poradnictwo, mieszkania chronione i ośrodki interwencji kryzysowej oraz usługi specjalistyczne | B121: 9085 | C121: 769.2 | D121: 8.466703357 | E121: 7585 | F121: 541.2 | G121: 7.135135135
A122: Pomoc bezrobotnym, aktywizacja zawodowa | B122: 2200 | C122: 828.17 | D122: 37.64409091
A123: Zadania z zakresu pomocy bezrobotnym | B123: 2200 | C123: 828.17 | D123: 37.64409091
A124: Pomoc dla repatriantów oraz dla uchodźców, w tym pomoc dla obywateli Ukrainy | B124: 5793877 | C124: 5728986.15 | D124: 98.88000988 | E124: 5452894 | F124: 5422325.32 | G124: 99.43940447
A125: Jednostki obsługi zadań z zakresu pomocy społecznej | B125: 16216159 | C125: 7884309.67 | D125: 48.62008118
A126: Zapewnienie opieki osobom przebywającym i dochodzącym w jednostkach pomocy społecznej | B126: 2139846 | C126: 1126625.08 | D126: 52.6498206 | E126: 1199246 | F126: 683780.16 | G126: 57.017506
A127: Zapewnienie pomocy, opieki i wychowania dzieciom i młodzieży pozbawionym opieki rodziców | B127: 1069730 | C127: 443565.66 | D127: 41.46519776
A128: Wspieranie inicjatyw społecznych na rzecz zaspokajania potrzeb życiowych osób i rodzin | B128: 2219165 | C128: 1493817.4 | D128: 67.31439077 | E128: 2154160 | F128: 1474804.27 | G128: 68.46307934
A129: Dożywianie | B129: 3854870 | C129: 1544877.35 | D129: 40.07599089
A130: Realizacja programu "Posiłek w szkole i w domu" | B130: 3084870 | C130: 1182766.95 | D130: 38.34090091
A131: Pozostałe zadania z zakresu dożywiania | B131: 770000 | C131: 362110.4 | D131: 47.02732468
A132: Wypłata świadczeń i zasiłków oraz pomoc w naturze | B132: 39897125 | C132: 19539866.37 | D132: 48.97562511 | E132: 31678001 | F132: 15473377.89 | G132: 48.8458154
A133: Zasiłki i pomoc w naturze | B133: 9004389 | C133: 4110211.61 | D133: 45.64675749 | E133: 1166954 | F133: 244000 | G133: 20.90913609
A134: Świadczenia rodzinne, wychowawcze i z funduszu alimentacyjnego | B134: 25790388 | C134: 12912353.39 | D134: 50.06653405 | E134: 25790388 | F134: 12912353.39 | G134: 50.06653405
A135: Dodatki mieszkaniowe i energetyczne | B135: 4453376 | C135: 2133414.69 | D135: 47.90555951 | E135: 4453376 | F135: 2133414.69 | G135: 47.90555951
A136: Ubezpieczenia zdrowotne i świadczenia dla osób nieobjętych ubezpieczeniem społecznym oraz osób pobierających niektóre świadczenia z pomocy społecznej | B136: 648972 | C136: 383886.68 | D136: 59.15304204 | E136: 267283 | F136: 183609.81 | G136: 68.69490765
A137: KULTURA I OCHRONA DZIEDZICTWA KULTUROWEGO | B137: 31891211 | C137: 15372178.45 | D137: 48.20192764 | E137: 31891211 | F137: 15372178.45 | G137: 48.20192764
A138: Upowszechnianie kultury i tradycji | B138: 1207675 | C138: 381329.2 | D138: 31.57548181 | E138: 1207675 | F138: 381329.2 | G138: 31.57548181
A139: Przedsięwzięcia artystyczne i kulturalne | B139: 1207675 | C139: 381329.2 | D139: 31.57548181 | E139: 1207675 | F139: 381329.2 | G139: 31.57548181
A140: Działalność kulturalna | B140: 30200936 | C140: 14990849.25 | D140: 49.63703526 | E140: 30200936 | F140: 14990849.25 | G140: 49.63703526
A141: Prowadzenie działalności kulturalnej przez domy i ośrodki kultury | B141: 15469776 | C141: 7713769.25 | D141: 49.8634838 | E141: 15469776 | F141: 7713769.25 | G141: 49.8634838
A142: Centrum "Łowicka" - Dom Kultury w Dzielnicy Mokotów | B142: 2581776 | C142: 1281769.25 | D142: 49.64680321 | E142: 2581776 | F142: 1281769.25 | G142: 49.64680321
A143: Dom Kultury "Dorożkarnia" w Dzielnicy Mokotów | B143: 3737000 | C143: 1879000 | D143: 50.28097404 | E143: 3737000 | F143: 1879000 | G143: 50.28097404
A144: Dom Kultury "KADR" w Dzielnicy Mokotów | B144: 5140000 | C144: 2574000 | D144: 50.07782101 | E144: 5140000 | F144: 2574000 | G144: 50.07782101
A145: Służewski Dom Kultury w Dzielnicy Mokotów | B145: 4011000 | C145: 1979000 | D145: 49.33931688 | E145: 4011000 | F145: 1979000 | G145: 49.33931688
A146: Prowadzenie działalności kulturalnej przez biblioteki | B146: 14731160 | C146: 7277080 | D146: 49.39923265 | E146: 14731160 | F146: 7277080 | G146: 49.39923265
A147: Biblioteka Publiczna im. Zygmunta Łazarskiego w Dzielnicy Mokotów | B147: 14731160 | C147: 7277080 | D147: 49.39923265 | E147: 14731160 | F147: 7277080 | G147: 49.39923265
A148: Pozostałe inicjatywy w zakresie kultury | B148: 482600 | C148: 0 | D148: 0 | E148: 482600 | F148: 0 | G148: 0
A149: Utrzymanie pomników, rzeźb i innych miejsc pamięci | B149: 482600 | C149: 0 | D149: 0 | E149: 482600 | F149: 0 | G149: 0
A150: REKREACJA, SPORT I TURYSTYKA | B150: 10730561 | C150: 5304979.92 | D150: 49.43804821 | E150: 1497740 | F150: 786139 | G150: 52.48834911
A151: Działalność rekreacyjno-sportowa | B151: 9085821 | C151: 4437601.61 | D151: 48.8409535
A152: Utrzymanie obiektów sportowo-rekreacyjnych | B152: 9085821 | C152: 4437601.61 | D152: 48.8409535
A153: Upowszechnianie kultury fizycznej i sportu | B153: 1644740 | C153: 867378.31 | D153: 52.73649999 | E153: 1497740 | F153: 786139 | G153: 52.48834911
A154: Imprezy rekreacyjno-sportowe | B154: 691000 | C154: 319229.31 | D154: 46.19816353 | E154: 617000 | F154: 269000 | G154: 43.59805511
A155: Podnoszenie sprawności fizycznej mieszkańców oraz szkolenia i współzawodnictwo sportowe dzieci i młodzieży | B155: 928740 | C155: 534149 | D155: 57.51329759 | E155: 855740 | F155: 503139 | G155: 58.79577909
A156: Sport i rekreacja osób niepełnosprawnych | B156: 25000 | C156: 14000 | D156: 56 | E156: 25000 | F156: 14000 | G156: 56
A157: DZIAŁALNOŚĆ PROMOCYJNA I WSPIERANIE ROZWOJU GOSPODARCZEGO | B157: 832500 | C157: 246164.95 | D157: 29.56936336 | E157: 832500 | F157: 246164.95 | G157: 29.56936336
A158: Promocja miasta | B158: 832500 | C158: 246164.95 | D158: 29.56936336 | E158: 832500 | F158: 246164.95 | G158: 29.56936336
A159: Promocja krajowa | B159: 826000 | C159: 245913.15 | D159: 29.7715678 | E159: 826000 | F159: 245913.15 | G159: 29.7715678
A160: Udział w wystawach, targach, imprezach promocyjnych | B160: 160000 | C160: 56860.26 | D160: 35.5376625 | E160: 160000 | F160: 56860.26 | G160: 35.5376625
A161: Wydawnictwa w tym wydawnictwa multimedialne | B161: 145000 | C161: 0 | D161: 0 | E161: 145000 | F161: 0 | G161: 0
A162: Reklama w mediach, zakup materiałów promocyjnych oraz zarządzanie marką miasta Warszawy | B162: 521000 | C162: 189052.89 | D162: 36.28654319 | E162: 521000 | F162: 189052.89 | G162: 36.28654319
A163: Współpraca regionalna | B163: 6500 | C163: 251.8 | D163: 3.873846154 | E163: 6500 | F163: 251.8 | G163: 3.873846154
A164: ZARZĄDZANIE STRUKTURAMI SAMORZĄDOWYMI | B164: 79569468 | C164: 39703018.23 | D164: 49.89730261 | E164: 79069845 | F164: 39350726.79 | G164: 49.76704683
A165: Funkcjonowanie Urzędu Miasta | B165: 77842218 | C165: 39054859 | D165: 50.17182193 | E165: 77349828 | F165: 38704886.09 | G165: 50.03874875
A166: Utrzymanie stanowisk pracy | B166: 62907558 | C166: 32706077.66 | D166: 51.99069667 | E166: 62907558 | F166: 32706077.66 | G166: 51.99069667
A167: Fundusz wynagrodzeń | B167: 62268196 | C167: 32539554.77 | D167: 52.25710212 | E167: 62268196 | F167: 32539554.77 | G167: 52.25710212
A168: Wydatki na rzecz pracownika | B168: 639362 | C168: 166522.89 | D168: 26.04516534 | E168: 639362 | F168: 166522.89 | G168: 26.04516534
A169: Zapewnienie prawidłowego działania Urzędu | B169: 14934660 | C169: 6348781.34 | D169: 42.51038417 | E169: 14442270 | F169: 5998808.43 | G169: 41.53646504
A170: Remonty bieżące w budynkach | B170: 328230 | C170: 52072.99 | D170: 15.86478689 | E170: 324980 | F170: 50719.99 | G170: 15.60711121
A171: Utrzymanie Urzędu | B171: 9065933 | C171: 4067343.37 | D171: 44.86403517 | E171: 8621793 | F171: 3742994.6 | G171: 43.41318099
A172: Obsługa informatyczna | B172: 3104619 | C172: 968461.25 | D172: 31.19420612 | E172: 3104619 | F172: 968461.25 | G172: 31.19420612
A173: Obsługa teletechniczna | B173: 162528 | C173: 111878.09 | D173: 68.83619438 | E173: 162528 | F173: 111878.09 | G173: 68.83619438
A174: Obsługa prawna | B174: 20000 | C174: 0 | D174: 0 | E174: 20000 | F174: 0 | G174: 0
A175: Obsługa kancelaryjna | B175: 781655 | C175: 495284.05 | D175: 63.36351076 | E175: 781655 | F175: 495284.05 | G175: 63.36351076
A176: Obsługa medialna | B176: 5015 | C176: 2235.48 | D176: 44.57587238 | E176: 5015 | F176: 2235.48 | G176: 44.57587238
A177: Ochrona osób i mienia | B177: 1466680 | C177: 651506.11 | D177: 44.42046731 | E177: 1421680 | F177: 627234.97 | G177: 44.1192793
A178: Rozwój społeczeństwa obywatelskiego | B178: 1727250 | C178: 648159.23 | D178: 37.52550181 | E178: 1720017 | F178: 645840.7 | G178: 37.54850679
A179: Obsługa organizacyjno-techniczna Rady m.st. Warszawy i Rad Dzielnic | B179: 874066 | C179: 412308.37 | D179: 47.17130857 | E179: 872300 | F179: 411227.69 | G179: 47.14291987
A180: Utrzymanie i działalność statutowa Rad Osiedli | B180: 62667 | C180: 4237.85 | D180: 6.762490625 | E180: 57200 | F180: 3000 | G180: 5.244755245
A181: Dialog społeczny, badania opinii mieszkańców, komunikacja społeczna | B181: 155000 | C181: 19365.67 | D181: 12.49398065 | E181: 155000 | F181: 19365.67 | G181: 12.49398065
A182: Centra Aktywności Lokalnej | B182: 635517 | C182: 212247.34 | D182: 33.39758653 | E182: 635517 | F182: 212247.34 | G182: 33.39758653
A183: FINANSE I RÓŻNE ROZLICZENIA | B183: 556502 | C183: 416244.4 | D183: 74.79656857 | E183: 520376 | F183: 380368.88 | G183: 73.09500823
A184: Zadania z zakresu polityki finansowej | B184: 556502 | C184: 416244.4 | D184: 74.79656857 | E184: 520376 | F184: 380368.88 | G184: 73.09500823
A185: Różne rozliczenia | B185: 556502 | C185: 416244.4 | D185: 74.79656857 | E185: 520376 | F185: 380368.88 | G185: 73.09500823

Sheet Ochota.
A6: WYKONANIE WYDATKÓW BIEŻĄCYCH MIASTA STOŁECZNEGO WARSZAWY W UKŁADZIE ZADAŃ ZA I PÓŁROCZE 2023 ROKU
A7: WYDATKI OCHOTA
A9: Wyszczególnienie | B9: Plan | E9: W tym Urząd
B10: Plan | C10: Wykonanie | D10: Wskaźnik % (kol. 3/2) | E10: Plan | F10: Wykonanie | G10: Wskaźnik % (kol. 6/5)
A11: 1 | B11: 2 | C11: 3 | D11: 4 | E11: 5 | F11: 6 | G11: 7
A12: OGÓŁEM | B12: 452961890 | C12: 235035415.8 | D12: 51.88856303 | E12: 131324214 | F12: 62760369.04 | G12: 47.79040143
A13: TRANSPORT I KOMUNIKACJA | B13: 2434068 | C13: 688630.88 | D13: 28.29135751 | E13: 2434068 | F13: 688630.88 | G13: 28.29135751
A14: Drogi i mosty | B14: 2434068 | C14: 688630.88 | D14: 28.29135751 | E14: 2434068 | F14: 688630.88 | G14: 28.29135751
A15: Utrzymanie i remonty dróg | B15: 2044068 | C15: 623859.26 | D15: 30.52047486 | E15: 2044068 | F15: 623859.26 | G15: 30.52047486
A16: Utrzymanie i remonty dróg gminnych | B16: 2044068 | C16: 623859.26 | D16: 30.52047486 | E16: 2044068 | F16: 623859.26 | G16: 30.52047486
A17: Oświetlenie ulic | B17: 290000 | C17: 64771.62 | D17: 22.33504138 | E17: 290000 | F17: 64771.62 | G17: 22.33504138
A18: Iluminacje obiektów architektonicznych | B18: 40000 | C18: 14833.62 | D18: 37.08405 | E18: 40000 | F18: 14833.62 | G18: 37.08405
A19: Utrzymanie i remonty oświetlenia ulic, placów i dróg | B19: 250000 | C19: 49938 | D19: 19.9752 | E19: 250000 | F19: 49938 | G19: 19.9752
A20: Opracowania i analizy związane z drogami | B20: 100000 | C20: 0 | D20: 0 | E20: 100000 | F20: 0 | G20: 0
A21: ŁAD PRZESTRZENNY I GOSPODARKA NIERUCHOMOŚCIAMI | B21: 67783027 | C21: 29826248.95 | D21: 44.00253319 | E21: 10150992 | F21: 2730291.3 | G21: 26.89679294
A22: Gospodarka przestrzenna | B22: 9684 | C22: 0 | D22: 0 | E22: 9684 | F22: 0 | G22: 0
A23: Architektura, Urbanistyka i Zagospodarowanie Przestrzeni Publicznej | B23: 9684 | C23: 0 | D23: 0 | E23: 9684 | F23: 0 | G23: 0
A24: Mieszkaniowy zasób komunalny oraz pozostałe zadania związane z zapewnieniem lokali mieszkalnych | B24: 61485955 | C24: 27736707.3 | D24: 45.11063917 | E24: 8075274 | F24: 2520364.04 | G24: 31.21087953
A25: Koszty eksploatacji mieszkaniowego zasobu komunalnego | B25: 16827756 | C25: 5635829.1 | D25: 33.49126942 | E25: 7598174 | F25: 2369736.04 | G25: 31.18823075
A26: Remonty mieszkaniowego zasobu komunalnego | B26: 4360899 | C26: 746662.26 | D26: 17.12175081
A27: Utrzymanie jednostek gospodarujących zasobem komunalnym | B27: 8292000 | C27: 3585644.29 | D27: 43.24221286
A28: Rozliczenia ze wspólnotami mieszkaniowymi | B28: 31518200 | C28: 17616490.21 | D28: 55.89307197
A29: Rozliczenia za lokale z właścicielami innymi niż m.st. Warszawa | B29: 487100 | C29: 152081.44 | D29: 31.22181072 | E29: 477100 | F29: 150628 | G29: 31.57157829
A30: Zadania związane z nabywaniem i sprzedażą nieruchomości | B30: 396100 | C30: 26684.94 | D30: 6.73691997 | E30: 396100 | F30: 26684.94 | G30: 6.73691997
A31: Przygotowanie nieruchomości komunalnych przeznaczonych m.in. do zbycia i zamiany | B31: 227700 | C31: 23719.94 | D31: 10.41718928 | E31: 227700 | F31: 23719.94 | G31: 10.41718928
A32: Regulacja stanów prawnych nieruchomości, w tym odszkodowania | B32: 168400 | C32: 2965 | D32: 1.760688836 | E32: 168400 | F32: 2965 | G32: 1.760688836
A33: Pozostały zasób komunalny | B33: 5891288 | C33: 2062856.71 | D33: 35.01537711 | E33: 1669934 | F33: 183242.32 | G33: 10.97302768
A34: Zarządzanie lokalami użytkowymi i ich eksploatacja | B34: 3303000 | C34: 1714765.58 | D34: 51.91539752 | E34: 3000 | F34: 1947.33 | G34: 64.911
A35: Remonty lokali użytkowych | B35: 921354 | C35: 166796.14 | D35: 18.10337178
A36: Zarządzanie pozostałymi nieruchomościami | B36: 1666934 | C36: 181294.99 | D36: 10.8759549 | E36: 1666934 | F36: 181294.99 | G36: 10.8759549
A37: GOSPODARKA KOMUNALNA I OCHRONA ŚRODOWISKA | B37: 10358524 | C37: 2909127.26 | D37: 28.08438017 | E37: 7278460 | F37: 1299016.83 | G37: 17.84741319
A38: Utrzymanie porządku i czystości | B38: 1938890 | C38: 452458.44 | D38: 23.33595201 | E38: 1938890 | F38: 452458.44 | G38: 23.33595201
A39: Oczyszczanie miasta | B39: 1251500 | C39: 221759.68 | D39: 17.71951099 | E39: 1251500 | F39: 221759.68 | G39: 17.71951099
A40: Zimowe oczyszczanie ulic | B40: 1000000 | C40: 221759.68 | D40: 22.175968 | E40: 1000000 | F40: 221759.68 | G40: 22.175968
A41: Letnie oczyszczanie ulic | B41: 250000 | C41: 0 | D41: 0 | E41: 250000 | F41: 0 | G41: 0
A42: Oczyszczanie pozostałych terenów | B42: 1500 | C42: 0 | D42: 0 | E42: 1500 | F42: 0 | G42: 0
A43: Interwencyjne pogotowie oczyszczania | B43: 4000 | C43: 388.8 | D43: 9.72 | E43: 4000 | F43: 388.8 | G43: 9.72
A44: Opróżnianie i zakup koszy ulicznych | B44: 336610 | C44: 126665 | D44: 37.62960102 | E44: 336610 | F44: 126665 | G44: 37.62960102
A45: Szalety miejskie i kabiny sanitarne | B45: 132000 | C45: 57714.96 | D45: 43.72345455 | E45: 132000 | F45: 57714.96 | G45: 43.72345455
A46: Opracowania i analizy związane z ochroną środowiska i monitorowanie środowiska | B46: 12500 | C46: 0 | D46: 0 | E46: 12500 | F46: 0 | G46: 0
A47: Zadania z zakresu bezdomności zwierząt w mieście | B47: 202280 | C47: 45930 | D47: 22.70614989 | E47: 202280 | F47: 45930 | G47: 22.70614989
A48: Gospodarka ściekowa i ochrona wód | B48: 264261 | C48: 82580.69 | D48: 31.24966983 | E48: 264261 | F48: 82580.69 | G48: 31.24966983
A49: Utrzymanie i remonty sieci wodno-kanalizacyjnej | B49: 117261 | C49: 33149.69 | D49: 28.27000452 | E49: 117261 | F49: 33149.69 | G49: 28.27000452
A50: Utrzymanie i konserwacja urządzeń wodnych i innych zbiorników wodnych | B50: 147000 | C50: 49431 | D50: 33.62653061 | E50: 147000 | F50: 49431 | G50: 33.62653061
A51: Tereny zielone | B51: 3924854 | C51: 692427.61 | D51: 17.64212401 | E51: 3924854 | F51: 692427.61 | G51: 17.64212401
A52: Utrzymanie i konserwacja zieleni | B52: 117000 | C52: 54951 | D52: 46.96666667 | E52: 117000 | F52: 54951 | G52: 46.96666667
A53: Utrzymanie i konserwacja zieleni przyulicznej | B53: 1059000 | C53: 141122.4 | D53: 13.32600567 | E53: 1059000 | F53: 141122.4 | G53: 13.32600567
A54: Utrzymanie parków | B54: 2738854 | C54: 491434.21 | D54: 17.94305976 | E54: 2738854 | F54: 491434.21 | G54: 17.94305976
A55: Opracowania związane z zielenią | B55: 10000 | C55: 4920 | D55: 49.2 | E55: 10000 | F55: 4920 | G55: 49.2
A56: Pozostałe zadania z zakresu gospodarki komunalnej | B56: 4230519 | C56: 1681660.52 | D56: 39.75069064 | E56: 1150455 | F56: 71550.09 | G56: 6.219286282
A57: Place zabaw, ścieżki zdrowia i inne formy aktywności plenerowej | B57: 1150455 | C57: 71550.09 | D57: 6.219286282 | E57: 1150455 | F57: 71550.09 | G57: 6.219286282
A58: Gospodarowanie targowiskami i nadzór nad handlem obwoźnym | B58: 3080064 | C58: 1610110.43 | D58: 52.27522642
A59: EDUKACJA | B59: 276034986 | C59: 155034652 | D59: 56.16485585 | E59: 42018794 | F59: 23933391.26 | G59: 56.95877721
A60: Oświata i edukacyjna opieka wychowawcza | B60: 261503225 | C60: 148136292.9 | D60: 56.64797937 | E60: 41804217 | F60: 23923551.26 | G60: 57.2276028
A61: Prowadzenie przedszkoli i innych form wychowania przedszkolnego | B61: 56557339 | C61: 30420528.17 | D61: 53.78705701 | E61: 13730534 | F61: 7497474.87 | G61: 54.6043939
A62: Prowadzenie publicznych przedszkoli i innych form wychowania przedszkolnego | B62: 42826805 | C62: 22923053.3 | D62: 53.52501383
A63: Dotacje dla niepublicznych przedszkoli i innych form wychowania przedszkolnego | B63: 13730534 | C63: 7497474.87 | D63: 54.6043939 | E63: 13730534 | F63: 7497474.87 | G63: 54.6043939
A64: Prowadzenie przedszkoli specjalnych | B64: 481208 | C64: 251375.26 | D64: 52.23837925 | E64: 481208 | F64: 251375.26 | G64: 52.23837925
A65: Dotacje dla niepublicznych przedszkoli specjalnych | B65: 481208 | C65: 251375.26 | D65: 52.23837925 | E65: 481208 | F65: 251375.26 | G65: 52.23837925
A66: Prowadzenie oddziałów "0" w szkołach podstawowych | B66: 395377 | C66: 184361.44 | D66: 46.62927788 | E66: 395377 | F66: 184361.44 | G66: 46.62927788
A67: Dotacje dla niepublicznych oddziałów "0" w szkołach podstawowych | B67: 395377 | C67: 184361.44 | D67: 46.62927788 | E67: 395377 | F67: 184361.44 | G67: 46.62927788
A68: Prowadzenie szkół podstawowych | B68: 61919510 | C68: 37124855.83 | D68: 59.95663698 | E68: 10905386 | F68: 6555526.91 | G68: 60.1127453
A69: Prowadzenie publicznych szkół podstawowych | B69: 51014124 | C69: 30569328.92 | D69: 59.92326541
A70: Dotacje dla niepublicznych szkół podstawowych | B70: 10905386 | C70: 6555526.91 | D70: 60.1127453 | E70: 10905386 | F70: 6555526.91 | G70: 60.1127453
A71: Prowadzenie liceów ogólnokształcących | B71: 48372531 | C71: 29666458.62 | D71: 61.32914281 | E71: 2395095 | F71: 1311214.99 | G71: 54.74584474
A72: Prowadzenie publicznych liceów ogólnokształcących | B72: 45977436 | C72: 28355243.63 | D72: 61.67208548
A73: Dotacje dla niepublicznych liceów ogólnokształcących | B73: 2395095 | C73: 1311214.99 | D73: 54.74584474 | E73: 2395095 | F73: 1311214.99 | G73: 54.74584474
A74: Prowadzenie publicznych placówek kształcenia ustawicznego icentrów kształcenia zawodowego | B74: 3368901 | C74: 1837221.48 | D74: 54.53474234
A75: Prowadzenie publicznych poradni psychologiczno-pedagogicznych | B75: 4877714 | C75: 2986593.66 | D75: 61.2293722
A76: Prowadzenie internatów i burs szkolnych | B76: 2031863 | C76: 1068955.11 | D76: 52.60960557
A77: Prowadzenie publicznych internatów i burs szkolnych | B77: 2031863 | C77: 1068955.11 | D77: 52.60960557
A78: Prowadzenie świetlic szkolnych | B78: 5457860 | C78: 3255179.98 | D78: 59.64205714
A79: Prowadzenie placówek wychowania pozaszkolnego | B79: 9171407 | C79: 5317895.8 | D79: 57.98342392
A80: Prowadzenie publicznych placówek wychowania pozaszkolnego | B80: 9171407 | C80: 5317895.8 | D80: 57.98342392
A81: Remonty w przedszkolach, szkołach i placówkach oświatowych | B81: 6812492 | C81: 645757.58 | D81: 9.47902148 | F81: 0 | G81: -
A82: Dowożenie uczniów do szkół | B82: 1200000 | C82: 452180.14 | D82: 37.68167833 | E82: 1200000 | F82: 452180.14 | G82: 37.68167833
A83: Prowadzenie stołówek szkolnych i przedszkolnych | B83: 2629593 | C83: 1272437.74 | D83: 48.38915148
A84: Wczesne wspomaganie rozwoju dziecka | B84: 318933 | C84: 161553.4 | D84: 50.65433806 | E84: 318933 | F84: 161553.4 | G84: 50.65433806
A85: Realizacja zadań wymagających stosowania specjalnej organizacji nauki i metod pracy | B85: 22722460 | C85: 12732684.45 | D85: 56.03567769 | E85: 8072319 | F85: 4699897.12 | G85: 58.22239086
A86: Realizacja zadań wymagających stosowania specjalnej organizacji nauki i metod pracy przez placówki publiczne | B86: 14650141 | C86: 8032787.33 | D86: 54.83078511
A87: Dotacje dla podmiotów niepublicznych realizujących zadania wymagające stosowania specjalnej nauki organizacji i metod pracy | B87: 8072319 | C87: 4699897.12 | D87: 58.22239086 | E87: 8072319 | F87: 4699897.12 | G87: 58.22239086
A88: Prowadzenie techników | B88: 28047162 | C88: 16745048.32 | D88: 59.70318252
A89: Prowadzenie publicznych techników | B89: 28047162 | C89: 16745048.32 | D89: 59.70318252
A90: Prowadzenie szkół policealnych | B90: 4207093 | C90: 2711695.13 | D90: 64.45531701 | E90: 4207093 | F90: 2711695.13 | G90: 64.45531701
A91: Dotacje dla niepublicznych szkół policealnych | B91: 4207093 | C91: 2711695.13 | D91: 64.45531701 | E91: 4207093 | F91: 2711695.13 | G91: 64.45531701
A92: Prowadzenie branżowych szkół I i II stopnia | B92: 2388831 | C92: 1203238.84 | D92: 50.36935807
A93: Prowadzenie publicznych branżowych szkół I i II stopnia | B93: 2388831 | C93: 1203238.84 | D93: 50.36935807
A94: Wyposażenie szkół w podręczniki, materiały edukacyjne lub materiały ćwiczeniowe | B94: 542951 | C94: 98272 | D94: 18.09960751 | E94: 98272 | F94: 98272 | G94: 100
A95: Wyposażenie szkół publicznych w podręczniki, materiały edukacyjne lub materiały ćwiczeniowe | B95: 444679 | C95: 0 | D95: 0
A96: Dotacje na sfinansowanie wyposażenia placówek niepublicznych w podręczniki lub materiały ćwiczeniowe | B96: 98272 | C96: 98272 | D96: 100 | E96: 98272 | F96: 98272 | G96: 100
A97: Pozostałe zadania z zakresu oświaty i wychowania | B97: 14531761 | C97: 6898359.03 | D97: 47.47090893 | E97: 214577 | F97: 9840 | G97: 4.585766415
A98: Zarządzanie finansami oświaty | B98: 6849849 | C98: 3571140.47 | D98: 52.13458676
A99: Postępowania związane z awansem zawodowym nauczycieli | B99: 23000 | C99: 0 | D99: 0 | E99: 23000 | F99: 0 | G99: 0
A100: Dokształcanie i doskonalenie nauczycieli | B100: 434436 | C100: 66989.26 | D100: 15.41982248 | E100: 191577 | F100: 9840 | G100: 5.136315946
A101: Fundusz socjalny dla emerytowanych pracowników oświaty | B101: 1650400 | C101: 1237802 | D101: 75.00012118
A102: Nagrody dla nauczycieli | B102: 359630 | C102: 17603.73 | D102: 4.894955927 | E102: 0 | F102: 0 | G102: -
A103: Organizacja olimpiad, konkursów i uroczystości szkolnych oraz realizacja programów o charakterze innowacyjnym | B103: 1175465 | C103: 284659.54 | D103: 24.21676018
A104: Wypoczynek dzieci i młodzieży szkolnej | B104: 386192 | C104: 67177.34 | D104: 17.39480362
A105: Pomoc materialna dla uczniów, studentów i doktorantów | B105: 1370184 | C105: 455241.41 | D105: 33.22483769
A106: Stypendia za wyniki w nauce | B106: 188870 | C106: 130918.98 | D106: 69.31697993
A107: Stypendia socjalne | B107: 503870 | C107: 66455.43 | D107: 13.18900312
A108: Dożywianie uczniów | B108: 677444 | C108: 257867 | D108: 38.06469612
A109: Realizacja programów edukacyjno-oświatowych (w tym UE) | B109: 2234193 | C109: 1154333.92 | D109: 51.66670561
A110: Programy edukacyjno - oświatowe | B110: 1255248 | C110: 337505.21 | D110: 26.88753219
A111: Projekty edukacyjno - oświatowe realizowane w ramach programów Unii Europejskiej | B111: 978945 | C111: 816828.71 | D111: 83.43969375
A112: Inne zadania (utrzymanie związków zawodowych, wypłata zasądzonych rent za zlikwidowanie jednostki) | B112: 48412 | C112: 43411.36 | D112: 89.67066017
A113: OCHRONA ZDROWIA I POLITYKA SPOŁECZNA | B113: 34911871 | C113: 18388768.58 | D113: 52.6719653 | E113: 19399486 | F113: 10745266.37 | G113: 55.38943851
A114: Programy zdrowotne | B114: 1897920 | C114: 1465312.05 | D114: 77.20620732 | E114: 1897920 | F114: 1465312.05 | G114: 77.20620732
A115: Miejski Program Profilaktyki i Rozwiązywania Problemów Alkoholowych | B115: 1897920 | C115: 1465312.05 | D115: 77.20620732 | E115: 1897920 | F115: 1465312.05 | G115: 77.20620732
A116: Miejski Program Profilaktyki i Rozwiązywania Problemów Alkoholowych | B116: 1897920 | C116: 1465312.05 | D116: 77.20620732 | E116: 1897920 | F116: 1465312.05 | G116: 77.20620732
A117: Polityka społeczna | B117: 16405352 | C117: 8996079.28 | D117: 54.83624661 | E117: 3326276 | F117: 2554695.61 | G117: 76.80347662
A118: Poradnictwo, mieszkania chronione i ośrodki interwencji kryzysowej oraz usługi specjalistyczne | B118: 6089 | C118: 0 | D118: 0 | E118: 6089 | F118: 0 | G118: 0
A119: Pomoc dla repatriantów oraz dla uchodźców, w tym pomoc dla obywateli Ukrainy | B119: 2482048 | C119: 2300369.33 | D119: 92.68029184 | E119: 2367387 | F119: 2201694.86 | G119: 93.00105391
A120: Jednostki obsługi zadań z zakresu pomocy społecznej | B120: 9045764 | C120: 4444757.75 | D120: 49.13634437
A121: Zapewnienie opieki osobom przebywającym i dochodzącym w jednostkach pomocy społecznej | B121: 2389968 | C121: 1232949.89 | D121: 51.58855223
A122: Zapewnienie pomocy, opieki i wychowania dzieciom i młodzieży pozbawionym opieki rodziców | B122: 339407 | C122: 186703.26 | D122: 55.00866511
A123: Wspieranie inicjatyw społecznych na rzecz zaspokajania potrzeb życiowych osób i rodzin | B123: 952800 | C123: 353000.75 | D123: 37.04877729 | E123: 952800 | F123: 353000.75 | G123: 37.04877729
A124: Dożywianie | B124: 1189276 | C124: 478298.3 | D124: 40.21760298
A125: Realizacja programu "Posiłek w szkole i w domu" | B125: 721666 | C125: 338108.4 | D125: 46.85109178
A126: Pozostałe zadania z zakresu dożywiania | B126: 467610 | C126: 140189.9 | D126: 29.98009025
A127: Wypłata świadczeń i zasiłków oraz pomoc w naturze | B127: 16608599 | C127: 7927377.25 | D127: 47.73055963 | E127: 14175290 | F127: 6725258.71 | G127: 47.44353527
A128: Zasiłki i pomoc w naturze | B128: 2520042 | C128: 1187533.82 | D128: 47.12357254 | E128: 222006 | F128: 67500 | G128: 30.40458366
A129: Świadczenia rodzinne, wychowawcze i z funduszu alimentacyjnego | B129: 11153327 | C129: 5393603.37 | D129: 48.35869485 | E129: 11153327 | F129: 5393603.37 | G129: 48.35869485
A130: Dodatki mieszkaniowe i energetyczne | B130: 2669448 | C130: 1178072.05 | D130: 44.13167254 | E130: 2669448 | F130: 1178072.05 | G130: 44.13167254
A131: Ubezpieczenia zdrowotne i świadczenia dla osób nieobjętych ubezpieczeniem społecznym oraz osób pobierających niektóre świadczenia z pomocy społecznej | B131: 265782 | C131: 168168.01 | D131: 63.27291163 | E131: 130509 | F131: 86083.29 | G131: 65.95965795
A132: KULTURA I OCHRONA DZIEDZICTWA KULTUROWEGO | B132: 13811335 | C132: 6038576.51 | D132: 43.72188865 | E132: 13811335 | F132: 6038576.51 | G132: 43.72188865
A133: Upowszechnianie kultury i tradycji | B133: 1936300 | C133: 226936.53 | D133: 11.72011207 | E133: 1936300 | F133: 226936.53 | G133: 11.72011207
A134: Przedsięwzięcia artystyczne i kulturalne | B134: 1936300 | C134: 226936.53 | D134: 11.72011207 | E134: 1936300 | F134: 226936.53 | G134: 11.72011207
A135: Działalność kulturalna | B135: 11775035 | C135: 5800139.48 | D135: 49.25793834 | E135: 11775035 | F135: 5800139.48 | G135: 49.25793834
A136: Prowadzenie działalności kulturalnej przez domy i ośrodki kultury | B136: 4669413 | C136: 2131606 | D136: 45.65040616 | E136: 4669413 | F136: 2131606 | G136: 45.65040616
A137: Ośrodek Kultury Ochoty | B137: 4669413 | C137: 2131606 | D137: 45.65040616 | E137: 4669413 | F137: 2131606 | G137: 45.65040616
A138: Prowadzenie działalności kulturalnej przez biblioteki | B138: 7105622 | C138: 3668533.48 | D138: 51.6286045 | E138: 7105622 | F138: 3668533.48 | G138: 51.6286045
A139: Biblioteka Publiczna w Dzielnicy Ochota | B139: 7105622 | C139: 3668533.48 | D139: 51.6286045 | E139: 7105622 | F139: 3668533.48 | G139: 51.6286045
A140: Pozostałe inicjatywy w zakresie kultury | B140: 100000 | C140: 11500.5 | D140: 11.5005 | E140: 100000 | F140: 11500.5 | G140: 11.5005
A141: Utrzymanie pomników, rzeźb i innych miejsc pamięci | B141: 100000 | C141: 11500.5 | D141: 11.5005 | E141: 100000 | F141: 11500.5 | G141: 11.5005
A142: REKREACJA, SPORT I TURYSTYKA | B142: 12010616 | C142: 5033694.64 | D142: 41.91037862 | E142: 880616 | F142: 330724.91 | G142: 37.55608688
A143: Działalność rekreacyjno-sportowa | B143: 10779000 | C143: 4601726.73 | D143: 42.69159226
A144: Utrzymanie obiektów sportowo-rekreacyjnych | B144: 10609000 | C144: 4499726.73 | D144: 42.41424008
A145: Zajęcia szkolne w obiektach sportowych | B145: 170000 | C145: 102000 | D145: 60
A146: Upowszechnianie kultury fizycznej i sportu | B146: 1231616 | C146: 431967.91 | D146: 35.07326228 | E146: 880616 | F146: 330724.91 | G146: 37.55608688
A147: Imprezy rekreacyjno-sportowe | B147: 620500 | C147: 253457.99 | D147: 40.84737953 | E147: 357500 | F147: 182307.99 | G147: 50.99524196
A148: Podnoszenie sprawności fizycznej mieszkańców oraz szkolenia i współzawodnictwo sportowe dzieci i młodzieży | B148: 591116 | C148: 174561.62 | D148: 29.53085689 | E148: 503116 | F148: 144468.62 | G148: 28.71477353
A149: Sport i rekreacja osób niepełnosprawnych | B149: 20000 | C149: 3948.3 | D149: 19.7415 | E149: 20000 | F149: 3948.3 | G149: 19.7415
A150: DZIAŁALNOŚĆ PROMOCYJNA I WSPIERANIE ROZWOJU GOSPODARCZEGO | B150: 1342600 | C150: 370531.44 | D150: 27.59805154 | E150: 1342600 | F150: 370531.44 | G150: 27.59805154
A151: Promocja miasta | B151: 1342600 | C151: 370531.44 | D151: 27.59805154 | E151: 1342600 | F151: 370531.44 | G151: 27.59805154
A152: Promocja krajowa | B152: 1074600 | C152: 338372.43 | D152: 31.48822166 | E152: 1074600 | F152: 338372.43 | G152: 31.48822166
A153: Udział w wystawach, targach, imprezach promocyjnych | B153: 355000 | C153: 67936.05 | D153: 19.13691549 | E153: 355000 | F153: 67936.05 | G153: 19.13691549
A154: Wydawnictwa w tym wydawnictwa multimedialne | B154: 167000 | C154: 67220 | D154: 40.25149701 | E154: 167000 | F154: 67220 | G154: 40.25149701
A155: Reklama w mediach, zakup materiałów promocyjnych oraz zarządzanie marką miasta Warszawy | B155: 552600 | C155: 203216.38 | D155: 36.77458921 | E155: 552600 | F155: 203216.38 | G155: 36.77458921
A156: Współpraca regionalna | B156: 2000 | C156: 0 | D156: 0 | E156: 2000 | F156: 0 | G156: 0
A157: Współpraca międzynarodowa | B157: 120000 | C157: 12159.01 | D157: 10.13250833 | E157: 120000 | F157: 12159.01 | G157: 10.13250833
A158: Dekoracja miasta | B158: 146000 | C158: 20000 | D158: 13.69863014 | E158: 146000 | F158: 20000 | G158: 13.69863014
A159: ZARZĄDZANIE STRUKTURAMI SAMORZĄDOWYMI | B159: 33954976 | C159: 16589078.84 | D159: 48.85610533 | E159: 33687976 | F159: 16467832.82 | G159: 48.88341413
A160: Funkcjonowanie Urzędu Miasta | B160: 32939226 | C160: 16189916.51 | D160: 49.15087109 | E160: 32939226 | F160: 16189916.51 | G160: 49.15087109
A161: Utrzymanie stanowisk pracy | B161: 25409970 | C161: 13991217.4 | D161: 55.06192018 | E161: 25409970 | F161: 13991217.4 | G161: 55.06192018
A162: Fundusz wynagrodzeń | B162: 25199970 | C162: 13931643.28 | D162: 55.28436455 | E162: 25199970 | F162: 13931643.28 | G162: 55.28436455
A163: Wydatki na rzecz pracownika | B163: 210000 | C163: 59574.12 | D163: 28.36862857 | E163: 210000 | F163: 59574.12 | G163: 28.36862857
A164: Zapewnienie prawidłowego działania Urzędu | B164: 7529256 | C164: 2198699.11 | D164: 29.20207667 | E164: 7529256 | F164: 2198699.11 | G164: 29.20207667
A165: Remonty bieżące w budynkach | B165: 1386200 | C165: 163870.69 | D165: 11.82157625 | E165: 1386200 | F165: 163870.69 | G165: 11.82157625
A166: Utrzymanie Urzędu | B166: 3157326 | C166: 1131373.43 | D166: 35.83327886 | E166: 3157326 | F166: 1131373.43 | G166: 35.83327886
A167: Obsługa informatyczna | B167: 497750 | C167: 45520.25 | D167: 9.145203415 | E167: 497750 | F167: 45520.25 | G167: 9.145203415
A168: Obsługa teletechniczna | B168: 101600 | C168: 33321.32 | D168: 32.7965748 | E168: 101600 | F168: 33321.32 | G168: 32.7965748
A169: Obsługa prawna | B169: 88100 | C169: 2541.06 | D169: 2.884290579 | E169: 88100 | F169: 2541.06 | G169: 2.884290579
A170: Obsługa kancelaryjna | B170: 401200 | C170: 147165.04 | D170: 36.68121635 | E170: 401200 | F170: 147165.04 | G170: 36.68121635
A171: Obsługa medialna | B171: 14900 | C171: 5943.84 | D171: 39.89154362 | E171: 14900 | F171: 5943.84 | G171: 39.89154362
A172: Ochrona osób i mienia | B172: 1882180 | C172: 668963.48 | D172: 35.54195029 | E172: 1882180 | F172: 668963.48 | G172: 35.54195029
A173: Rozwój społeczeństwa obywatelskiego | B173: 1015750 | C173: 399162.33 | D173: 39.29730052 | E173: 748750 | F173: 277916.31 | G173: 37.11737028
A174: Obsługa organizacyjno-techniczna Rady m.st. Warszawy i Rad Dzielnic | B174: 686000 | C174: 274023.03 | D174: 39.9450481 | E174: 686000 | F174: 274023.03 | G174: 39.9450481
A175: Dialog społeczny, badania opinii mieszkańców, komunikacja społeczna | B175: 62750 | C175: 3893.28 | D175: 6.204430279 | E175: 62750 | F175: 3893.28 | G175: 6.204430279
A176: Centra Aktywności Lokalnej | B176: 267000 | C176: 121246.02 | D176: 45.41049438
A177: FINANSE I RÓŻNE ROZLICZENIA | B177: 319887 | C177: 156106.72 | D177: 48.80058271 | E177: 319887 | F177: 156106.72 | G177: 48.80058271
A178: Zadania z zakresu polityki finansowej | B178: 79000 | C178: 60875.15 | D178: 77.0571519 | E178: 79000 | F178: 60875.15 | G178: 77.0571519
A179: Obsługa finansowo-księgowa | B179: 16000 | C179: 2469 | D179: 15.43125 | E179: 16000 | F179: 2469 | G179: 15.43125
A180: Różne rozliczenia | B180: 63000 | C180: 58406.15 | D180: 92.7081746 | E180: 63000 | F180: 58406.15 | G180: 92.7081746
A181: Zadania z zakresu polityki podatkowej | B181: 240887 | C181: 95231.57 | D181: 39.53371083 | E181: 240887 | F181: 95231.57 | G181: 39.53371083
A182: Wymiar, windykacja i ewidencja podatków i opłat lokalnych oraz należności niepodatkowych | B182: 240887 | C182: 95231.57 | D182: 39.53371083 | E182: 240887 | F182: 95231.57 | G182: 39.53371083

Sheet Praga_Południe
A6: WYKONANIE WYDATKÓW BIEŻĄCYCH MIASTA STOŁECZNEGO WARSZAWY W UKŁADZIE ZADAŃ ZA I PÓŁROCZE 2023 ROKU
A7: WYDATKI PRAGA-POŁUDNIE
A9: Wyszczególnienie | B9: Plan | E9: W tym Urząd
B10: Plan | C10: Wykonanie | D10: Wskaźnik % (kol. 3/2) | E10: Plan | F10: Wykonanie | G10: Wskaźnik % (kol. 6/5)
A11: 1 | B11: 2 | C11: 3 | D11: 4 | E11: 5 | F11: 6 | G11: 7
A12: OGÓŁEM | B12: 832771372 | C12: 413034192 | D12: 49.59754933 | E12: 206675950 | F12: 100226098.2 | G12: 48.49432079
A13: TRANSPORT I KOMUNIKACJA | B13: 11696595 | C13: 2551978.82 | D13: 21.81813442 | E13: 11696595 | F13: 2551978.82 | G13: 21.81813442
A14: Drogi i mosty | B14: 11696595 | C14: 2551978.82 | D14: 21.81813442 | E14: 11696595 | F14: 2551978.82 | G14: 21.81813442
A15: Utrzymanie i remonty dróg | B15: 11223495 | C15: 2510017.07 | D15: 22.36395232 | E15: 11223495 | F15: 2510017.07 | G15: 22.36395232
A16: Utrzymanie i remonty dróg gminnych | B16: 11223495 | C16: 2510017.07 | D16: 22.36395232 | E16: 11223495 | F16: 2510017.07 | G16: 22.36395232
A17: Oświetlenie ulic | B17: 257600 | C17: 41961.75 | D17: 16.28949922 | E17: 257600 | F17: 41961.75 | G17: 16.28949922
A18: Utrzymanie i remonty oświetlenia ulic, placów i dróg | B18: 257600 | C18: 41961.75 | D18: 16.28949922 | E18: 257600 | F18: 41961.75 | G18: 16.28949922
A19: Opracowania i analizy związane z drogami | B19: 215500 | C19: 0 | D19: 0 | E19: 215500 | F19: 0 | G19: 0
A20: ŁAD PRZESTRZENNY I GOSPODARKA NIERUCHOMOŚCIAMI | B20: 128101123 | C20: 66184453.71 | D20: 51.66578728 | E20: 4032668 | F20: 2922514.72 | G20: 72.47099737
A21: Mieszkaniowy zasób komunalny oraz pozostałe zadania związane z zapewnieniem lokali mieszkalnych | B21: 120399496 | C21: 61772620.7 | D21: 51.30637814 | E21: 1240000 | F21: 437349.24 | G21: 35.2701
A22: Koszty eksploatacji mieszkaniowego zasobu komunalnego | B22: 27484912 | C22: 15023647.82 | D22: 54.66143686 | E22: 698100 | F22: 210948 | G22: 30.21744736
A23: Remonty mieszkaniowego zasobu komunalnego | B23: 15851000 | C23: 4242686.94 | D23: 26.76605224 | E23: 50000 | F23: 0 | G23: 0
A24: Utrzymanie jednostek gospodarujących zasobem komunalnym | B24: 38190288 | C24: 19674520.92 | D24: 51.51707921
A25: Rozliczenia ze wspólnotami mieszkaniowymi | B25: 38381396 | C25: 22605363.78 | D25: 58.89666905
A26: Rozliczenia za lokale z właścicielami innymi niż m.st. Warszawa | B26: 491900 | C26: 226401.24 | D26: 46.02586705 | E26: 491900 | F26: 226401.24 | G26: 46.02586705
A27: Zadania związane z nabywaniem i sprzedażą nieruchomości | B27: 2695700 | C27: 2444705.8 | D27: 90.68909003 | E27: 2695700 | F27: 2444705.8 | G27: 90.68909003
A28: Przygotowanie nieruchomości komunalnych przeznaczonych m.in. do zbycia i zamiany | B28: 101000 | C28: 24426.2 | D28: 24.18435644 | E28: 101000 | F28: 24426.2 | G28: 24.18435644
A29: Regulacja stanów prawnych nieruchomości, w tym odszkodowania | B29: 2594700 | C29: 2420279.6 | D29: 93.27782017 | E29: 2594700 | F29: 2420279.6 | G29: 93.27782017
A30: Pozostały zasób komunalny | B30: 5005927 | C30: 1967127.21 | D30: 39.29596277 | E30: 96968 | F30: 40459.68 | G30: 41.72477518
A31: Zarządzanie lokalami użytkowymi i ich eksploatacja | B31: 2786316 | C31: 1597885.6 | D31: 57.34760881 | E31: 10000 | F31: 138.06 | G31: 1.3806
A32: Remonty lokali użytkowych | B32: 2132643 | C32: 328919.99 | D32: 15.42311536
A33: Zarządzanie pozostałymi nieruchomościami | B33: 86968 | C33: 40321.62 | D33: 46.36374299 | E33: 86968 | F33: 40321.62 | G33: 46.36374299
A34: GOSPODARKA KOMUNALNA I OCHRONA ŚRODOWISKA | B34: 12324870 | C34: 3802788.68 | D34: 30.85459465 | E34: 10685767 | F34: 3440242.49 | G34: 32.19462384
A35: Utrzymanie porządku i czystości | B35: 4142067 | C35: 1583319.03 | D35: 38.22533605 | E35: 3543067 | F35: 1318279.43 | G35: 37.20729611
A36: Oczyszczanie miasta | B36: 3030067 | C36: 1219038.74 | D36: 40.23141204 | E36: 2885067 | F36: 1147070.35 | G36: 39.75888082
A37: Zimowe oczyszczanie ulic | B37: 1202568 | C37: 880567.74 | D37: 73.22394576 | E37: 1202568 | F37: 880567.74 | G37: 73.22394576
A38: Letnie oczyszczanie ulic | B38: 490499 | C38: 57134.31 | D38: 11.64820112 | E38: 490499 | F38: 57134.31 | G38: 11.64820112
A39: Oczyszczanie pozostałych terenów | B39: 1337000 | C39: 281336.69 | D39: 21.04238519 | E39: 1192000 | F39: 209368.3 | G39: 17.5644547
A40: Opróżnianie i zakup koszy ulicznych | B40: 376000 | C40: 119278.08 | D40: 31.72289362 | E40: 376000 | F40: 119278.08 | G40: 31.72289362
A41: Szalety miejskie i kabiny sanitarne | B41: 454000 | C41: 193071.21 | D41: 42.52669824
A42: Opracowania i analizy związane z ochroną środowiska i monitorowanie środowiska | B42: 15000 | C42: 0 | D42: 0 | E42: 15000 | F42: 0 | G42: 0
A43: Zadania z zakresu bezdomności zwierząt w mieście | B43: 267000 | C43: 51931 | D43: 19.44981273 | E43: 267000 | F43: 51931 | G43: 19.44981273
A44: Gospodarka ściekowa i ochrona wód | B44: 175900 | C44: 44257.81 | D44: 25.16077885 | E44: 175900 | F44: 44257.81 | G44: 25.16077885
A45: Utrzymanie i remonty sieci wodno-kanalizacyjnej | B45: 175900 | C45: 44257.81 | D45: 25.16077885 | E45: 175900 | F45: 44257.81 | G45: 25.16077885
A46: Tereny zielone | B46: 6963903 | C46: 2101363.79 | D46: 30.17508702 | E46: 6716800 | F46: 2065277.56 | G46: 30.7479389
A47: Utrzymanie i konserwacja zieleni | B47: 4063961 | C47: 1203135.62 | D47: 29.60499916 | E47: 3816858 | F47: 1167049.39 | G47: 30.57618046
A48: Utrzymanie i konserwacja zieleni przyulicznej | B48: 2899942 | C48: 898228.17 | D48: 30.97400465 | E48: 2899942 | F48: 898228.17 | G48: 30.97400465
A49: Pozostałe zadania z zakresu gospodarki komunalnej | B49: 1043000 | C49: 73848.05 | D49: 7.080349952 | E49: 250000 | F49: 12427.69 | G49: 4.971076
A50: Place zabaw, ścieżki zdrowia i inne formy aktywności plenerowej | B50: 1023000 | C50: 73848.05 | D50: 7.218773216 | E50: 230000 | F50: 12427.69 | G50: 5.403343478
A51: Przedsięwzięcia ekologiczne | B51: 20000 | C51: 0 | D51: 0 | E51: 20000 | F51: 0 | G51: 0
A52: BEZPIECZEŃSTWO I PORZĄDEK PUBLICZNY | B52: 10500 | C52: 10500 | D52: 100
A53: Obrona narodowa i cywilna | B53: 10500 | C53: 10500 | D53: 100
A54: Kwalifikacja wojskowa | B54: 10500 | C54: 10500 | D54: 100
A55: EDUKACJA | B55: 500857846 | C55: 253699770.4 | D55: 50.65304906 | E55: 52887684 | F55: 28609918.83 | G55: 54.09561672
A56: Oświata i edukacyjna opieka wychowawcza | B56: 477005643 | C56: 242402528.6 | D56: 50.81753898 | E56: 52060637 | F56: 28372567.48 | G56: 54.4990786
A57: Prowadzenie przedszkoli i innych form wychowania przedszkolnego | B57: 120698876 | C57: 64087506.48 | D57: 53.09702013 | E57: 19265713 | F57: 11917538.95 | G57: 61.8588004
A58: Prowadzenie publicznych przedszkoli i innych form wychowania przedszkolnego | B58: 101433163 | C58: 52169967.53 | D58: 51.43285094 | F58: 0 | G58: -
A59: Dotacje dla niepublicznych przedszkoli i innych form wychowania przedszkolnego | B59: 19265713 | C59: 11917538.95 | D59: 61.8588004 | E59: 19265713 | F59: 11917538.95 | G59: 61.8588004
A60: Prowadzenie przedszkoli specjalnych | B60: 3417059 | C60: 1584775.13 | D60: 46.37833675
A61: Prowadzenie publicznych przedszkoli specjalnych | B61: 3417059 | C61: 1584775.13 | D61: 46.37833675
A62: Prowadzenie oddziałów "0" w szkołach podstawowych | B62: 1857481 | C62: 1030433.09 | D62: 55.47475802 | E62: 150000 | F62: 80495.84 | G62: 53.66389333
A63: Prowadzenie publicznych oddziałów "0" w szkołach podstawowych | B63: 1707481 | C63: 949937.25 | D63: 55.63384014
A64: Dotacje dla niepublicznych oddziałów "0" w szkołach podstawowych | B64: 150000 | C64: 80495.84 | D64: 53.66389333 | E64: 150000 | F64: 80495.84 | G64: 53.66389333
A65: Prowadzenie szkół podstawowych | B65: 134072265 | C65: 71463857.68 | D65: 53.30249152 | E65: 8944283 | F65: 5699819.65 | G65: 63.72584197
A66: Prowadzenie publicznych szkół podstawowych | B66: 125128734 | C66: 65764789.61 | D66: 52.55770398 | E66: 752 | F66: 751.58 | G66: 99.94414894
A67: Dotacje dla niepublicznych szkół podstawowych | B67: 8943531 | C67: 5699068.07 | D67: 63.72279662 | E67: 8943531 | F67: 5699068.07 | G67: 63.72279662
A68: Prowadzenie liceów ogólnokształcących | B68: 60040798 | C68: 31928683.7 | D68: 53.17831335 | E68: 1380334 | F68: 945384.05 | G68: 68.48951413
A69: Prowadzenie publicznych liceów ogólnokształcących | B69: 58663964 | C69: 30983299.65 | D69: 52.81487567 | E69: 3500 | F69: 0 | G69: 0
A70: Dotacje dla niepublicznych liceów ogólnokształcących | B70: 1376834 | C70: 945384.05 | D70: 68.66361885 | E70: 1376834 | F70: 945384.05 | G70: 68.66361885
A71: Prowadzenie publicznych placówek kształcenia ustawicznego icentrów kształcenia zawodowego | B71: 11911059 | C71: 5862744.69 | D71: 49.22101964
A72: Prowadzenie publicznych poradni psychologiczno-pedagogicznych | B72: 10842446 | C72: 5346751.4 | D72: 49.3131476
A73: Prowadzenie świetlic szkolnych | B73: 23562462 | C73: 10087253.41 | D73: 42.81069359
A74: Prowadzenie placówek wychowania pozaszkolnego | B74: 9446252 | C74: 4490187.01 | D74: 47.53405912
A75: Prowadzenie publicznych placówek wychowania pozaszkolnego | B75: 9446252 | C75: 4490187.01 | D75: 47.53405912
A76: Remonty w przedszkolach, szkołach i placówkach oświatowych | B76: 10246937 | C76: 1211656.25 | D76: 11.82457011 | E76: 7058598 | F76: 492806.47 | G76: 6.981648055
A77: Zajęcia dla uczniów na basenach i w halach sportowych | B77: 1000000 | C77: 401556 | D77: 40.1556
A78: Dowożenie uczniów do szkół | B78: 2315000 | C78: 1052596.68 | D78: 45.46853909 | E78: 2315000 | F78: 1052596.68 | G78: 45.46853909
A79: Prowadzenie stołówek szkolnych i przedszkolnych | B79: 9582454 | C79: 4766770.29 | D79: 49.74477613
A80: Wczesne wspomaganie rozwoju dziecka | B80: 872746 | C80: 446991.72 | D80: 51.21670222 | E80: 330000 | F80: 207061.4 | G80: 62.74587879
A81: Realizacja zadań wymagających stosowania specjalnej organizacji nauki i metod pracy | B81: 38051240 | C81: 18672629.4 | D81: 49.07232826 | E81: 7034418 | F81: 4688505.89 | G81: 66.65094241
A82: Realizacja zadań wymagających stosowania specjalnej organizacji nauki i metod pracy przez placówki publiczne | B82: 31016822 | C82: 13984123.51 | D82: 45.08561035
A83: Dotacje dla podmiotów niepublicznych realizujących zadania wymagające stosowania specjalnej nauki organizacji i metod pracy | B83: 7034418 | C83: 4688505.89 | D83: 66.65094241 | E83: 7034418 | F83: 4688505.89 | G83: 66.65094241
A84: Kwalifikacyjne kursy zawodowe | B84: 818429 | C84: 342845.48 | D84: 41.8906808 | E84: 40000 | F84: 0 | G84: 0
A85: Prowadzenie kwalifikacyjnych kursów zawodowych w placówkach publicznych | B85: 778429 | C85: 342845.48 | D85: 44.04325635
A86: Dotacje dla placówek niepublicznych na prowadzenie kwalifikacyjnych kursów zawodowych | B86: 40000 | C86: 0 | D86: 0 | E86: 40000 | F86: 0 | G86: 0
A87: Prowadzenie techników | B87: 31738490 | C87: 16893716.79 | D87: 53.22785296 | E87: 3856867 | F87: 2079105.69 | G87: 53.90659543
A88: Prowadzenie publicznych techników | B88: 27916623 | C88: 14814611.1 | D88: 53.06734665 | E88: 35000 | F88: 0 | G88: 0
A89: Dotacje dla niepublicznych techników | B89: 3821867 | C89: 2079105.69 | D89: 54.40026275 | E89: 3821867 | F89: 2079105.69 | G89: 54.40026275
A90: Prowadzenie szkół policealnych | B90: 1510019 | C90: 1033847.86 | D90: 68.4658842 | E90: 1510019 | F90: 1033847.86 | G90: 68.4658842
A91: Dotacje dla niepublicznych szkół policealnych | B91: 1510019 | C91: 1033847.86 | D91: 68.4658842 | E91: 1510019 | F91: 1033847.86 | G91: 68.4658842
A92: Prowadzenie branżowych szkół I i II stopnia | B92: 3622523 | C92: 1522320.53 | D92: 42.02376438
A93: Prowadzenie publicznych branżowych szkół I i II stopnia | B93: 3622523 | C93: 1522320.53 | D93: 42.02376438
A94: Wyposażenie szkół w podręczniki, materiały edukacyjne lub materiały ćwiczeniowe | B94: 1399107 | C94: 175405 | D94: 12.53692534 | E94: 175405 | F94: 175405 | G94: 100
A95: Wyposażenie szkół publicznych w podręczniki, materiały edukacyjne lub materiały ćwiczeniowe | B95: 1223702 | C95: 0 | D95: 0
A96: Dotacje na sfinansowanie wyposażenia placówek niepublicznych w podręczniki lub materiały ćwiczeniowe | B96: 175405 | C96: 175405 | D96: 100 | E96: 175405 | F96: 175405 | G96: 100
A97: Pozostałe zadania z zakresu oświaty i wychowania | B97: 23852203 | C97: 11297241.85 | D97: 47.36351544 | E97: 827047 | F97: 237351.35 | G97: 28.69865316
A98: Zarządzanie finansami oświaty | B98: 12801047 | C98: 5469273.28 | D98: 42.72520271
A99: Postępowania związane z awansem zawodowym nauczycieli | B99: 46350 | C99: 0 | D99: 0 | E99: 46350 | F99: 0 | G99: 0
A100: Dokształcanie i doskonalenie nauczycieli | B100: 908634 | C100: 298276.76 | D100: 32.82694242 | E100: 428049 | F100: 64885 | G100: 15.15831132
A101: Fundusz socjalny dla emerytowanych pracowników oświaty | B101: 2105790 | C101: 1579342 | D101: 74.99997626
A102: Nagrody dla nauczycieli | B102: 372184 | C102: 15952.95 | D102: 4.28630731 | E102: 0 | F102: 0 | G102: -
A103: Organizacja olimpiad, konkursów i uroczystości szkolnych oraz realizacja programów o charakterze innowacyjnym | B103: 353608 | C103: 107429.08 | D103: 30.3808398 | E103: 29150 | F103: 100 | G103: 0.343053173
A104: Wypoczynek dzieci i młodzieży szkolnej | B104: 872624 | C104: 177794.67 | D104: 20.37471695 | E104: 108040 | F104: 0 | G104: 0
A105: Pomoc materialna dla uczniów, studentów i doktorantów | B105: 1553353 | C105: 745308.35 | D105: 47.98061677
A106: Stypendia za wyniki w nauce | B106: 252291 | C106: 175949 | D106: 69.74049808
A107: Stypendia socjalne | B107: 417051 | C107: 105622.6 | D107: 25.32606324
A108: Dożywianie uczniów | B108: 884011 | C108: 463736.75 | D108: 52.45825561
A109: Realizacja programów edukacyjno-oświatowych (w tym UE) | B109: 4119355 | C109: 2582214.89 | D109: 62.68493223 | E109: 215458 | F109: 172366.35 | G109: 79.99997679
A110: Programy edukacyjno - oświatowe | B110: 1862391 | C110: 845084.19 | D110: 45.37630336
A111: Projekty edukacyjno - oświatowe realizowane w ramach programów Unii Europejskiej | B111: 2256964 | C111: 1737130.7 | D111: 76.96758566 | E111: 215458 | F111: 172366.35 | G111: 79.99997679
A112: Inne zadania (utrzymanie związków zawodowych, wypłata zasądzonych rent za zlikwidowanie jednostki) | B112: 719258 | C112: 321649.87 | D112: 44.71967917
A113: OCHRONA ZDROWIA I POLITYKA SPOŁECZNA | B113: 78121186 | C113: 39497743.36 | D113: 50.55957978 | E113: 47479149 | F113: 24547843.42 | G113: 51.70236606
A114: Programy zdrowotne | B114: 2363814 | C114: 1590975.43 | D114: 67.3054407 | E114: 2363814 | F114: 1590975.43 | G114: 67.3054407
A115: Miejski Program Profilaktyki i Rozwiązywania Problemów Alkoholowych | B115: 2363814 | C115: 1590975.43 | D115: 67.3054407 | E115: 2363814 | F115: 1590975.43 | G115: 67.3054407
A116: Miejski Program Profilaktyki i Rozwiązywania Problemów Alkoholowych | B116: 2363814 | C116: 1590975.43 | D116: 67.3054407 | E116: 2363814 | F116: 1590975.43 | G116: 67.3054407
A117: Polityka społeczna | B117: 30427494 | C117: 16698792.13 | D117: 54.88060282 | E117: 6899852 | F117: 5394141 | G117: 78.17763337
A118: Poradnictwo, mieszkania chronione i ośrodki interwencji kryzysowej oraz usługi specjalistyczne | B118: 7585 | C118: 2290 | D118: 30.19116678
A119: Pomoc bezrobotnym, aktywizacja zawodowa | B119: 23910 | C119: 4570.43 | D119: 19.11514011
A120: Zadania z zakresu pomocy bezrobotnym | B120: 23910 | C120: 4570.43 | D120: 19.11514011
A121: Pomoc dla repatriantów oraz dla uchodźców, w tym pomoc dla obywateli Ukrainy | B121: 5414176 | C121: 4518131.81 | D121: 83.4500358 | E121: 4311275 | F121: 3918164.2 | G121: 90.88179715
A122: Jednostki obsługi zadań z zakresu pomocy społecznej | B122: 18748728 | C122: 9125430.02 | D122: 48.67226203
A123: Zapewnienie opieki osobom przebywającym i dochodzącym w jednostkach pomocy społecznej | B123: 3607163 | C123: 1844472.97 | D123: 51.13361858 | E123: 2323577 | F123: 1275976.8 | G123: 54.91433251
A124: Zapewnienie pomocy, opieki i wychowania dzieciom i młodzieży pozbawionym opieki rodziców | B124: 713835 | C124: 199939.08 | D124: 28.00914497
A125: Wspieranie inicjatyw społecznych na rzecz zaspokajania potrzeb życiowych osób i rodzin | B125: 415500 | C125: 270174.47 | D125: 65.02393983 | E125: 265000 | F125: 200000 | G125: 75.47169811
A126: Dożywianie | B126: 1496597 | C126: 733783.35 | D126: 49.03012301
A127: Realizacja programu "Posiłek w szkole i w domu" | B127: 1278527 | C127: 641230.85 | D127: 50.1538763
A128: Pozostałe zadania z zakresu dożywiania | B128: 218070 | C128: 92552.5 | D128: 42.44164718
A129: Wypłata świadczeń i zasiłków oraz pomoc w naturze | B129: 45329878 | C129: 21207975.8 | D129: 46.7858656 | E129: 38215483 | F129: 17562726.99 | G129: 45.95709804
A130: Zasiłki i pomoc w naturze | B130: 10162625 | C130: 4158446.14 | D130: 40.9190159 | E130: 3472839 | F130: 692500 | G130: 19.94045794
A131: Świadczenia rodzinne, wychowawcze i z funduszu alimentacyjnego | B131: 30406500 | C131: 14498723.89 | D131: 47.68297532 | E131: 30406500 | F131: 14498723.89 | G131: 47.68297532
A132: Dodatki mieszkaniowe i energetyczne | B132: 3970000 | C132: 2119559.44 | D132: 53.38940655 | E132: 3970000 | F132: 2119559.44 | G132: 53.38940655
A133: Ubezpieczenia zdrowotne i świadczenia dla osób nieobjętych ubezpieczeniem społecznym oraz osób pobierających niektóre świadczenia z pomocy społecznej | B133: 790753 | C133: 431246.33 | D133: 54.5361611 | E133: 366144 | F133: 251943.66 | G133: 68.80999279
A134: KULTURA I OCHRONA DZIEDZICTWA KULTUROWEGO | B134: 25940665 | C134: 12768115.66 | D134: 49.22046393 | E134: 25940665 | F134: 12768115.66 | G134: 49.22046393
A135: Upowszechnianie kultury i tradycji | B135: 763500 | C135: 538115.66 | D135: 70.48011264 | E135: 763500 | F135: 538115.66 | G135: 70.48011264
A136: Przedsięwzięcia artystyczne i kulturalne | B136: 763500 | C136: 538115.66 | D136: 70.48011264 | E136: 763500 | F136: 538115.66 | G136: 70.48011264
A137: Działalność kulturalna | B137: 25152165 | C137: 12230000 | D137: 48.62404489 | E137: 25152165 | F137: 12230000 | G137: 48.62404489
A138: Prowadzenie działalności kulturalnej przez domy i ośrodki kultury | B138: 12130000 | C138: 5630000 | D138: 46.41384996 | E138: 12130000 | F138: 5630000 | G138: 46.41384996
A139: Centrum Promocji Kultury w Dzielnicy Praga-Południe | B139: 9290000 | C139: 4090000 | D139: 44.02583423 | E139: 9290000 | F139: 4090000 | G139: 44.02583423
A140: Prom Kultury Saska Kępa | B140: 2840000 | C140: 1540000 | D140: 54.22535211 | E140: 2840000 | F140: 1540000 | G140: 54.22535211
A141: Prowadzenie działalności kulturalnej przez biblioteki | B141: 13022165 | C141: 6600000 | D141: 50.68281657 | E141: 13022165 | F141: 6600000 | G141: 50.68281657
A142: Biblioteka Publiczna im. Zygmunta Jana Rumla w Dzielnicy Praga-Południe | B142: 13022165 | C142: 6600000 | D142: 50.68281657 | E142: 13022165 | F142: 6600000 | G142: 50.68281657
A143: Pozostałe inicjatywy w zakresie kultury | B143: 25000 | C143: 0 | D143: 0 | E143: 25000 | F143: 0 | G143: 0
A144: Utrzymanie pomników, rzeźb i innych miejsc pamięci | B144: 25000 | C144: 0 | D144: 0 | E144: 25000 | F144: 0 | G144: 0
A145: REKREACJA, SPORT I TURYSTYKA | B145: 23146275 | C145: 9788777.14 | D145: 42.29093943 | E145: 1390110 | F145: 656148.33 | G145: 47.20118048
A146: Działalność rekreacyjno-sportowa | B146: 21800705 | C146: 9212816.54 | D146: 42.25925969 | E146: 710300 | F146: 199628.33 | G146: 28.10479093
A147: Utrzymanie obiektów sportowo-rekreacyjnych | B147: 21800705 | C147: 9212816.54 | D147: 42.25925969 | E147: 710300 | F147: 199628.33 | G147: 28.10479093
A148: Upowszechnianie kultury fizycznej i sportu | B148: 1345570 | C148: 575960.6 | D148: 42.80420937 | E148: 679810 | F148: 456520 | G148: 67.15405775
A149: Imprezy rekreacyjno-sportowe | B149: 165000 | C149: 86000 | D149: 52.12121212 | E149: 165000 | F149: 86000 | G149: 52.12121212
A150: Podnoszenie sprawności fizycznej mieszkańców oraz szkolenia i współzawodnictwo sportowe dzieci i młodzieży | B150: 1180570 | C150: 489960.6 | D150: 41.50203715 | E150: 514810 | F150: 370520 | G150: 71.97218391
A151: DZIAŁALNOŚĆ PROMOCYJNA I WSPIERANIE ROZWOJU GOSPODARCZEGO | B151: 530000 | C151: 210136.73 | D151: 39.64843962 | E151: 530000 | F151: 210136.73 | G151: 39.64843962
A152: Promocja miasta | B152: 420000 | C152: 209369.92 | D152: 49.84998095 | E152: 420000 | F152: 209369.92 | G152: 49.84998095
A153: Promocja krajowa | B153: 400000 | C153: 208088.29 | D153: 52.0220725 | E153: 400000 | F153: 208088.29 | G153: 52.0220725
A154: Udział w wystawach, targach, imprezach promocyjnych | B154: 240000 | C154: 132725.1 | D154: 55.302125 | E154: 240000 | F154: 132725.1 | G154: 55.302125
A155: Wydawnictwa w tym wydawnictwa multimedialne | B155: 80000 | C155: 36987.5 | D155: 46.234375 | E155: 80000 | F155: 36987.5 | G155: 46.234375
A156: Reklama w mediach, zakup materiałów promocyjnych oraz zarządzanie marką miasta Warszawy | B156: 80000 | C156: 38375.69 | D156: 47.9696125 | E156: 80000 | F156: 38375.69 | G156: 47.9696125
A157: Współpraca regionalna | B157: 5000 | C157: 322.2 | D157: 6.444 | E157: 5000 | F157: 322.2 | G157: 6.444
A158: Współpraca międzynarodowa | B158: 15000 | C158: 959.43 | D158: 6.3962 | E158: 15000 | F158: 959.43 | G158: 6.3962
A159: Wspieranie rozwoju gospodarczego | B159: 110000 | C159: 766.81 | D159: 0.6971 | E159: 110000 | F159: 766.81 | G159: 0.6971
A160: Obsługa inwestorów i promocja gospodarcza | B160: 110000 | C160: 766.81 | D160: 0.6971 | E160: 110000 | F160: 766.81 | G160: 0.6971
A161: ZARZĄDZANIE STRUKTURAMI SAMORZĄDOWYMI | B161: 51602312 | C161: 24358473.29 | D161: 47.20422854 | E161: 51593312 | F161: 24357745.01 | G161: 47.21105133
A162: Funkcjonowanie Urzędu Miasta | B162: 49949012 | C162: 23678847.72 | D162: 47.40603822 | E162: 49949012 | F162: 23678847.72 | G162: 47.40603822
A163: Utrzymanie stanowisk pracy | B163: 42332158 | C163: 21600760.06 | D163: 51.02683416 | E163: 42332158 | F163: 21600760.06 | G163: 51.02683416
A164: Fundusz wynagrodzeń | B164: 42009558 | C164: 21473613.46 | D164: 51.11601855 | E164: 42009558 | F164: 21473613.46 | G164: 51.11601855
A165: Wydatki na rzecz pracownika | B165: 322600 | C165: 127146.6 | D165: 39.41308121 | E165: 322600 | F165: 127146.6 | G165: 39.41308121
A166: Zapewnienie prawidłowego działania Urzędu | B166: 7616854 | C166: 2078087.66 | D166: 27.28275558 | E166: 7616854 | F166: 2078087.66 | G166: 27.28275558
A167: Remonty bieżące w budynkach | B167: 815132 | C167: 111554.13 | D167: 13.68540678 | E167: 815132 | F167: 111554.13 | G167: 13.68540678
A168: Utrzymanie Urzędu | B168: 4064024 | C168: 1191653.54 | D168: 29.3220104 | E168: 4064024 | F168: 1191653.54 | G168: 29.3220104
A169: Obsługa informatyczna | B169: 813000 | C169: 99786.06 | D169: 12.27380812 | E169: 813000 | F169: 99786.06 | G169: 12.27380812
A170: Obsługa teletechniczna | B170: 53000 | C170: 17357.61 | D170: 32.75020755 | E170: 53000 | F170: 17357.61 | G170: 32.75020755
A171: Obsługa kancelaryjna | B171: 1041698 | C171: 328750.09 | D171: 31.55905934 | E171: 1041698 | F171: 328750.09 | G171: 31.55905934
A172: Obsługa medialna | B172: 8000 | C172: 1609.57 | D172: 20.119625 | E172: 8000 | F172: 1609.57 | G172: 20.119625
A173: Ochrona osób i mienia | B173: 822000 | C173: 327376.66 | D173: 39.82684428 | E173: 822000 | F173: 327376.66 | G173: 39.82684428
A174: Rozwój społeczeństwa obywatelskiego | B174: 1653300 | C174: 679625.57 | D174: 41.10721406 | E174: 1644300 | F174: 678897.29 | G174: 41.2879213
A175: Obsługa organizacyjno-techniczna Rady m.st. Warszawy i Rad Dzielnic | B175: 1248000 | C175: 372026.45 | D175: 29.8098117 | E175: 1248000 | F175: 372026.45 | G175: 29.8098117
A176: Utrzymanie i działalność statutowa Rad Osiedli | B176: 59000 | C176: 8098.11 | D176: 13.72561017 | E176: 59000 | F176: 8098.11 | G176: 13.72561017
A177: Dialog społeczny, badania opinii mieszkańców, komunikacja społeczna | B177: 60500 | C177: 21972.73 | D177: 36.31856198 | E177: 60500 | F177: 21972.73 | G177: 36.31856198
A178: Centra Aktywności Lokalnej | B178: 285800 | C178: 277528.28 | D178: 97.10576627 | E178: 276800 | F178: 276800 | G178: 100
A179: FINANSE I RÓŻNE ROZLICZENIA | B179: 440000 | C179: 161454.18 | D179: 36.69413182 | E179: 440000 | F179: 161454.18 | G179: 36.69413182
A180: Zadania z zakresu polityki finansowej | B180: 300000 | C180: 100487.62 | D180: 33.49587333 | E180: 300000 | F180: 100487.62 | G180: 33.49587333
A181: Obsługa finansowo-księgowa | B181: 100000 | C181: 11268.29 | D181: 11.26829 | E181: 100000 | F181: 11268.29 | G181: 11.26829
A182: Różne rozliczenia | B182: 200000 | C182: 89219.33 | D182: 44.609665 | E182: 200000 | F182: 89219.33 | G182: 44.609665
A183: Zadania z zakresu polityki podatkowej | B183: 140000 | C183: 60966.56 | D183: 43.54754286 | E183: 140000 | F183: 60966.56 | G183: 43.54754286
A184: Wymiar, windykacja i ewidencja podatków i opłat lokalnych oraz należności niepodatkowych | B184: 140000 | C184: 60966.56 | D184: 43.54754286 | E184: 140000 | F184: 60966.56 | G184: 43.54754286

Sheet Praga_Północ.
A6: WYKONANIE WYDATKÓW BIEŻĄCYCH MIASTA STOŁECZNEGO WARSZAWY W UKŁADZIE ZADAŃ ZA I PÓŁROCZE 2023 ROKU
A7: WYDATKI PRAGA-PÓŁNOC
A9: Wyszczególnienie | B9: Plan | E9: W tym Urząd
B10: Plan | C10: Wykonanie | D10: Wskaźnik % (kol. 3/2) | E10: Plan | F10: Wykonanie | G10: Wskaźnik % (kol. 6/5)
A11: 1 | B11: 2 | C11: 3 | D11: 4 | E11: 5 | F11: 6 | G11: 7
A12: OGÓŁEM | B12: 409603404 | C12: 204273192.5 | D12: 49.87097043 | E12: 91536375 | F12: 40445985.95 | G12: 44.18569771
A13: TRANSPORT I KOMUNIKACJA | B13: 2077603 | C13: 420886.21 | D13: 20.25825964 | E13: 1854779 | F13: 378130.76 | G13: 20.38683638
A14: Drogi i mosty | B14: 2077603 | C14: 420886.21 | D14: 20.25825964 | E14: 1854779 | F14: 378130.76 | G14: 20.38683638
A15: Utrzymanie i remonty dróg | B15: 1664882 | C15: 335040.32 | D15: 20.12396795 | E15: 1664882 | F15: 335040.32 | G15: 20.12396795
A16: Utrzymanie i remonty dróg gminnych | B16: 1664882 | C16: 335040.32 | D16: 20.12396795 | E16: 1664882 | F16: 335040.32 | G16: 20.12396795
A17: Oświetlenie ulic | B17: 181041 | C17: 34234.44 | D17: 18.90977182 | E17: 181041 | F17: 34234.44 | G17: 18.90977182
A18: Iluminacje obiektów architektonicznych | B18: 101214 | C18: 34234.44 | D18: 33.82381884 | E18: 101214 | F18: 34234.44 | G18: 33.82381884
A19: Utrzymanie i remonty oświetlenia ulic, placów i dróg | B19: 79827 | C19: 0 | D19: 0 | E19: 79827 | F19: 0 | G19: 0
A20: Opracowania i analizy związane z drogami | B20: 8856 | C20: 8856 | D20: 100 | E20: 8856 | F20: 8856 | G20: 100
A21: Gospodarowanie parkingami i węzłami komunikacyjnymi | B21: 222824 | C21: 42755.45 | D21: 19.18799142
A22: ŁAD PRZESTRZENNY I GOSPODARKA NIERUCHOMOŚCIAMI | B22: 111899221 | C22: 59805905.33 | D22: 53.44622134 | E22: 588656 | F22: 162727.56 | G22: 27.64391427
A23: Rewitalizacja | B23: 100000 | C23: 0 | D23: 0 | E23: 100000 | F23: 0 | G23: 0
A24: Rewitalizacja obszarów miejskich | B24: 100000 | C24: 0 | D24: 0 | E24: 100000 | F24: 0 | G24: 0
A25: Mieszkaniowy zasób komunalny oraz pozostałe zadania związane z zapewnieniem lokali mieszkalnych | B25: 106543135 | C25: 58153124.62 | D25: 54.58176599 | E25: 47270 | F25: 16606.27 | G25: 35.13067485
A26: Koszty eksploatacji mieszkaniowego zasobu komunalnego | B26: 32219601 | C26: 20078279.98 | D26: 62.31697276 | E26: 47170 | F26: 16606.27 | G26: 35.20515158
A27: Remonty mieszkaniowego zasobu komunalnego | B27: 20489508 | C27: 8167910.71 | D27: 39.8638694
A28: Utrzymanie jednostek gospodarujących zasobem komunalnym | B28: 33197690 | C28: 15456558.76 | D28: 46.55913939
A29: Rozliczenia ze wspólnotami mieszkaniowymi | B29: 20308236 | C29: 14340654.55 | D29: 70.61496897
A30: Rozliczenia za lokale z właścicielami innymi niż m.st. Warszawa | B30: 328100 | C30: 109720.62 | D30: 33.44121304 | E30: 100 | F30: 0 | G30: 0
A31: Zadania związane z nabywaniem i sprzedażą nieruchomości | B31: 101817 | C31: 13307.35 | D31: 13.06987045 | E31: 101817 | F31: 13307.35 | G31: 13.06987045
A32: Przygotowanie nieruchomości komunalnych przeznaczonych m.in. do zbycia i zamiany | B32: 89787 | C32: 11892.85 | D32: 13.24562576 | E32: 89787 | F32: 11892.85 | G32: 13.24562576
A33: Regulacja stanów prawnych nieruchomości, w tym odszkodowania | B33: 12030 | C33: 1414.5 | D33: 11.75810474 | E33: 12030 | F33: 1414.5 | G33: 11.75810474
A34: Pozostały zasób komunalny | B34: 5154269 | C34: 1639473.36 | D34: 31.80806745 | E34: 339569 | F34: 132813.94 | G34: 39.11250438
A35: Zarządzanie lokalami użytkowymi i ich eksploatacja | B35: 3980086 | C35: 1359377.87 | D35: 34.15448485 | E35: 181386 | F35: 87859.45 | G35: 48.43783423
A36: Remonty lokali użytkowych | B36: 1016000 | C36: 235141 | D36: 23.14379921
A37: Zarządzanie pozostałymi nieruchomościami | B37: 158183 | C37: 44954.49 | D37: 28.41929284 | E37: 158183 | F37: 44954.49 | G37: 28.41929284
A38: GOSPODARKA KOMUNALNA I OCHRONA ŚRODOWISKA | B38: 10012077 | C38: 3337955.06 | D38: 33.33928674 | E38: 564200 | F38: 21896 | G38: 3.8808933
A39: Utrzymanie porządku i czystości | B39: 1272318 | C39: 279272.71 | D39: 21.94991425 | E39: 105000 | F39: 15542 | G39: 14.80190476
A40: Oczyszczanie miasta | B40: 730000 | C40: 94200.65 | D40: 12.90419863
A41: Zimowe oczyszczanie ulic | B41: 350000 | C41: 52916.13 | D41: 15.11889429
A42: Letnie oczyszczanie ulic | B42: 300000 | C42: 41284.52 | D42: 13.76150667
A43: Oczyszczanie pozostałych terenów | B43: 80000 | C43: 0 | D43: 0
A44: Interwencyjne pogotowie oczyszczania | B44: 3000 | C44: 0 | D44: 0
A45: Opróżnianie i zakup koszy ulicznych | B45: 400000 | C45: 168695.63 | D45: 42.1739075
A46: Szalety miejskie i kabiny sanitarne | B46: 4318 | C46: 834.43 | D46: 19.32445577
A47: Likwidacja dzikich wysypisk | B47: 30000 | C47: 0 | D47: 0
A48: Opracowania i analizy związane z ochroną środowiska i monitorowanie środowiska | B48: 20000 | C48: 0 | D48: 0 | E48: 20000 | F48: 0 | G48: 0
A49: Zadania z zakresu bezdomności zwierząt w mieście | B49: 85000 | C49: 15542 | D49: 18.28470588 | E49: 85000 | F49: 15542 | G49: 18.28470588
A50: Gospodarka ściekowa i ochrona wód | B50: 332732 | C50: 108469.01 | D50: 32.59951252
A51: Utrzymanie i remonty sieci wodno-kanalizacyjnej | B51: 332732 | C51: 108469.01 | D51: 32.59951252
A52: Tereny zielone | B52: 2082592 | C52: 458194.29 | D52: 22.00115481 | E52: 424200 | F52: 0 | G52: 0
A53: Utrzymanie i konserwacja zieleni | B53: 1105309 | C53: 273018.34 | D53: 24.70063484 | E53: 419200 | F53: 0 | G53: 0
A54: Utrzymanie i konserwacja zieleni przyulicznej | B54: 972283 | C54: 185175.95 | D54: 19.04547853
A55: Opracowania związane z zielenią | B55: 5000 | C55: 0 | D55: 0 | E55: 5000 | F55: 0 | G55: 0
A56: Pozostałe zadania z zakresu gospodarki komunalnej | B56: 6324435 | C56: 2492019.05 | D56: 39.40303047 | E56: 35000 | F56: 6354 | G56: 18.15428571
A57: Place zabaw, ścieżki zdrowia i inne formy aktywności plenerowej | B57: 529298 | C57: 103943.93 | D57: 19.63807345
A58: Utrzymanie i rozwój infrastruktury komunalnej | B58: 4474673 | C58: 2069800.98 | D58: 46.25591591
A59: Utrzymanie jednostek budżetowych realizujących zadania z zakresu infrastruktury w dzielnicach | B59: 4474673 | C59: 2069800.98 | D59: 46.25591591
A60: Gospodarowanie targowiskami i nadzór nad handlem obwoźnym | B60: 1285464 | C60: 311920.14 | D60: 24.26517895
A61: Przedsięwzięcia ekologiczne | B61: 35000 | C61: 6354 | D61: 18.15428571 | E61: 35000 | F61: 6354 | G61: 18.15428571
A62: EDUKACJA | B62: 181810020 | C62: 93635007.6 | D62: 51.50156609 | E62: 18429440 | F62: 7656016.58 | G62: 41.54231805
A63: Oświata i edukacyjna opieka wychowawcza | B63: 168303687 | C63: 87514380.24 | D63: 51.99789844 | E63: 18001235 | F63: 7632456.79 | G63: 42.39962864
A64: Prowadzenie przedszkoli i innych form wychowania przedszkolnego | B64: 28738150 | C64: 15504517.06 | D64: 53.95099218 | E64: 632207 | F64: 302841 | G64: 47.90219026
A65: Prowadzenie publicznych przedszkoli i innych form wychowania przedszkolnego | B65: 28105943 | C65: 15201676.06 | D65: 54.08705219
A66: Dotacje dla niepublicznych przedszkoli i innych form wychowania przedszkolnego | B66: 632207 | C66: 302841 | D66: 47.90219026 | E66: 632207 | F66: 302841 | G66: 47.90219026
A67: Prowadzenie oddziałów "0" w szkołach podstawowych | B67: 1606215 | C67: 942037.49 | D67: 58.64952637 | E67: 20000 | F67: 0 | G67: 0
A68: Prowadzenie publicznych oddziałów "0" w szkołach podstawowych | B68: 1586215 | C68: 942037.49 | D68: 59.38901662
A69: Dotacje dla niepublicznych oddziałów "0" w szkołach podstawowych | B69: 20000 | C69: 0 | D69: 0 | E69: 20000 | F69: 0 | G69: 0
A70: Prowadzenie szkół podstawowych | B70: 43603709 | C70: 23327858.46 | D70: 53.49971137 | E70: 400000 | F70: 182753.79 | G70: 45.6884475
A71: Prowadzenie publicznych szkół podstawowych | B71: 43203709 | C71: 23145104.67 | D71: 53.57203167 | F71: 0 | G71: -
A72: Dotacje dla niepublicznych szkół podstawowych | B72: 400000 | C72: 182753.79 | D72: 45.6884475 | E72: 400000 | F72: 182753.79 | G72: 45.6884475
A73: Prowadzenie liceów ogólnokształcących | B73: 27774602 | C73: 14124850.06 | D73: 50.8552744 | E73: 3966086 | F73: 1712684.68 | G73: 43.18324615
A74: Prowadzenie publicznych liceów ogólnokształcących | B74: 23808516 | C74: 12412165.38 | D74: 52.13330129
A75: Dotacje dla niepublicznych liceów ogólnokształcących | B75: 3966086 | C75: 1712684.68 | D75: 43.18324615 | E75: 3966086 | F75: 1712684.68 | G75: 43.18324615
A76: Prowadzenie publicznych poradni psychologiczno-pedagogicznych | B76: 3344755 | C76: 1880195.83 | D76: 56.21326016
A77: Prowadzenie świetlic szkolnych | B77: 5096427 | C77: 2812176.2 | D77: 55.17936782
A78: Prowadzenie placówek wychowania pozaszkolnego | B78: 1000231 | C78: 498605.34 | D78: 49.84901888
A79: Prowadzenie publicznych placówek wychowania pozaszkolnego | B79: 1000231 | C79: 498605.34 | D79: 49.84901888
A80: Remonty w przedszkolach, szkołach i placówkach oświatowych | B80: 3577709 | C80: 443482.57 | D80: 12.39571385 | E80: 1925000 | F80: 12300 | G80: 0.638961039
A81: Zajęcia dla uczniów na basenach i w halach sportowych | B81: 458858 | C81: 202476 | D81: 44.1260695
A82: Dowożenie uczniów do szkół | B82: 1641957 | C82: 480118.35 | D82: 29.24061653 | E82: 1641957 | F82: 480118.35 | G82: 29.24061653
A83: Prowadzenie stołówek szkolnych i przedszkolnych | B83: 2694018 | C83: 1258611.43 | D83: 46.71874613
A84: Wczesne wspomaganie rozwoju dziecka | B84: 246517 | C84: 103110.77 | D84: 41.82704235 | E84: 15000 | F84: 0 | G84: 0
A85: Realizacja zadań wymagających stosowania specjalnej organizacji nauki i metod pracy | B85: 15919177 | C85: 8656111.97 | D85: 54.37537361 | E85: 2900000 | F85: 1619589.97 | G85: 55.84793
A86: Realizacja zadań wymagających stosowania specjalnej organizacji nauki i metod pracy przez placówki publiczne | B86: 13019177 | C86: 7036522 | D86: 54.04736413
A87: Dotacje dla podmiotów niepublicznych realizujących zadania wymagające stosowania specjalnej nauki organizacji i metod pracy | B87: 2900000 | C87: 1619589.97 | D87: 55.84793 | E87: 2900000 | F87: 1619589.97 | G87: 55.84793
A88: Kwalifikacyjne kursy zawodowe | B88: 2000000 | C88: 922580.96 | D88: 46.129048 | E88: 2000000 | F88: 922580.96 | G88: 46.129048
A89: Dotacje dla placówek niepublicznych na prowadzenie kwalifikacyjnych kursów zawodowych | B89: 2000000 | C89: 922580.96 | D89: 46.129048 | E89: 2000000 | F89: 922580.96 | G89: 46.129048
A90: Prowadzenie techników | B90: 25363768 | C90: 13780260.24 | D90: 54.33049317 | E90: 800000 | F90: 509934.63 | G90: 63.74182875
A91: Prowadzenie publicznych techników | B91: 24563768 | C91: 13270325.61 | D91: 54.02398203
A92: Dotacje dla niepublicznych techników | B92: 800000 | C92: 509934.63 | D92: 63.74182875 | E92: 800000 | F92: 509934.63 | G92: 63.74182875
A93: Prowadzenie szkół policealnych | B93: 3699219 | C93: 1887887.41 | D93: 51.03475653 | E93: 3699219 | F93: 1887887.41 | G93: 51.03475653
A94: Dotacje dla niepublicznych szkół policealnych | B94: 3699219 | C94: 1887887.41 | D94: 51.03475653 | E94: 3699219 | F94: 1887887.41 | G94: 51.03475653
A95: Prowadzenie branżowych szkół I i II stopnia | B95: 1225905 | C95: 687734.1 | D95: 56.10011379
A96: Prowadzenie publicznych branżowych szkół I i II stopnia | B96: 1225905 | C96: 687734.1 | D96: 56.10011379
A97: Wyposażenie szkół w podręczniki, materiały edukacyjne lub materiały ćwiczeniowe | B97: 312470 | C97: 1766 | D97: 0.565174257 | E97: 1766 | F97: 1766 | G97: 100
A98: Wyposażenie szkół publicznych w podręczniki, materiały edukacyjne lub materiały ćwiczeniowe | B98: 310704 | C98: 0 | D98: 0
A99: Dotacje na sfinansowanie wyposażenia placówek niepublicznych w podręczniki lub materiały ćwiczeniowe | B99: 1766 | C99: 1766 | D99: 100 | E99: 1766 | F99: 1766 | G99: 100
A100: Pozostałe zadania z zakresu oświaty i wychowania | B100: 13506333 | C100: 6120627.36 | D100: 45.31672187 | E100: 428205 | F100: 23559.79 | G100: 5.501988534
A101: Zarządzanie finansami oświaty | B101: 6071582 | C101: 2910257.05 | D101: 47.93243425
A102: Postępowania związane z awansem zawodowym nauczycieli | B102: 19927 | C102: 959.79 | D102: 4.816530336 | E102: 19927 | F102: 959.79 | G102: 4.816530336
A103: Dokształcanie i doskonalenie nauczycieli | B103: 318988 | C103: 60994.79 | D103: 19.12134312 | E103: 150553 | F103: 22500 | G103: 14.94490312
A104: Fundusz socjalny dla emerytowanych pracowników oświaty | B104: 1008670 | C104: 757262 | D104: 75.07529717
A105: Nagrody dla nauczycieli | B105: 182175 | C105: 0 | D105: 0 | E105: 182175 | F105: 0 | G105: 0
A106: Organizacja olimpiad, konkursów i uroczystości szkolnych oraz realizacja programów o charakterze innowacyjnym | B106: 260606 | C106: 64260.11 | D106: 24.65795492 | E106: 75550 | F106: 100 | G106: 0.132362674
A107: Wypoczynek dzieci i młodzieży szkolnej | B107: 775370 | C107: 114852.81 | D107: 14.81264558
A108: Pomoc materialna dla uczniów, studentów i doktorantów | B108: 2765737 | C108: 977547.08 | D108: 35.34490373 | F108: 0 | G108: -
A109: Stypendia za wyniki w nauce | B109: 212500 | C109: 55901 | D109: 26.30635294
A110: Stypendia socjalne | B110: 824527 | C110: 122729.49 | D110: 14.88483579
A111: Dożywianie uczniów | B111: 1728710 | C111: 798916.59 | D111: 46.21461032
A112: Realizacja programów edukacyjno-oświatowych (w tym UE) | B112: 1842098 | C112: 1187087.73 | D112: 64.44215943
A113: Programy edukacyjno - oświatowe | B113: 659077 | C113: 252987.1 | D113: 38.38505971
A114: Projekty edukacyjno - oświatowe realizowane w ramach programów Unii Europejskiej | B114: 1183021 | C114: 934100.63 | D114: 78.95892211
A115: Inne zadania (utrzymanie związków zawodowych, wypłata zasądzonych rent za zlikwidowanie jednostki) | B115: 261180 | C115: 47406 | D115: 18.15070067
A116: OCHRONA ZDROWIA I POLITYKA SPOŁECZNA | B116: 51962386 | C116: 21445715.43 | D116: 41.27161411 | E116: 28147528 | F116: 10652979.15 | G116: 37.84694397
A117: Programy zdrowotne | B117: 2393278 | C117: 1289418.73 | D117: 53.87668002 | E117: 2393278 | F117: 1289418.73 | G117: 53.87668002
A118: Miejski Program Profilaktyki i Rozwiązywania Problemów Alkoholowych | B118: 2393278 | C118: 1289418.73 | D118: 53.87668002 | E118: 2393278 | F118: 1289418.73 | G118: 53.87668002
A119: Miejski Program Profilaktyki i Rozwiązywania Problemów Alkoholowych | B119: 2393278 | C119: 1289418.73 | D119: 53.87668002 | E119: 2393278 | F119: 1289418.73 | G119: 53.87668002
A120: Polityka społeczna | B120: 17268160 | C120: 8269547.11 | D120: 47.88898823 | E120: 1566169 | F120: 1152074.39 | G120: 73.56003024
A121: Poradnictwo, mieszkania chronione i ośrodki interwencji kryzysowej oraz usługi specjalistyczne | B121: 7585 | C121: 0 | D121: 0 | E121: 7585 | F121: 0 | G121: 0
A122: Pomoc dla repatriantów oraz dla uchodźców, w tym pomoc dla obywateli Ukrainy | B122: 1545402 | C122: 1205433.19 | D122: 78.00127022 | E122: 1467184 | F122: 1137574.39 | G122: 77.53454168
A123: Jednostki obsługi zadań z zakresu pomocy społecznej | B123: 10763561 | C123: 5061069.92 | D123: 47.02040449
A124: Zapewnienie opieki osobom przebywającym i dochodzącym w jednostkach pomocy społecznej | B124: 1813769 | C124: 720214.97 | D124: 39.70819713
A125: Zapewnienie pomocy, opieki i wychowania dzieciom i młodzieży pozbawionym opieki rodziców | B125: 606753 | C125: 300732.13 | D125: 49.56417686
A126: Wspieranie inicjatyw społecznych na rzecz zaspokajania potrzeb życiowych osób i rodzin | B126: 97350 | C126: 17334 | D126: 17.80585516 | E126: 91400 | F126: 14500 | G126: 15.8643326
A127: Dożywianie | B127: 2433740 | C127: 964762.9 | D127: 39.64116545
A128: Realizacja programu "Posiłek w szkole i w domu" | B128: 2228240 | C128: 916693.9 | D128: 41.13981887
A129: Pozostałe zadania z zakresu dożywiania | B129: 205500 | C129: 48069 | D129: 23.39124088
A130: Wypłata świadczeń i zasiłków oraz pomoc w naturze | B130: 32300948 | C130: 11886749.59 | D130: 36.80000225 | E130: 24188081 | F130: 8211486.03 | G130: 33.94848078
A131: Zasiłki i pomoc w naturze | B131: 11657321 | C131: 4129148.17 | D131: 35.4210729 | E131: 3920396 | F131: 569000 | G131: 14.51383993
A132: Świadczenia rodzinne, wychowawcze i z funduszu alimentacyjnego | B132: 19396221 | C132: 7177412.04 | D132: 37.00417746 | E132: 19396221 | F132: 7177412.04 | G132: 37.00417746
A133: Dodatki mieszkaniowe i energetyczne | B133: 693800 | C133: 348465.32 | D133: 50.22561545 | E133: 693800 | F133: 348465.32 | G133: 50.22561545
A134: Ubezpieczenia zdrowotne i świadczenia dla osób nieobjętych ubezpieczeniem społecznym oraz osób pobierających niektóre świadczenia z pomocy społecznej | B134: 553606 | C134: 231724.06 | D134: 41.85721614 | E134: 177664 | F134: 116608.67 | G134: 65.63438288
A135: KULTURA I OCHRONA DZIEDZICTWA KULTUROWEGO | B135: 11017063 | C135: 5326623.31 | D135: 48.34885042 | E135: 10723036 | F135: 5307713.08 | G135: 49.49823054
A136: Upowszechnianie kultury i tradycji | B136: 850000 | C136: 261571.08 | D136: 30.77306824 | E136: 850000 | F136: 261571.08 | G136: 30.77306824
A137: Przedsięwzięcia artystyczne i kulturalne | B137: 850000 | C137: 261571.08 | D137: 30.77306824 | E137: 850000 | F137: 261571.08 | G137: 30.77306824
A138: Ochrona i konserwacja obiektów zabytkowych | B138: 58000 | C138: 0 | D138: 0 | E138: 58000 | F138: 0 | G138: 0
A139: Ochrona zabytków i opieka nad zabytkami | B139: 58000 | C139: 0 | D139: 0 | E139: 58000 | F139: 0 | G139: 0
A140: Działalność kulturalna | B140: 9815036 | C140: 5046142 | D140: 51.41236364 | E140: 9815036 | F140: 5046142 | G140: 51.41236364
A141: Prowadzenie działalności kulturalnej przez domy i ośrodki kultury | B141: 3716500 | C141: 1956500 | D141: 52.64361631 | E141: 3716500 | F141: 1956500 | G141: 52.64361631
A142: Dom Kultury "Praga" w Dzielnicy Praga-Północ | B142: 3716500 | C142: 1956500 | D142: 52.64361631 | E142: 3716500 | F142: 1956500 | G142: 52.64361631
A143: Prowadzenie działalności kulturalnej przez biblioteki | B143: 6098536 | C143: 3089642 | D143: 50.66202774 | E143: 6098536 | F143: 3089642 | G143: 50.66202774
A144: Biblioteka Publiczna im. Księdza Jana Twardowskiego w Dzielnicy Praga-Północ | B144: 6098536 | C144: 3089642 | D144: 50.66202774 | E144: 6098536 | F144: 3089642 | G144: 50.66202774
A145: Pozostałe inicjatywy w zakresie kultury | B145: 294027 | C145: 18910.23 | D145: 6.431460376
A146: Utrzymanie pomników, rzeźb i innych miejsc pamięci | B146: 294027 | C146: 18910.23 | D146: 6.431460376
A147: REKREACJA, SPORT I TURYSTYKA | B147: 9996128 | C147: 4119171.95 | D147: 41.20767511 | E147: 399830 | F147: 84595.2 | G147: 21.15779206
A148: Działalność rekreacyjno-sportowa | B148: 9252770 | C148: 3979858.24 | D148: 43.01261395
A149: Utrzymanie obiektów sportowo-rekreacyjnych | B149: 8348093 | C149: 3462845.69 | D149: 41.48067936
A150: Zajęcia szkolne w obiektach sportowych | B150: 904677 | C150: 517012.55 | D150: 57.14885534
A151: Upowszechnianie kultury fizycznej i sportu | B151: 743358 | C151: 139313.71 | D151: 18.7411328 | E151: 399830 | F151: 84595.2 | G151: 21.15779206
A152: Imprezy rekreacyjno-sportowe | B152: 156000 | C152: 47752.21 | D152: 30.61039103 | E152: 129000 | F152: 40000 | G152: 31.00775194
A153: Podnoszenie sprawności fizycznej mieszkańców oraz szkolenia i współzawodnictwo sportowe dzieci i młodzieży | B153: 587358 | C153: 91561.5 | D153: 15.58870399 | E153: 270830 | F153: 44595.2 | G153: 16.46612266
A154: DZIAŁALNOŚĆ PROMOCYJNA I WSPIERANIE ROZWOJU GOSPODARCZEGO | B154: 420200 | C154: 29590.99 | D154: 7.042120419 | E154: 420200 | F154: 29590.99 | G154: 7.042120419
A155: Promocja miasta | B155: 420200 | C155: 29590.99 | D155: 7.042120419 | E155: 420200 | F155: 29590.99 | G155: 7.042120419
A156: Promocja krajowa | B156: 405000 | C156: 27963.89 | D156: 6.904664198 | E156: 405000 | F156: 27963.89 | G156: 6.904664198
A157: Udział w wystawach, targach, imprezach promocyjnych | B157: 215000 | C157: 6596.08 | D157: 3.067944186 | E157: 215000 | F157: 6596.08 | G157: 3.067944186
A158: Wydawnictwa w tym wydawnictwa multimedialne | B158: 119000 | C158: 0 | D158: 0 | E158: 119000 | F158: 0 | G158: 0
A159: Reklama w mediach, zakup materiałów promocyjnych oraz zarządzanie marką miasta Warszawy | B159: 71000 | C159: 21367.81 | D159: 30.09550704 | E159: 71000 | F159: 21367.81 | G159: 30.09550704
A160: Współpraca regionalna | B160: 15200 | C160: 1627.1 | D160: 10.70460526 | E160: 15200 | F160: 1627.1 | G160: 10.70460526
A161: ZARZĄDZANIE STRUKTURAMI SAMORZĄDOWYMI | B161: 30054336 | C161: 16085676.4 | D161: 53.52198232 | E161: 30054336 | F161: 16085676.4 | G161: 53.52198232
A162: Funkcjonowanie Urzędu Miasta | B162: 29340836 | C162: 15769496.16 | D162: 53.74589926 | E162: 29340836 | F162: 15769496.16 | G162: 53.74589926
A163: Utrzymanie stanowisk pracy | B163: 25882422 | C163: 14500304.51 | D163: 56.02375431 | E163: 25882422 | F163: 14500304.51 | G163: 56.02375431
A164: Fundusz wynagrodzeń | B164: 25588828 | C164: 14357638.66 | D164: 56.10901234 | E164: 25588828 | F164: 14357638.66 | G164: 56.10901234
A165: Wydatki na rzecz pracownika | B165: 293594 | C165: 142665.85 | D165: 48.59290381 | E165: 293594 | F165: 142665.85 | G165: 48.59290381
A166: Zapewnienie prawidłowego działania Urzędu | B166: 3458414 | C166: 1269191.65 | D166: 36.69866158 | E166: 3458414 | F166: 1269191.65 | G166: 36.69866158
A167: Remonty bieżące w budynkach | B167: 386705 | C167: 82471.88 | D167: 21.32682019 | E167: 386705 | F167: 82471.88 | G167: 21.32682019
A168: Utrzymanie Urzędu | B168: 1871785 | C168: 697986.08 | D168: 37.28986395 | E168: 1871785 | F168: 697986.08 | G168: 37.28986395
A169: Obsługa informatyczna | B169: 318567 | C169: 126107.03 | D169: 39.58571666 | E169: 318567 | F169: 126107.03 | G169: 39.58571666
A170: Obsługa teletechniczna | B170: 17501 | C170: 10359.76 | D170: 59.19524599 | E170: 17501 | F170: 10359.76 | G170: 59.19524599
A171: Obsługa prawna | B171: 27000 | C171: 6715.83 | D171: 24.87344444 | E171: 27000 | F171: 6715.83 | G171: 24.87344444
A172: Obsługa kancelaryjna | B172: 285800 | C172: 127338.15 | D172: 44.554986 | E172: 285800 | F172: 127338.15 | G172: 44.554986
A173: Obsługa medialna | B173: 5000 | C173: 0 | D173: 0 | E173: 5000 | F173: 0 | G173: 0
A174: Ochrona osób i mienia | B174: 546056 | C174: 218212.92 | D174: 39.96163763 | E174: 546056 | F174: 218212.92 | G174: 39.96163763
A175: Rozwój społeczeństwa obywatelskiego | B175: 713500 | C175: 316180.24 | D175: 44.31397898 | E175: 713500 | F175: 316180.24 | G175: 44.31397898
A176: Obsługa organizacyjno-techniczna Rady m.st. Warszawy i Rad Dzielnic | B176: 595500 | C176: 280837.48 | D176: 47.15994626 | E176: 595500 | F176: 280837.48 | G176: 47.15994626
A177: Centra Aktywności Lokalnej | B177: 118000 | C177: 35342.76 | D177: 29.95149153 | E177: 118000 | F177: 35342.76 | G177: 29.95149153
A178: FINANSE I RÓŻNE ROZLICZENIA | B178: 354370 | C178: 66660.23 | D178: 18.81091232 | E178: 354370 | F178: 66660.23 | G178: 18.81091232
A179: Zadania z zakresu polityki finansowej | B179: 320170 | C179: 50027.63 | D179: 15.62533342 | E179: 320170 | F179: 50027.63 | G179: 15.62533342
A180: Różne rozliczenia | B180: 320170 | C180: 50027.63 | D180: 15.62533342 | E180: 320170 | F180: 50027.63 | G180: 15.62533342
A181: Zadania z zakresu polityki podatkowej | B181: 34200 | C181: 16632.6 | D181: 48.63333333 | E181: 34200 | F181: 16632.6 | G181: 48.63333333
A182: Wymiar, windykacja i ewidencja podatków i opłat lokalnych oraz należności niepodatkowych | B182: 34200 | C182: 16632.6 | D182: 48.63333333 | E182: 34200 | F182: 16632.6 | G182: 48.63333333

Sheet Rembertów.
A6: WYKONANIE WYDATKÓW BIEŻĄCYCH MIASTA STOŁECZNEGO WARSZAWY W UKŁADZIE ZADAŃ ZA I PÓŁROCZE 2023 ROKU
A7: WYDATKI REMBERTÓW
A9: Wyszczególnienie | B9: Plan | E9: W tym Urząd
B10: Plan | C10: Wykonanie | D10: Wskaźnik % (kol. 3/2) | E10: Plan | F10: Wykonanie | G10: Wskaźnik % (kol. 6/5)
A11: 1 | B11: 2 | C11: 3 | D11: 4 | E11: 5 | F11: 6 | G11: 7
A12: OGÓŁEM | B12: 120550470 | C12: 60124042.72 | D12: 49.87458176 | E12: 58954697 | F12: 28877588.47 | G12: 48.98267643
A13: TRANSPORT I KOMUNIKACJA | B13: 2587201 | C13: 983690.49 | D13: 38.02141735 | E13: 2587201 | F13: 983690.49 | G13: 38.02141735
A14: Komunikacja zbiorowa | B14: 1000 | C14: 0 | D14: 0 | E14: 1000 | F14: 0 | G14: 0
A15: Zarządzanie komunikacją miejską | B15: 1000 | C15: 0 | D15: 0 | E15: 1000 | F15: 0 | G15: 0
A16: Organizacja komunikacji, marketing, nadzór i kontrola ruchu | B16: 1000 | C16: 0 | D16: 0 | E16: 1000 | F16: 0 | G16: 0
A17: Drogi i mosty | B17: 2586201 | C17: 983690.49 | D17: 38.036119 | E17: 2586201 | F17: 983690.49 | G17: 38.036119
A18: Utrzymanie i remonty dróg | B18: 2417886 | C18: 921038.61 | D18: 38.09272273 | E18: 2417886 | F18: 921038.61 | G18: 38.09272273
A19: Utrzymanie i remonty dróg gminnych | B19: 2417886 | C19: 921038.61 | D19: 38.09272273 | E19: 2417886 | F19: 921038.61 | G19: 38.09272273
A20: Oświetlenie ulic | B20: 5000 | C20: 0 | D20: 0 | E20: 5000 | F20: 0 | G20: 0
A21: Utrzymanie i remonty oświetlenia ulic, placów i dróg | B21: 5000 | C21: 0 | D21: 0 | E21: 5000 | F21: 0 | G21: 0
A22: Opracowania i analizy związane z drogami | B22: 64615 | C22: 6334.5 | D22: 9.803451211 | E22: 64615 | F22: 6334.5 | G22: 9.803451211
A23: Gospodarowanie parkingami i węzłami komunikacyjnymi | B23: 98700 | C23: 56317.38 | D23: 57.05914894 | E23: 98700 | F23: 56317.38 | G23: 57.05914894
A24: ŁAD PRZESTRZENNY I GOSPODARKA NIERUCHOMOŚCIAMI | B24: 2222715 | C24: 591452.53 | D24: 26.6094632 | E24: 2222715 | F24: 591452.53 | G24: 26.6094632
A25: Gospodarka przestrzenna | B25: 2665 | C25: 0 | D25: 0 | E25: 2665 | F25: 0 | G25: 0
A26: Architektura, Urbanistyka i Zagospodarowanie Przestrzeni Publicznej | B26: 2665 | C26: 0 | D26: 0 | E26: 2665 | F26: 0 | G26: 0
A27: Mieszkaniowy zasób komunalny oraz pozostałe zadania związane z zapewnieniem lokali mieszkalnych | B27: 2156000 | C27: 585695.79 | D27: 27.16585297 | E27: 2156000 | F27: 585695.79 | G27: 27.16585297
A28: Koszty eksploatacji mieszkaniowego zasobu komunalnego | B28: 1072500 | C28: 456400.23 | D28: 42.5548 | E28: 1072500 | F28: 456400.23 | G28: 42.5548
A29: Remonty mieszkaniowego zasobu komunalnego | B29: 840000 | C29: 19755.01 | D29: 2.351786905 | E29: 840000 | F29: 19755.01 | G29: 2.351786905
A30: Rozliczenia ze wspólnotami mieszkaniowymi | B30: 224000 | C30: 109540.55 | D30: 48.90203125 | E30: 224000 | F30: 109540.55 | G30: 48.90203125
A31: Rozliczenia za lokale z właścicielami innymi niż m.st. Warszawa | B31: 19500 | C31: 0 | D31: 0 | E31: 19500 | F31: 0 | G31: 0
A32: Zadania związane z nabywaniem i sprzedażą nieruchomości | B32: 38786 | C32: 2409.74 | D32: 6.212911875 | E32: 38786 | F32: 2409.74 | G32: 6.212911875
A33: Regulacja stanów prawnych nieruchomości, w tym odszkodowania | B33: 38786 | C33: 2409.74 | D33: 6.212911875 | E33: 38786 | F33: 2409.74 | G33: 6.212911875
A34: Pozostały zasób komunalny | B34: 25264 | C34: 3347 | D34: 13.24810006 | E34: 25264 | F34: 3347 | G34: 13.24810006
A35: Zarządzanie lokalami użytkowymi i ich eksploatacja | B35: 24050 | C35: 3347 | D35: 13.91683992 | E35: 24050 | F35: 3347 | G35: 13.91683992
A36: Zarządzanie pozostałymi nieruchomościami | B36: 1214 | C36: 0 | D36: 0 | E36: 1214 | F36: 0 | G36: 0
A37: GOSPODARKA KOMUNALNA I OCHRONA ŚRODOWISKA | B37: 2830355 | C37: 855133.15 | D37: 30.21292912 | E37: 2830355 | F37: 855133.15 | G37: 30.21292912
A38: Utrzymanie porządku i czystości | B38: 1305400 | C38: 470455.25 | D38: 36.03916424 | E38: 1305400 | F38: 470455.25 | G38: 36.03916424
A39: Oczyszczanie miasta | B39: 1066000 | C39: 442643.25 | D39: 41.52375704 | E39: 1066000 | F39: 442643.25 | G39: 41.52375704
A40: Zimowe oczyszczanie ulic | B40: 620000 | C40: 398943.35 | D40: 64.34570161 | E40: 620000 | F40: 398943.35 | G40: 64.34570161
A41: Letnie oczyszczanie ulic | B41: 300000 | C41: 0 | D41: 0 | E41: 300000 | F41: 0 | G41: 0
A42: Oczyszczanie pozostałych terenów | B42: 146000 | C42: 43699.9 | D42: 29.93143836 | E42: 146000 | F42: 43699.9 | G42: 29.93143836
A43: Interwencyjne pogotowie oczyszczania | B43: 2000 | C43: 0 | D43: 0 | E43: 2000 | F43: 0 | G43: 0
A44: Opróżnianie i zakup koszy ulicznych | B44: 90000 | C44: 13122 | D44: 14.58 | E44: 90000 | F44: 13122 | G44: 14.58
A45: Szalety miejskie i kabiny sanitarne | B45: 1000 | C45: 0 | D45: 0 | E45: 1000 | F45: 0 | G45: 0
A46: Likwidacja dzikich wysypisk | B46: 1000 | C46: 0 | D46: 0 | E46: 1000 | F46: 0 | G46: 0
A47: Gospodarka odpadami | B47: 55000 | C47: 0 | D47: 0 | E47: 55000 | F47: 0 | G47: 0
A48: Opracowania i analizy związane z ochroną środowiska i monitorowanie środowiska | B48: 1000 | C48: 0 | D48: 0 | E48: 1000 | F48: 0 | G48: 0
A49: Zadania z zakresu bezdomności zwierząt w mieście | B49: 89400 | C49: 14690 | D49: 16.43176734 | E49: 89400 | F49: 14690 | G49: 16.43176734
A50: Gospodarka ściekowa i ochrona wód | B50: 266000 | C50: 96198.37 | D50: 36.16480075 | E50: 266000 | F50: 96198.37 | G50: 36.16480075
A51: Utrzymanie i remonty sieci wodno-kanalizacyjnej | B51: 121000 | C51: 64829.93 | D51: 53.57845454 | E51: 121000 | F51: 64829.93 | G51: 53.57845454
A52: Utrzymanie i konserwacja urządzeń wodnych i innych zbiorników wodnych | B52: 145000 | C52: 31368.44 | D52: 21.6334069 | E52: 145000 | F52: 31368.44 | G52: 21.6334069
A53: Tereny zielone | B53: 790955 | C53: 159148.88 | D53: 20.12110424 | E53: 790955 | F53: 159148.88 | G53: 20.12110424
A54: Utrzymanie i konserwacja zieleni | B54: 590755 | C54: 73644.38 | D54: 12.46614586 | E54: 590755 | F54: 73644.38 | G54: 12.46614586
A55: Utrzymanie i konserwacja zieleni przyulicznej | B55: 200000 | C55: 85389.5 | D55: 42.69475 | E55: 200000 | F55: 85389.5 | G55: 42.69475
A56: Utrzymanie lasów | B56: 200 | C56: 115 | D56: 57.5 | E56: 200 | F56: 115 | G56: 57.5
A57: Pozostałe zadania z zakresu gospodarki komunalnej | B57: 468000 | C57: 129330.65 | D57: 27.63475427 | E57: 468000 | F57: 129330.65 | G57: 27.63475427
A58: Place zabaw, ścieżki zdrowia i inne formy aktywności plenerowej | B58: 352000 | C58: 114829.77 | D58: 32.62209375 | E58: 352000 | F58: 114829.77 | G58: 32.62209375
A59: Przedsięwzięcia ekologiczne | B59: 116000 | C59: 14500.88 | D59: 12.50075862 | E59: 116000 | F59: 14500.88 | G59: 12.50075862
A60: EDUKACJA | B60: 72351696 | C60: 38013369.62 | D60: 52.53970774 | E60: 16307688 | F60: 8982461.12 | G60: 55.08114406
A61: Oświata i edukacyjna opieka wychowawcza | B61: 69416006 | C61: 36714031.19 | D61: 52.88986403 | E61: 16085546 | F61: 8951762.12 | G61: 55.65096839
A62: Prowadzenie przedszkoli i innych form wychowania przedszkolnego | B62: 16183501 | C62: 8782432.29 | D62: 54.26781442 | E62: 3566616 | F62: 2079479.59 | G62: 58.30399432
A63: Prowadzenie publicznych przedszkoli i innych form wychowania przedszkolnego | B63: 12616885 | C63: 6702952.7 | D63: 53.12684311
A64: Dotacje dla niepublicznych przedszkoli i innych form wychowania przedszkolnego | B64: 3566616 | C64: 2079479.59 | D64: 58.30399432 | E64: 3566616 | F64: 2079479.59 | G64: 58.30399432
A65: Prowadzenie oddziałów "0" w szkołach podstawowych | B65: 82417 | C65: 53187.71 | D65: 64.53487751 | E65: 5000 | F65: 0 | G65: 0
A66: Prowadzenie publicznych oddziałów "0" w szkołach podstawowych | B66: 77417 | C66: 53187.71 | D66: 68.7028818
A67: Dotacje dla niepublicznych oddziałów "0" w szkołach podstawowych | B67: 5000 | C67: 0 | D67: 0 | E67: 5000 | F67: 0 | G67: 0
A68: Prowadzenie szkół podstawowych | B68: 26864894 | C68: 14010015.45 | D68: 52.14990035 | E68: 4905689 | F68: 2675923.38 | G68: 54.54735064
A69: Prowadzenie publicznych szkół podstawowych | B69: 21959205 | C69: 11334092.07 | D69: 51.61430967
A70: Dotacje dla niepublicznych szkół podstawowych | B70: 4905689 | C70: 2675923.38 | D70: 54.54735064 | E70: 4905689 | F70: 2675923.38 | G70: 54.54735064
A71: Prowadzenie liceów ogólnokształcących | B71: 4916458 | C71: 2596638.97 | D71: 52.81523751
A72: Prowadzenie publicznych liceów ogólnokształcących | B72: 4916458 | C72: 2596638.97 | D72: 52.81523751
A73: Prowadzenie publicznych szkół artystycznych | B73: 2853853 | C73: 1461420.28 | D73: 51.20867403
A74: Prowadzenie świetlic szkolnych | B74: 2796850 | C74: 1432522.08 | D74: 51.21912437
A75: Remonty w przedszkolach, szkołach i placówkach oświatowych | B75: 1840698 | C75: 436692.47 | D75: 23.72428666 | E75: 347850 | F75: 10455 | G75: 3.005605865
A76: Zajęcia dla uczniów na basenach i w halach sportowych | B76: 180000 | C76: 116494.42 | D76: 64.71912222
A77: Dowożenie uczniów do szkół | B77: 1413132 | C77: 413840.48 | D77: 29.28533782 | E77: 1413132 | F77: 413840.48 | G77: 29.28533782
A78: Prowadzenie stołówek szkolnych i przedszkolnych | B78: 2155075 | C78: 1062395.52 | D78: 49.29738037
A79: Wczesne wspomaganie rozwoju dziecka | B79: 90000 | C79: 54609.6 | D79: 60.67733333 | E79: 90000 | F79: 54609.6 | G79: 60.67733333
A80: Realizacja zadań wymagających stosowania specjalnej organizacji nauki i metod pracy | B80: 9733851 | C80: 6201922.92 | D80: 63.71499749 | E80: 5665400 | F80: 3625595.07 | G80: 63.99539432
A81: Realizacja zadań wymagających stosowania specjalnej organizacji nauki i metod pracy przez placówki publiczne | B81: 4068451 | C81: 2576327.85 | D81: 63.32453924
A82: Dotacje dla podmiotów niepublicznych realizujących zadania wymagające stosowania specjalnej nauki organizacji i metod pracy | B82: 5665400 | C82: 3625595.07 | D82: 63.99539432 | E82: 5665400 | F82: 3625595.07 | G82: 63.99539432
A83: Wyposażenie szkół w podręczniki, materiały edukacyjne lub materiały ćwiczeniowe | B83: 305277 | C83: 91859 | D83: 30.09037694 | E83: 91859 | F83: 91859 | G83: 100
A84: Wyposażenie szkół publicznych w podręczniki, materiały edukacyjne lub materiały ćwiczeniowe | B84: 213418 | C84: 0 | D84: 0
A85: Dotacje na sfinansowanie wyposażenia placówek niepublicznych w podręczniki lub materiały ćwiczeniowe | B85: 91859 | C85: 91859 | D85: 100 | E85: 91859 | F85: 91859 | G85: 100
A86: Pozostałe zadania z zakresu oświaty i wychowania | B86: 2935690 | C86: 1299338.43 | D86: 44.26006935 | E86: 222142 | F86: 30699 | G86: 13.81953885
A87: Zarządzanie finansami oświaty | B87: 1920648 | C87: 932267.94 | D87: 48.53923988
A88: Postępowania związane z awansem zawodowym nauczycieli | B88: 9900 | C88: 0 | D88: 0 | E88: 9900 | F88: 0 | G88: 0
A89: Dokształcanie i doskonalenie nauczycieli | B89: 122885 | C89: 23337.14 | D89: 18.9910404 | E89: 57998 | F89: 4990 | G89: 8.603744957
A90: Fundusz socjalny dla emerytowanych pracowników oświaty | B90: 227897 | C90: 170922.21 | D90: 74.99976305
A91: Nagrody dla nauczycieli | B91: 53950 | C91: 0 | D91: 0
A92: Organizacja olimpiad, konkursów i uroczystości szkolnych oraz realizacja programów o charakterze innowacyjnym | B92: 9600 | C92: 503.6 | D92: 5.245833333 | E92: 9600 | F92: 503.6 | G92: 5.245833333
A93: Wypoczynek dzieci i młodzieży szkolnej | B93: 174273 | C93: 31571.42 | D93: 18.11607076 | E93: 144644 | F93: 25205.4 | G93: 17.42581787
A94: Pomoc materialna dla uczniów, studentów i doktorantów | B94: 178386 | C94: 38400.41 | D94: 21.5265828
A95: Stypendia za wyniki w nauce | B95: 70000 | C95: 15824 | D95: 22.60571429
A96: Stypendia socjalne | B96: 70991 | C96: 12589.97 | D96: 17.73460016
A97: Dożywianie uczniów | B97: 37395 | C97: 9986.44 | D97: 26.70528146
A98: Realizacja programów edukacyjno-oświatowych (w tym UE) | B98: 236051 | C98: 101999.92 | D98: 43.21096712
A99: Programy edukacyjno - oświatowe | B99: 236051 | C99: 101999.92 | D99: 43.21096712
A100: Inne zadania (utrzymanie związków zawodowych, wypłata zasądzonych rent za zlikwidowanie jednostki) | B100: 2100 | C100: 335.79 | D100: 15.99
A101: OCHRONA ZDROWIA I POLITYKA SPOŁECZNA | B101: 13286453 | C101: 6536249.95 | D101: 49.19484493 | E101: 7734688 | F101: 4320704.2 | G101: 55.86138963
A102: Programy zdrowotne | B102: 621304 | C102: 376549.04 | D102: 60.6062475 | E102: 621304 | F102: 376549.04 | G102: 60.6062475
A103: Miejski Program Profilaktyki i Rozwiązywania Problemów Alkoholowych | B103: 621304 | C103: 376549.04 | D103: 60.6062475 | E103: 621304 | F103: 376549.04 | G103: 60.6062475
A104: Miejski Program Profilaktyki i Rozwiązywania Problemów Alkoholowych | B104: 621304 | C104: 376549.04 | D104: 60.6062475 | E104: 621304 | F104: 376549.04 | G104: 60.6062475
A105: Polityka społeczna | B105: 5691329 | C105: 2740908.43 | D105: 48.1593742 | E105: 1139809 | F105: 947590.51 | G105: 83.13590347
A106: Poradnictwo, mieszkania chronione i ośrodki interwencji kryzysowej oraz usługi specjalistyczne | B106: 3793 | C106: 0 | D106: 0 | E106: 3793 | F106: 0 | G106: 0
A107: Pomoc bezrobotnym, aktywizacja zawodowa | B107: 9120 | C107: 0 | D107: 0
A108: Zadania z zakresu pomocy bezrobotnym | B108: 9120 | C108: 0 | D108: 0
A109: Pomoc dla repatriantów oraz dla uchodźców, w tym pomoc dla obywateli Ukrainy | B109: 1150516 | C109: 993128.51 | D109: 86.32026934 | E109: 1093416 | F109: 947590.51 | G109: 86.66331113
A110: Jednostki obsługi zadań z zakresu pomocy społecznej | B110: 3330719 | C110: 1312280.84 | D110: 39.39932609
A111: Zapewnienie opieki osobom przebywającym i dochodzącym w jednostkach pomocy społecznej | B111: 456095 | C111: 182424.15 | D111: 39.99696335
A112: Zapewnienie pomocy, opieki i wychowania dzieciom i młodzieży pozbawionym opieki rodziców | B112: 364668 | C112: 160360.59 | D112: 43.97440686
A113: Wspieranie inicjatyw społecznych na rzecz zaspokajania potrzeb życiowych osób i rodzin | B113: 43100 | C113: 120 | D113: 0.278422274 | E113: 42600 | F113: 0 | G113: 0
A114: Dożywianie | B114: 333318 | C114: 92594.34 | D114: 27.77957986
A115: Realizacja programu "Posiłek w szkole i w domu" | B115: 283318 | C115: 83265.36 | D115: 29.3893646
A116: Pozostałe zadania z zakresu dożywiania | B116: 50000 | C116: 9328.98 | D116: 18.65796
A117: Wypłata świadczeń i zasiłków oraz pomoc w naturze | B117: 6973820 | C117: 3418792.48 | D117: 49.02323949 | E117: 5973575 | F117: 2996564.65 | G117: 50.16367334
A118: Zasiłki i pomoc w naturze | B118: 1960273 | C118: 696168.46 | D118: 35.51385241 | E118: 1022252 | F118: 292000 | G118: 28.5643853
A119: Świadczenia rodzinne, wychowawcze i z funduszu alimentacyjnego | B119: 4753996 | C119: 2609472.48 | D119: 54.89008573 | E119: 4753996 | F119: 2609472.48 | G119: 54.89008573
A120: Dodatki mieszkaniowe i energetyczne | B120: 149421 | C120: 60309.44 | D120: 40.36209101 | E120: 149421 | F120: 60309.44 | G120: 40.36209101
A121: Ubezpieczenia zdrowotne i świadczenia dla osób nieobjętych ubezpieczeniem społecznym oraz osób pobierających niektóre świadczenia z pomocy społecznej | B121: 110130 | C121: 52842.1 | D121: 47.98156724 | E121: 47906 | F121: 34782.73 | G121: 72.60620799
A122: KULTURA I OCHRONA DZIEDZICTWA KULTUROWEGO | B122: 4804339 | C122: 2151000 | D122: 44.77202795 | E122: 4804339 | F122: 2151000 | G122: 44.77202795
A123: Upowszechnianie kultury i tradycji | B123: 461500 | C123: 1000 | D123: 0.216684724 | E123: 461500 | F123: 1000 | G123: 0.216684724
A124: Przedsięwzięcia artystyczne i kulturalne | B124: 461500 | C124: 1000 | D124: 0.216684724 | E124: 461500 | F124: 1000 | G124: 0.216684724
A125: Działalność kulturalna | B125: 4337839 | C125: 2148800 | D125: 49.53618611 | E125: 4337839 | F125: 2148800 | G125: 49.53618611
A126: Prowadzenie działalności kulturalnej przez domy i ośrodki kultury | B126: 2339000 | C126: 993200 | D126: 42.46259085 | E126: 2339000 | F126: 993200 | G126: 42.46259085
A127: Dom Kultury "REMBERTÓW" | B127: 1376800 | C127: 569000 | D127: 41.32771644 | E127: 1376800 | F127: 569000 | G127: 41.32771644
A128: Dom Kultury "WYGODA" w Dzielnicy Rembertów | B128: 962200 | C128: 424200 | D128: 44.08646851 | E128: 962200 | F128: 424200 | G128: 44.08646851
A129: Prowadzenie działalności kulturalnej przez biblioteki | B129: 1998839 | C129: 1155600 | D129: 57.81356077 | E129: 1998839 | F129: 1155600 | G129: 57.81356077
A130: Biblioteka Publiczna im. Jana Pawła II w Dzielnicy Rembertów | B130: 1998839 | C130: 1155600 | D130: 57.81356077 | E130: 1998839 | F130: 1155600 | G130: 57.81356077
A131: Pozostałe inicjatywy w zakresie kultury | B131: 5000 | C131: 1200 | D131: 24 | E131: 5000 | F131: 1200 | G131: 24
A132: Utrzymanie pomników, rzeźb i innych miejsc pamięci | B132: 5000 | C132: 1200 | D132: 24 | E132: 5000 | F132: 1200 | G132: 24
A133: REKREACJA, SPORT I TURYSTYKA | B133: 1003847 | C133: 330159.9 | D133: 32.88946423 | E133: 1003847 | F133: 330159.9 | G133: 32.88946423
A134: Działalność rekreacyjno-sportowa | B134: 242000 | C134: 44042 | D134: 18.19917355 | E134: 242000 | F134: 44042 | G134: 18.19917355
A135: Utrzymanie obiektów sportowo-rekreacyjnych | B135: 242000 | C135: 44042 | D135: 18.19917355 | E135: 242000 | F135: 44042 | G135: 18.19917355
A136: Upowszechnianie kultury fizycznej i sportu | B136: 761847 | C136: 286117.9 | D136: 37.55582158 | E136: 761847 | F136: 286117.9 | G136: 37.55582158
A137: Imprezy rekreacyjno-sportowe | B137: 253300 | C137: 39649.4 | D137: 15.65313857 | E137: 253300 | F137: 39649.4 | G137: 15.65313857
A138: Podnoszenie sprawności fizycznej mieszkańców oraz szkolenia i współzawodnictwo sportowe dzieci i młodzieży | B138: 471547 | C138: 246468.5 | D138: 52.2680666 | E138: 471547 | F138: 246468.5 | G138: 52.2680666
A139: Sport i rekreacja osób niepełnosprawnych | B139: 37000 | C139: 0 | D139: 0 | E139: 37000 | F139: 0 | G139: 0
A140: DZIAŁALNOŚĆ PROMOCYJNA I WSPIERANIE ROZWOJU GOSPODARCZEGO | B140: 259500 | C140: 22225.29 | D140: 8.56465896 | E140: 259500 | F140: 22225.29 | G140: 8.56465896
A141: Promocja miasta | B141: 259500 | C141: 22225.29 | D141: 8.56465896 | E141: 259500 | F141: 22225.29 | G141: 8.56465896
A142: Promocja krajowa | B142: 259500 | C142: 22225.29 | D142: 8.56465896 | E142: 259500 | F142: 22225.29 | G142: 8.56465896
A143: Udział w wystawach, targach, imprezach promocyjnych | B143: 28000 | C143: 9915.45 | D143: 35.41232143 | E143: 28000 | F143: 9915.45 | G143: 35.41232143
A144: Wydawnictwa w tym wydawnictwa multimedialne | B144: 164000 | C144: 9102 | D144: 5.55 | E144: 164000 | F144: 9102 | G144: 5.55
A145: Reklama w mediach, zakup materiałów promocyjnych oraz zarządzanie marką miasta Warszawy | B145: 67500 | C145: 3207.84 | D145: 4.752355556 | E145: 67500 | F145: 3207.84 | G145: 4.752355556
A146: ZARZĄDZANIE STRUKTURAMI SAMORZĄDOWYMI | B146: 21112964 | C146: 10589140.14 | D146: 50.15468288 | E146: 21112964 | F146: 10589140.14 | G146: 50.15468288
A147: Funkcjonowanie Urzędu Miasta | B147: 20043394 | C147: 10253274 | D147: 51.15537818 | E147: 20043394 | F147: 10253274 | G147: 51.15537818
A148: Utrzymanie stanowisk pracy | B148: 17078586 | C148: 9239354.47 | D148: 54.0990599 | E148: 17078586 | F148: 9239354.47 | G148: 54.0990599
A149: Fundusz wynagrodzeń | B149: 16910086 | C149: 9190995.39 | D149: 54.35215049 | E149: 16910086 | F149: 9190995.39 | G149: 54.35215049
A150: Wydatki na rzecz pracownika | B150: 168500 | C150: 48359.08 | D150: 28.69975074 | E150: 168500 | F150: 48359.08 | G150: 28.69975074
A151: Zapewnienie prawidłowego działania Urzędu | B151: 2964808 | C151: 1013919.53 | D151: 34.19848874 | E151: 2964808 | F151: 1013919.53 | G151: 34.19848874
A152: Remonty bieżące w budynkach | B152: 147000 | C152: 60661.02 | D152: 41.266 | E152: 147000 | F152: 60661.02 | G152: 41.266
A153: Utrzymanie Urzędu | B153: 1793472 | C153: 624378.99 | D153: 34.81398037 | E153: 1793472 | F153: 624378.99 | G153: 34.81398037
A154: Obsługa informatyczna | B154: 330000 | C154: 49930.2 | D154: 15.13036364 | E154: 330000 | F154: 49930.2 | G154: 15.13036364
A155: Obsługa teletechniczna | B155: 5000 | C155: 2178.89 | D155: 43.5778 | E155: 5000 | F155: 2178.89 | G155: 43.5778
A156: Obsługa prawna | B156: 5000 | C156: 100 | D156: 2 | E156: 5000 | F156: 100 | G156: 2
A157: Obsługa kancelaryjna | B157: 166336 | C157: 39000 | D157: 23.44651789 | E157: 166336 | F157: 39000 | G157: 23.44651789
A158: Obsługa medialna | B158: 8000 | C158: 664.2 | D158: 8.3025 | E158: 8000 | F158: 664.2 | G158: 8.3025
A159: Ochrona osób i mienia | B159: 510000 | C159: 237006.23 | D159: 46.4718098 | E159: 510000 | F159: 237006.23 | G159: 46.4718098
A160: Rozwój społeczeństwa obywatelskiego | B160: 1069570 | C160: 335866.14 | D160: 31.40197837 | E160: 1069570 | F160: 335866.14 | G160: 31.40197837
A161: Obsługa organizacyjno-techniczna Rady m.st. Warszawy i Rad Dzielnic | B161: 594400 | C161: 285286.14 | D161: 47.99564939 | E161: 594400 | F161: 285286.14 | G161: 47.99564939
A162: Utrzymanie i działalność statutowa Rad Osiedli | B162: 1000 | C162: 150 | D162: 15 | E162: 1000 | F162: 150 | G162: 15
A163: Dialog społeczny, badania opinii mieszkańców, komunikacja społeczna | B163: 474170 | C163: 50430 | D163: 10.63542611 | E163: 474170 | F163: 50430 | G163: 10.63542611
A164: FINANSE I RÓŻNE ROZLICZENIA | B164: 91400 | C164: 51621.65 | D164: 56.47882932 | E164: 91400 | F164: 51621.65 | G164: 56.47882932
A165: Zadania z zakresu polityki finansowej | B165: 88400 | C165: 51621.65 | D165: 58.39553167 | E165: 88400 | F165: 51621.65 | G165: 58.39553167
A166: Różne rozliczenia | B166: 88400 | C166: 51621.65 | D166: 58.39553167 | E166: 88400 | F166: 51621.65 | G166: 58.39553167
A167: Zadania z zakresu polityki podatkowej | B167: 3000 | C167: 0 | D167: 0 | E167: 3000 | F167: 0 | G167: 0
A168: Wymiar, windykacja i ewidencja podatków i opłat lokalnych oraz należności niepodatkowych | B168: 3000 | C168: 0 | D168: 0 | E168: 3000 | F168: 0 | G168: 0

Sheet Śródmieście.
A6: WYKONANIE WYDATKÓW BIEŻĄCYCH MIASTA STOŁECZNEGO WARSZAWY W UKŁADZIE ZADAŃ ZA I PÓŁROCZE 2023 ROKU
A7: WYDATKI ŚRÓDMIEŚCIE
A9: Wyszczególnienie | B9: Plan | E9: W tym Urząd
B10: Plan | C10: Wykonanie | D10: Wskaźnik % (kol. 3/2) | E10: Plan | F10: Wykonanie | G10: Wskaźnik % (kol. 6/5)
A11: 1 | B11: 2 | C11: 3 | D11: 4 | E11: 5 | F11: 6 | G11: 7
A12: OGÓŁEM | B12: 905541913 | C12: 449658841 | D12: 49.65632563 | E12: 207153446 | F12: 104114787.8 | G12: 50.25974215
A13: TRANSPORT I KOMUNIKACJA | B13: 17198215 | C13: 3208193.95 | D13: 18.65422632
A14: Drogi i mosty | B14: 17198215 | C14: 3208193.95 | D14: 18.65422632
A15: Utrzymanie i remonty dróg | B15: 12511620 | C15: 1385310.27 | D15: 11.07218945
A16: Utrzymanie i remonty dróg gminnych | B16: 12381620 | C16: 1285310.27 | D16: 10.38079242
A17: Utrzymanie i remonty dróg wewnętrznych | B17: 130000 | C17: 100000 | D17: 76.92307692
A18: Oświetlenie ulic | B18: 2073011 | C18: 618637.37 | D18: 29.84245477
A19: Iluminacje obiektów architektonicznych | B19: 835469 | C19: 266300.14 | D19: 31.87432927
A20: Utrzymanie i remonty oświetlenia ulic, placów i dróg | B20: 1237542 | C20: 352337.23 | D20: 28.47072907
A21: Opracowania i analizy związane z drogami | B21: 88000 | C21: 7158.6 | D21: 8.134772727
A22: Gospodarowanie parkingami i węzłami komunikacyjnymi | B22: 2525584 | C22: 1197087.71 | D22: 47.39845161
A23: ŁAD PRZESTRZENNY I GOSPODARKA NIERUCHOMOŚCIAMI | B23: 216159277 | C23: 102850958.3 | D23: 47.58109842 | E23: 1695930 | F23: 578290.76 | G23: 34.09873992
A24: Mieszkaniowy zasób komunalny oraz pozostałe zadania związane z zapewnieniem lokali mieszkalnych | B24: 196924516 | C24: 96968191.89 | D24: 49.2413001 | E24: 423900 | F24: 86688.67 | G24: 20.45026421
A25: Koszty eksploatacji mieszkaniowego zasobu komunalnego | B25: 30062598 | C25: 9467151.85 | D25: 31.49146275
A26: Remonty mieszkaniowego zasobu komunalnego | B26: 18127957 | C26: 4647881.37 | D26: 25.6393005
A27: Utrzymanie jednostek gospodarujących zasobem komunalnym | B27: 51497555 | C27: 24359846.82 | D27: 47.30291918
A28: Rozliczenia ze wspólnotami mieszkaniowymi | B28: 97186406 | C28: 58493311.85 | D28: 60.18672185 | E28: 373900 | F28: 86688.67 | G28: 23.18498797
A29: Rozliczenia za lokale z właścicielami innymi niż m.st. Warszawa | B29: 50000 | C29: 0 | D29: 0 | E29: 50000 | F29: 0 | G29: 0
A30: Zadania związane z nabywaniem i sprzedażą nieruchomości | B30: 462030 | C30: 115779.77 | D30: 25.05892907 | E30: 462030 | F30: 115779.77 | G30: 25.05892907
A31: Przygotowanie nieruchomości komunalnych przeznaczonych m.in. do zbycia i zamiany | B31: 251100 | C31: 23813.48 | D31: 9.483663879 | E31: 251100 | F31: 23813.48 | G31: 9.483663879
A32: Regulacja stanów prawnych nieruchomości, w tym odszkodowania | B32: 210930 | C32: 91966.29 | D32: 43.60038401 | E32: 210930 | F32: 91966.29 | G32: 43.60038401
A33: Pozostały zasób komunalny | B33: 18772731 | C33: 5766986.68 | D33: 30.7200198 | E33: 810000 | F33: 375822.32 | G33: 46.39781728
A34: Zarządzanie lokalami użytkowymi i ich eksploatacja | B34: 9873032 | C34: 4865548.15 | D34: 49.28119498
A35: Remonty lokali użytkowych | B35: 8089699 | C35: 525616.21 | D35: 6.497351879
A36: Zarządzanie pozostałymi nieruchomościami | B36: 810000 | C36: 375822.32 | D36: 46.39781728 | E36: 810000 | F36: 375822.32 | G36: 46.39781728
A37: GOSPODARKA KOMUNALNA I OCHRONA ŚRODOWISKA | B37: 27495609 | C37: 11664614.62 | D37: 42.42355432 | E37: 251000 | F37: 5205.48 | G37: 2.073896414
A38: Utrzymanie porządku i czystości | B38: 5796650 | C38: 2243187.94 | D38: 38.69800557 | E38: 130000 | F38: 3444 | G38: 2.649230769
A39: Oczyszczanie miasta | B39: 5500000 | C39: 2163970 | D39: 39.34490909
A40: Zimowe oczyszczanie ulic | B40: 2700000 | C40: 1479855.91 | D40: 54.80947815
A41: Letnie oczyszczanie ulic | B41: 2800000 | C41: 684114.09 | D41: 24.43264607
A42: Szalety miejskie i kabiny sanitarne | B42: 163650 | C42: 75773.94 | D42: 46.30243813
A43: Opracowania i analizy związane z ochroną środowiska i monitorowanie środowiska | B43: 30000 | C43: 3444 | D43: 11.48 | E43: 30000 | F43: 3444 | G43: 11.48
A44: Zadania z zakresu bezdomności zwierząt w mieście | B44: 103000 | C44: 0 | D44: 0 | E44: 100000 | F44: 0 | G44: 0
A45: Gospodarka ściekowa i ochrona wód | B45: 562331 | C45: 186933.08 | D45: 33.24253509 | E45: 14000 | F45: 0 | G45: 0
A46: Utrzymanie i remonty sieci wodno-kanalizacyjnej | B46: 562331 | C46: 186933.08 | D46: 33.24253509 | E46: 14000 | F46: 0 | G46: 0
A47: Tereny zielone | B47: 5318708 | C47: 1303482.85 | D47: 24.50750915 | E47: 12000 | F47: 0 | G47: 0
A48: Utrzymanie i konserwacja zieleni | B48: 2161081 | C48: 641350.52 | D48: 29.67730131
A49: Utrzymanie i konserwacja zieleni przyulicznej | B49: 3075627 | C49: 662132.33 | D49: 21.52836901
A50: Opracowania związane z zielenią | B50: 82000 | C50: 0 | D50: 0 | E50: 12000 | F50: 0 | G50: 0
A51: Pozostałe zadania z zakresu gospodarki komunalnej | B51: 15817920 | C51: 7931010.75 | D51: 50.1394036 | E51: 95000 | F51: 1761.48 | G51: 1.854189474
A52: Place zabaw, ścieżki zdrowia i inne formy aktywności plenerowej | B52: 350000 | C52: 95391.5 | D52: 27.25471429
A53: Utrzymanie i rozwój infrastruktury komunalnej | B53: 13341825 | C53: 6955239.26 | D53: 52.13109346
A54: Utrzymanie jednostek budżetowych realizujących zadania z zakresu infrastruktury w dzielnicach | B54: 13341825 | C54: 6955239.26 | D54: 52.13109346
A55: Gospodarowanie targowiskami i nadzór nad handlem obwoźnym | B55: 2031095 | C55: 878618.51 | D55: 43.25836605
A56: Przedsięwzięcia ekologiczne | B56: 95000 | C56: 1761.48 | D56: 1.854189474 | E56: 95000 | F56: 1761.48 | G56: 1.854189474
A57: EDUKACJA | B57: 480628734 | C57: 255467832.2 | D57: 53.15284212 | E57: 83606268 | F57: 45219891.64 | G57: 54.08672426
A58: Oświata i edukacyjna opieka wychowawcza | B58: 457284547 | C58: 245008795.3 | D58: 53.57906733 | E58: 82336171 | F58: 44872395.73 | G58: 54.49900716
A59: Prowadzenie przedszkoli i innych form wychowania przedszkolnego | B59: 65692298 | C59: 33813568.99 | D59: 51.4726536 | E59: 5002096 | F59: 2515422.17 | G59: 50.28736294
A60: Prowadzenie publicznych przedszkoli i innych form wychowania przedszkolnego | B60: 60721812 | C60: 31298146.82 | D60: 51.54349943 | E60: 31610 | F60: 0 | G60: 0
A61: Dotacje dla niepublicznych przedszkoli i innych form wychowania przedszkolnego | B61: 4970486 | C61: 2515422.17 | D61: 50.60716739 | E61: 4970486 | F61: 2515422.17 | G61: 50.60716739
A62: Prowadzenie przedszkoli specjalnych | B62: 7255739 | C62: 3658576.84 | D62: 50.42321451 | E62: 2265979 | F62: 1012245.71 | G62: 44.6714515
A63: Prowadzenie publicznych przedszkoli specjalnych | B63: 4995028 | C63: 2646331.13 | D63: 52.97930522 | E63: 5268 | F63: 0 | G63: 0
A64: Dotacje dla niepublicznych przedszkoli specjalnych | B64: 2260711 | C64: 1012245.71 | D64: 44.77554672 | E64: 2260711 | F64: 1012245.71 | G64: 44.77554672
A65: Prowadzenie oddziałów "0" w szkołach podstawowych | B65: 458626 | C65: 233048.44 | D65: 50.81448501 | E65: 458626 | F65: 233048.44 | G65: 50.81448501
A66: Dotacje dla niepublicznych oddziałów "0" w szkołach podstawowych | B66: 458626 | C66: 233048.44 | D66: 50.81448501 | E66: 458626 | F66: 233048.44 | G66: 50.81448501
A67: Prowadzenie szkół podstawowych | B67: 85851303 | C67: 46431866.93 | D67: 54.08405616 | E67: 8704239 | F67: 4031698.22 | G67: 46.31879042
A68: Prowadzenie publicznych szkół podstawowych | B68: 77215550 | C68: 42400168.71 | D68: 54.9114378 | E68: 68486 | F68: 0 | G68: 0
A69: Dotacje dla niepublicznych szkół podstawowych | B69: 8635753 | C69: 4031698.22 | D69: 46.68612245 | E69: 8635753 | F69: 4031698.22 | G69: 46.68612245
A70: Prowadzenie liceów ogólnokształcących | B70: 126836253 | C70: 71532705.2 | D70: 56.39768087 | E70: 11419138 | F70: 6423883.68 | G70: 56.25541683
A71: Prowadzenie publicznych liceów ogólnokształcących | B71: 115480332 | C71: 65108821.52 | D71: 56.3808749 | E71: 63217 | F71: 0 | G71: 0
A72: Dotacje dla niepublicznych liceów ogólnokształcących | B72: 11355921 | C72: 6423883.68 | D72: 56.56858374 | E72: 11355921 | F72: 6423883.68 | G72: 56.56858374
A73: Prowadzenie publicznych placówek kształcenia ustawicznego icentrów kształcenia zawodowego | B73: 4443994 | C73: 2386446.94 | D73: 53.7004987
A74: Prowadzenie publicznych poradni psychologiczno-pedagogicznych | B74: 8111280 | C74: 4196132.26 | D74: 51.73206029
A75: Prowadzenie internatów i burs szkolnych | B75: 1950867 | C75: 970675.42 | D75: 49.75610434 | E75: 1255409 | F75: 604792.94 | G75: 48.17497246
A76: Prowadzenie publicznych internatów i burs szkolnych | B76: 695458 | C76: 365882.48 | D76: 52.61029135
A77: Dotacje dla niepublicznych internatów i burs szkolnych | B77: 1255409 | C77: 604792.94 | D77: 48.17497246 | E77: 1255409 | F77: 604792.94 | G77: 48.17497246
A78: Prowadzenie świetlic szkolnych | B78: 11844446 | C78: 5965659.57 | D78: 50.36672522
A79: Prowadzenie placówek wychowania pozaszkolnego | B79: 6686616 | C79: 3267764.77 | D79: 48.87023227
A80: Prowadzenie publicznych placówek wychowania pozaszkolnego | B80: 6686616 | C80: 3267764.77 | D80: 48.87023227
A81: Remonty w przedszkolach, szkołach i placówkach oświatowych | B81: 16482187 | C81: 1553161.72 | D81: 9.423274472 | E81: 11455166 | F81: 253539.5 | G81: 2.213320174
